Beneficiary,Date,Procurement Category,Purpose of Spend,Organisation,Net Amount,TransNo
ASE (Eye Care Plans) Ltd,01/04/2022,Indirect Employee Allowances,Medical Fees,Greater Manchester Combined Authority,708.00,31113238
Bolton MBC,01/04/2022,Capital,Capital Grant Expenditure,Greater Manchester Combined Authority,"1,597,280.61",20116803
Bury Council,01/04/2022,Premises Related Expenditure,Rates,Greater Manchester Combined Authority,"1,480.25",20116803
Bury Council,01/04/2022,Premises Related Expenditure,Rates,Greater Manchester Combined Authority,"1,587.25",20116803
Bury Council,01/04/2022,Premises Related Expenditure,Rates,Greater Manchester Combined Authority,"5,270.00",20116803
Bury Council,01/04/2022,Premises Related Expenditure,Rates,Greater Manchester Combined Authority,"19,712.00",20116803
Central Power Services,01/04/2022,Premises Related Expenditure,Programmed Repairs & Maintenance,Greater Manchester Combined Authority,570.43,31113168
CJ Founds Associates Ltd,01/04/2022,Capital,Capital Professional Fees,Greater Manchester Combined Authority,"6,700.00",31109897
Clarion Security Systems Ltd,01/04/2022,"Supplies, Services & Other Expenses",Stationery,Greater Manchester Combined Authority,561.00,31113142
Dalbergia Group Limited,01/04/2022,"Supplies, Services & Other Expenses",Professional Fees,Greater Manchester Combined Authority,"1,200.00",31113283
DWF LLP,01/04/2022,"Supplies, Services & Other Expenses",Professional Fees,Greater Manchester Combined Authority,"4,572.00",31113246
Egress Limited,01/04/2022,"Supplies, Services & Other Expenses",Professional Fees,Greater Manchester Combined Authority,"6,000.00",31113269
Energy Systems Catapult Ltd,01/04/2022,"Supplies, Services & Other Expenses",Communications,Greater Manchester Combined Authority,"8,200.00",31112982
Great Places Housing Group,01/04/2022,Capital,Capital Grant Expenditure,Greater Manchester Combined Authority,"479,807.32",20116803
GUARDIAN TECHNICAL MAINTENANCE LTD,01/04/2022,Premises Related Expenditure,Programmed Repairs & Maintenance,Greater Manchester Combined Authority,"2,915.15",31113267
Health Assured,01/04/2022,Indirect Employee Allowances,Medical Fees,Greater Manchester Combined Authority,850.00,31113212
HM Treasury,01/04/2022,Employees Pay,Seconded Employee Cost,Greater Manchester Combined Authority,"9,398.11",31113232
I.J. KENDRICK LIMITED,01/04/2022,Premises Related Expenditure,Responsive Repairs & Maintenance,Greater Manchester Combined Authority,"1,500.00",31113270
IOSH Services Ltd,01/04/2022,Indirect Employee Allowances,Devolved Training,Greater Manchester Combined Authority,700.00,31113261
JWO Consulting Ltd,01/04/2022,"Supplies, Services & Other Expenses",Consultancy Fees,Greater Manchester Combined Authority,"3,300.00",31110023
Manchester City Council,01/04/2022,Capital,Capital Grant Expenditure,Greater Manchester Combined Authority,"4,700,000.00",20116803
Manchester City Council,01/04/2022,Capital,Capital Grant Expenditure,Greater Manchester Combined Authority,"1,035,000.00",20116803
Manchester Jewish Museum,01/04/2022,"Supplies, Services & Other Expenses",Grant Expenditure,Greater Manchester Combined Authority,"17,500.00",31113281
Media & Digital Ltd,01/04/2022,"Supplies, Services & Other Expenses",Communications,Greater Manchester Combined Authority,"9,150.00",31113095
Media & Digital Ltd,01/04/2022,"Supplies, Services & Other Expenses",Communications,Greater Manchester Combined Authority,"2,976.00",31113171
Mullion Survival Technology Ltd. / Sioen UK,01/04/2022,"Supplies, Services & Other Expenses",Postage,Greater Manchester Combined Authority,810.00,31113061
P N Daly Ltd,01/04/2022,"Supplies, Services & Other Expenses",Hydrants Repairs,Greater Manchester Combined Authority,"1,044.00",31113215
P N Daly Ltd,01/04/2022,"Supplies, Services & Other Expenses",Hydrants Repairs,Greater Manchester Combined Authority,"1,044.00",31113215
Prosperon Networks,01/04/2022,"Supplies, Services & Other Expenses",Computer Software,Greater Manchester Combined Authority,"8,572.00",31113254
QA LTD,01/04/2022,Indirect Employee Allowances,IT Training,Greater Manchester Combined Authority,"1,390.00",31111375
Reed Specialist Recruitment Ltd,01/04/2022,Employees Pay,Agency Staff Costs,Greater Manchester Combined Authority,"2,780.07",31113217
Rock n� Real Estate Limited T/A Nexus Real Estate,01/04/2022,"Supplies, Services & Other Expenses",Members Conference Fees,Greater Manchester Combined Authority,"1,650.00",31113223
Salford City Council,01/04/2022,"Supplies, Services & Other Expenses",Professional Fees,Greater Manchester Combined Authority,958.33,31110411
Salford City Council,01/04/2022,"Supplies, Services & Other Expenses",Professional Fees,Greater Manchester Combined Authority,958.33,31112544
Salford City Council,01/04/2022,"Supplies, Services & Other Expenses",Professional Fees,Greater Manchester Combined Authority,"3,053.33",31110412
Salford City Council,01/04/2022,"Supplies, Services & Other Expenses",Professional Fees,Greater Manchester Combined Authority,"5,168.33",31112527
Salford City Council,01/04/2022,"Supplies, Services & Other Expenses",Professional Fees,Greater Manchester Combined Authority,"2,083.33",31108280
Salix Homes,01/04/2022,Capital,Capital Grant Expenditure,Greater Manchester Combined Authority,"468,154.00",20116803
Stellar Network Solutions Ltd,01/04/2022,"Supplies, Services & Other Expenses",Other Communications Equipment,Greater Manchester Combined Authority,"1,540.00",31113229
Stockport MBC,01/04/2022,Capital,Capital Grant Expenditure,Greater Manchester Combined Authority,"1,700,000.00",20116803
T S I FLOWMETERS LTD,01/04/2022,Transport Related Expenditure,Repairs and Maintenance - Transport,Greater Manchester Combined Authority,894.71,31113164
TAMESIDE MBC,01/04/2022,Premises Related Expenditure,Rates,Greater Manchester Combined Authority,"1,666.98",20116803
TAMESIDE MBC,01/04/2022,Premises Related Expenditure,Rates,Greater Manchester Combined Authority,"4,586.00",20116803
TAMESIDE MBC,01/04/2022,Premises Related Expenditure,Rates,Greater Manchester Combined Authority,"2,236.25",20116803
Telefonica UK Ltd (O2),01/04/2022,"Supplies, Services & Other Expenses",Outsourced Services IT,Greater Manchester Combined Authority,"3,460.00",31113250
Telefonica UK Ltd (O2),01/04/2022,"Supplies, Services & Other Expenses",Outsourced Services IT,Greater Manchester Combined Authority,"9,220.00",31113251
Telefonica UK Ltd (O2),01/04/2022,"Supplies, Services & Other Expenses",Outsourced Services IT,Greater Manchester Combined Authority,"9,220.00",31113252
TERBERG DTS UK,01/04/2022,Indirect Employee Allowances,Other Training Expenses,Greater Manchester Combined Authority,"7,987.40",31113228
TERBERG DTS UK,01/04/2022,Indirect Employee Allowances,Other Training Expenses,Greater Manchester Combined Authority,"5,613.26",31113284
The Children�s Society,01/04/2022,"Supplies, Services & Other Expenses",Commissioned Services,Greater Manchester Combined Authority,"13,944.75",31113092
TRAFFORD MBC,01/04/2022,Premises Related Expenditure,Rates,Greater Manchester Combined Authority,"2,167.50",20116803
TRAFFORD MBC,01/04/2022,Premises Related Expenditure,Rates,Greater Manchester Combined Authority,"1,856.75",20116803
UNITED UTILITIES WATER PLC,01/04/2022,"Supplies, Services & Other Expenses",Hydrants Repairs,Greater Manchester Combined Authority,"1,286.80",31113224
Water Plus Limited,01/04/2022,Premises Related Expenditure,Trade Effluent Charges,Greater Manchester Combined Authority,"1,018.83",31113216
WIGAN MBC,01/04/2022,Premises Related Expenditure,Rates,Greater Manchester Combined Authority,"4,330.00",20116803
2Novate,04/04/2022,"Supplies, Services & Other Expenses",Commissioned Services,Greater Manchester Combined Authority,"5,000.00",31113301
Arthur J Gallagher,04/04/2022,"Supplies, Services & Other Expenses",Insurance,Greater Manchester Combined Authority,"1,500.00",31113226
Bolton MBC,04/04/2022,Capital,Capital Grant Expenditure,Greater Manchester Combined Authority,"1,410,000.00",20116810
Capricorn Hazmat Detection Training Ltd,04/04/2022,Indirect Employee Allowances,Training Course Fees,Greater Manchester Combined Authority,"2,200.00",31111881
Castlefield Recruitment Limited,04/04/2022,Employees Pay,Agency Staff Costs,Greater Manchester Combined Authority,"2,375.00",31113221
Cornerstone Design & Marketing Ltd,04/04/2022,"Supplies, Services & Other Expenses",Digital,Greater Manchester Combined Authority,825.00,31113378
Corporate Culture Limited,04/04/2022,"Supplies, Services & Other Expenses",Waste Campaigns,Greater Manchester Combined Authority,"4,925.00",31113247
Direct Business Equipment Ltd,04/04/2022,Premises Related Expenditure,Programmed Repairs & Maintenance,Greater Manchester Combined Authority,"1,130.00",31112979
Direct Business Equipment Ltd,04/04/2022,Premises Related Expenditure,Programmed Repairs & Maintenance,Greater Manchester Combined Authority,560.00,31112980
Direct Business Equipment Ltd,04/04/2022,Premises Related Expenditure,Programmed Repairs & Maintenance,Greater Manchester Combined Authority,560.00,31112981
Energy Systems Catapult Ltd,04/04/2022,"Supplies, Services & Other Expenses",Consultancy Fees,Greater Manchester Combined Authority,"4,400.00",31113299
Energy Systems Catapult Ltd,04/04/2022,"Supplies, Services & Other Expenses",Consultancy Fees,Greater Manchester Combined Authority,"6,600.00",31113300
FEC Northern Gateway Development Limited,04/04/2022,Capital,Capital Grant Expenditure,Greater Manchester Combined Authority,"709,124.59",20116810
Goodyear Dunlop Tyres UK Ltd,04/04/2022,Transport Related Expenditure,Tyres,Greater Manchester Combined Authority,505.90,31113361
Great Grounds Ltd,04/04/2022,Premises Related Expenditure,Fixtures & Fittings,Greater Manchester Combined Authority,"4,450.00",31113084
Great Grounds Ltd,04/04/2022,Premises Related Expenditure,Programmed Repairs & Maintenance,Greater Manchester Combined Authority,509.70,31113195
IKG Consulting Limited,04/04/2022,Capital,Estates Capital Contracts,Greater Manchester Combined Authority,"2,100.00",31113344
IKG Consulting Limited,04/04/2022,Capital,Estates Capital Contracts,Greater Manchester Combined Authority,700.00,31113345
Ingeus UK Ltd,04/04/2022,"Supplies, Services & Other Expenses",Commissioned Services,Greater Manchester Combined Authority,"66,252.40",31113308
Irwell Valley Homes,04/04/2022,Capital,Capital Grant Expenditure,Greater Manchester Combined Authority,"185,217.00",20116810
Legal Experience Training Ltd,04/04/2022,Indirect Employee Allowances,Training Course Fees,Greater Manchester Combined Authority,"12,875.00",31113381
Manchester University NHS Foundation Trust,04/04/2022,"Supplies, Services & Other Expenses",SARC Contract,Greater Manchester Combined Authority,"48,411.08",31113327
Manchester University NHS Foundation Trust,04/04/2022,"Supplies, Services & Other Expenses",Doctors Retainers/Claims,Greater Manchester Combined Authority,"15,109.92",31113329
Manchester University NHS Foundation Trust,04/04/2022,"Supplies, Services & Other Expenses",Doctors Retainers/Claims,Greater Manchester Combined Authority,"53,396.35",31113330
Manchester&Warrington Area Quaker Meeting,04/04/2022,"Supplies, Services & Other Expenses",Events,Greater Manchester Combined Authority,505.00,31113342
MERSEYSIDE FIRE & RESCUE AUTHORITY,04/04/2022,Indirect Employee Allowances,Training Course Fees,Greater Manchester Combined Authority,"1,346.00",31113188
NORTH WEST ENVIRONMENTAL SERVICES,04/04/2022,Premises Related Expenditure,Programmed Repairs & Maintenance,Greater Manchester Combined Authority,"7,250.00",31113062
Oldham Council � Lifelong Learning,04/04/2022,"Supplies, Services & Other Expenses",Grant Expenditure,Greater Manchester Combined Authority,"12,255.00",31113357
Open Kitchen MCR,04/04/2022,"Supplies, Services & Other Expenses",Subsistence,Greater Manchester Combined Authority,800.00,31111089
Pioneer Print Solutions,04/04/2022,"Supplies, Services & Other Expenses",Waste Campaigns,Greater Manchester Combined Authority,670.00,31113310
Pitney Bowes,04/04/2022,"Supplies, Services & Other Expenses",Postage,Greater Manchester Combined Authority,"1,500.00",20116810
R.L.LOVATT LIMITED,04/04/2022,Premises Related Expenditure,Responsive Repairs & Maintenance,Greater Manchester Combined Authority,580.00,31113213
Ricardo-AEA Ltd,04/04/2022,"Supplies, Services & Other Expenses",Other Communications Equipment,Greater Manchester Combined Authority,"19,520.00",31113358
Ross Quality Control Limited,04/04/2022,Capital,Estates Capital Contracts,Greater Manchester Combined Authority,"8,281.24",31113325
Ross Quality Control Limited,04/04/2022,Capital,Estates Capital Contracts,Greater Manchester Combined Authority,"7,049.32",31113326
SAFEGLOVE,04/04/2022,"Supplies, Services & Other Expenses",Operational Equipment Non-Consumables,Greater Manchester Combined Authority,528.23,31113376
Salford Royal NHS,04/04/2022,"Supplies, Services & Other Expenses",Professional Fees,Greater Manchester Combined Authority,"7,291.00",31113235
Stellar Network Solutions Ltd,04/04/2022,"Supplies, Services & Other Expenses",Other Communications Equipment,Greater Manchester Combined Authority,"1,137.50",31113353
Stellar Network Solutions Ltd,04/04/2022,"Supplies, Services & Other Expenses",Other Communications Equipment,Greater Manchester Combined Authority,"1,137.50",31113354
Stellar Network Solutions Ltd,04/04/2022,"Supplies, Services & Other Expenses",Other Communications Equipment,Greater Manchester Combined Authority,"1,137.50",31113355
Stellar Network Solutions Ltd,04/04/2022,"Supplies, Services & Other Expenses",Other Communications Equipment,Greater Manchester Combined Authority,"1,137.50",31113356
Stellar Network Solutions Ltd,04/04/2022,"Supplies, Services & Other Expenses",Other Communications Equipment,Greater Manchester Combined Authority,"1,137.50",31113352
Stockport NHS Foundation Trust,04/04/2022,"Supplies, Services & Other Expenses",Professional Fees,Greater Manchester Combined Authority,"5,000.00",31113291
The Essential Parent Company Limited,04/04/2022,"Supplies, Services & Other Expenses",Professional Fees,Greater Manchester Combined Authority,"5,000.00",31112966
The Essential Parent Company Limited,04/04/2022,"Supplies, Services & Other Expenses",Professional Fees,Greater Manchester Combined Authority,"2,000.00",31112970
TRAFFORD MBC,04/04/2022,Capital,Capital Grant Expenditure,Greater Manchester Combined Authority,"1,260,000.00",20116810
Addleshaw Goddard LLP,05/04/2022,Capital,Capital Grant Expenditure,Greater Manchester Combined Authority,"357,777.00",20116812
Addleshaw Goddard LLP,05/04/2022,Capital,Capital Grant Expenditure,Greater Manchester Combined Authority,"299,957.00",20116812
Bid Group Ltd,05/04/2022,Capital,Estates Capital Contracts,Greater Manchester Combined Authority,"1,200.00",31113384
Clan Tools & Plant Ltd,05/04/2022,Transport Related Expenditure,Repairs and Maintenance - Transport,Greater Manchester Combined Authority,605.00,31113632
Manchester University NHS Foundation Trust,05/04/2022,"Supplies, Services & Other Expenses",Doctors Retainers/Claims,Greater Manchester Combined Authority,"52,723.02",31113331
Manchester University NHS Foundation Trust,05/04/2022,"Supplies, Services & Other Expenses",Doctors Retainers/Claims,Greater Manchester Combined Authority,"46,204.73",31113332
Manchester University NHS Foundation Trust,05/04/2022,"Supplies, Services & Other Expenses",Doctors Retainers/Claims,Greater Manchester Combined Authority,"52,076.18",31113333
Manchester University NHS Foundation Trust,05/04/2022,"Supplies, Services & Other Expenses",Doctors Retainers/Claims,Greater Manchester Combined Authority,"58,080.50",31113334
Manchester University NHS Foundation Trust,05/04/2022,"Supplies, Services & Other Expenses",Doctors Retainers/Claims,Greater Manchester Combined Authority,"59,739.58",31113335
Manchester University NHS Foundation Trust,05/04/2022,"Supplies, Services & Other Expenses",Commissioned Services,Greater Manchester Combined Authority,"26,307.00",31113328
Manchester University NHS Foundation Trust,05/04/2022,"Supplies, Services & Other Expenses",Commissioned Services,Greater Manchester Combined Authority,"26,307.00",31113336
Ricardo-AEA Ltd,05/04/2022,"Supplies, Services & Other Expenses",Professional Fees,Greater Manchester Combined Authority,"7,615.00",31113595
Trauma & Resuscitation Services Ltd,05/04/2022,"Supplies, Services & Other Expenses",Operational Equipment Non-Consumables,Greater Manchester Combined Authority,"22,000.00",31109655
Addleshaw Goddard LLP,06/04/2022,"Supplies, Services & Other Expenses",Legal Liabilities,Greater Manchester Combined Authority,"15,483.00",31113677
Allstar Business Solutions Ltd,06/04/2022,Transport Related Expenditure,Fuel,Greater Manchester Combined Authority,635.20,31113726
Alpha Duplication Limited,06/04/2022,"Supplies, Services & Other Expenses",Stationery,Greater Manchester Combined Authority,720.00,31113738
Bloom Procurement Services Ltd,06/04/2022,"Supplies, Services & Other Expenses",Commissioned Services,Greater Manchester Combined Authority,"26,315.79",31113691
Centre for Local Economic Strategies Ltd,06/04/2022,"Supplies, Services & Other Expenses",Consultancy Fees,Greater Manchester Combined Authority,"7,313.00",31113670
DIVRSE 1 LTD,06/04/2022,"Supplies, Services & Other Expenses",Professional Fees,Greater Manchester Combined Authority,"2,140.11",31113669
DIVRSE 1 LTD,06/04/2022,"Supplies, Services & Other Expenses",Professional Fees,Greater Manchester Combined Authority,"2,140.11",31113688
Greater Manchester Centre for Voluntary Organisation,06/04/2022,Employees Pay,Seconded Employee Cost,Greater Manchester Combined Authority,"15,686.10",31113054
Greater Manchester Centre for Voluntary Organisation,06/04/2022,Employees Pay,Seconded Employee Cost,Greater Manchester Combined Authority,"17,890.40",31113074
GUARDIAN TECHNICAL MAINTENANCE LTD,06/04/2022,Premises Related Expenditure,Programmed Repairs & Maintenance,Greater Manchester Combined Authority,860.00,31113266
Hopley Electrical Services Ltd,06/04/2022,Premises Related Expenditure,Waste Site Responsive,Greater Manchester Combined Authority,500.00,31113717
Minerva Simulator Facilities Ltd,06/04/2022,Capital,Estates Capital Contracts,Greater Manchester Combined Authority,"2,500.00",31113359
National Autistic Society,06/04/2022,"Supplies, Services & Other Expenses",Commissioned Services,Greater Manchester Combined Authority,"50,000.00",31113225
NHS Central Manchester CCG,06/04/2022,"Supplies, Services & Other Expenses",Graphics/ Branding,Greater Manchester Combined Authority,"13,500.00",31113364
NHS Central Manchester CCG,06/04/2022,"Supplies, Services & Other Expenses",Graphics/ Branding,Greater Manchester Combined Authority,"2,860.00",31113379
People Asset Management Ltd,06/04/2022,Indirect Employee Allowances,Medical Fees,Greater Manchester Combined Authority,"28,006.00",31113720
People Asset Management Ltd,06/04/2022,Indirect Employee Allowances,Medical Fees,Greater Manchester Combined Authority,"10,843.25",31113720
Programme Officer Services Limited,06/04/2022,"Supplies, Services & Other Expenses",Consultancy Fees,Greater Manchester Combined Authority,"1,663.10",31113733
RESCUE 3 EUROPE LTD,06/04/2022,Indirect Employee Allowances,Training Course Fees,Greater Manchester Combined Authority,"4,000.00",31113114
Shaping Cloud Limited,06/04/2022,"Supplies, Services & Other Expenses",Professional Fees,Greater Manchester Combined Authority,"9,281.00",31113659
Shaping Cloud Limited,06/04/2022,"Supplies, Services & Other Expenses",Professional Fees,Greater Manchester Combined Authority,"1,160.00",31113660
Social Communications Group Limited,06/04/2022,"Supplies, Services & Other Expenses",Publicity,Greater Manchester Combined Authority,"4,500.00",31113758
Stellar Network Solutions Ltd,06/04/2022,"Supplies, Services & Other Expenses",Other Communications Equipment,Greater Manchester Combined Authority,"1,230.00",31113727
Stellar Network Solutions Ltd,06/04/2022,"Supplies, Services & Other Expenses",Other Communications Equipment,Greater Manchester Combined Authority,"1,230.00",31113728
Transport for Greater Manchester ,06/04/2022,Capital,Capital Professional Fees,Greater Manchester Combined Authority,"24,500.68",31113658
Transport for Greater Manchester ,06/04/2022,Capital,Capital Professional Fees,Greater Manchester Combined Authority,"2,850.03",31113658
Transport for Greater Manchester ,06/04/2022,Employees Pay,Seconded Employee Cost,Greater Manchester Combined Authority,"6,121.24",31113686
Transport for Greater Manchester ,06/04/2022,Employees Pay,Seconded Employee Cost,Greater Manchester Combined Authority,"5,363.92",31113686
Transport for Greater Manchester ,06/04/2022,Employees Pay,Seconded Employee Cost,Greater Manchester Combined Authority,"12,179.91",31113686
Transport for Greater Manchester ,06/04/2022,Employees Pay,Seconded Employee Cost,Greater Manchester Combined Authority,"4,416.48",31113686
Transport for Greater Manchester ,06/04/2022,"Supplies, Services & Other Expenses",Contributions to ED&R Functions,Greater Manchester Combined Authority,"50,000.00",31113729
TSAP Ltd (formerly Lattice Advisory Ltd),06/04/2022,"Supplies, Services & Other Expenses",Professional Fees,Greater Manchester Combined Authority,"2,500.00",31113741
Twelvetrees Consulting Ltd,06/04/2022,"Supplies, Services & Other Expenses",Professional Fees,Greater Manchester Combined Authority,"11,212.50",31113694
UK Fashion & Textile Association,06/04/2022,"Supplies, Services & Other Expenses",Consultancy Fees,Greater Manchester Combined Authority,"5,250.00",31113719
Watts Group Limited,06/04/2022,"Supplies, Services & Other Expenses",Professional Fees,Greater Manchester Combined Authority,742.00,31113721
24 Hour Nationwide FM Services Ltd,07/04/2022,Employees Pay,Agency Staff Costs,Greater Manchester Combined Authority,607.38,31113761
Addleshaw Goddard LLP,07/04/2022,"Supplies, Services & Other Expenses",Legal Liabilities,Greater Manchester Combined Authority,"1,860.60",31113778
Bury Council,07/04/2022,Capital,Capital Grant Expenditure,Greater Manchester Combined Authority,"156,639.62",31113740
J Fletcher (Engineers) Ltd,07/04/2022,Premises Related Expenditure,Responsive Repairs & Maintenance,Greater Manchester Combined Authority,611.75,31113700
J Fletcher (Engineers) Ltd,07/04/2022,Premises Related Expenditure,Responsive Repairs & Maintenance,Greater Manchester Combined Authority,684.50,31113703
Manchester City Council,07/04/2022,Capital,Capital Grant Expenditure,Greater Manchester Combined Authority,"825,082.08",31111203
Manchester City Council,07/04/2022,Capital,Capital Grant Expenditure,Greater Manchester Combined Authority,"928,816.18",31113754
Manchester City Council,07/04/2022,Capital,Capital Grant Expenditure,Greater Manchester Combined Authority,"1,828,122.22",31113755
Manchester University NHS Foundation Trust,07/04/2022,"Supplies, Services & Other Expenses",Doctors Retainers/Claims,Greater Manchester Combined Authority,"52,723.02",31113779
Manchester University NHS Foundation Trust,07/04/2022,"Supplies, Services & Other Expenses",Doctors Retainers/Claims,Greater Manchester Combined Authority,"46,204.73",31113780
Marie Bintley Consultancy Ltd,07/04/2022,"Supplies, Services & Other Expenses",Consultancy Fees,Greater Manchester Combined Authority,"11,400.00",31113770
Minerva Simulator Facilities Ltd,07/04/2022,Capital,Estates Capital Contracts,Greater Manchester Combined Authority,"75,375.00",31113735
RADIOCOMS SYSTEMS LIMITED,07/04/2022,"Supplies, Services & Other Expenses",Other Communications Equipment,Greater Manchester Combined Authority,"1,123.04",31113678
TAMESIDE MBC,07/04/2022,Capital,Capital Grant Expenditure,Greater Manchester Combined Authority,"126,502.57",31113307
THOMAS HARDIE COMMERCIALS LTD,07/04/2022,Transport Related Expenditure,Repairs and Maintenance - Transport,Greater Manchester Combined Authority,508.10,31113734
Bolton MBC,08/04/2022,Premises Related Expenditure,Rates,Greater Manchester Combined Authority,"1,611.75",20116981
Bolton MBC,08/04/2022,Premises Related Expenditure,Rates,Greater Manchester Combined Authority,"2,282.25",20116981
Bolton MBC,08/04/2022,Capital,Capital Grant Expenditure,Greater Manchester Combined Authority,"426,828.47",31111218
Bolton MBC,08/04/2022,Capital,Capital Grant Expenditure,Greater Manchester Combined Authority,"410,099.25",31113273
Corona Energy,08/04/2022,Premises Related Expenditure,Gas,Greater Manchester Combined Authority,955.24,31113801
Corona Energy,08/04/2022,Premises Related Expenditure,Gas,Greater Manchester Combined Authority,"4,255.25",31113801
Corona Energy,08/04/2022,Premises Related Expenditure,Gas,Greater Manchester Combined Authority,876.14,31113801
Corona Energy,08/04/2022,Premises Related Expenditure,Gas,Greater Manchester Combined Authority,802.19,31113801
Corona Energy,08/04/2022,Premises Related Expenditure,Gas,Greater Manchester Combined Authority,908.13,31113801
Corona Energy,08/04/2022,Premises Related Expenditure,Gas,Greater Manchester Combined Authority,798.85,31113801
Corona Energy,08/04/2022,Premises Related Expenditure,Gas,Greater Manchester Combined Authority,699.97,31113801
Corona Energy,08/04/2022,Premises Related Expenditure,Gas,Greater Manchester Combined Authority,958.44,31113801
Corona Energy,08/04/2022,Premises Related Expenditure,Gas,Greater Manchester Combined Authority,"1,158.70",31113801
Corona Energy,08/04/2022,Premises Related Expenditure,Gas,Greater Manchester Combined Authority,685.15,31113801
Corona Energy,08/04/2022,Premises Related Expenditure,Gas,Greater Manchester Combined Authority,561.18,31113801
Corona Energy,08/04/2022,Premises Related Expenditure,Gas,Greater Manchester Combined Authority,840.54,31113801
Corona Energy,08/04/2022,Premises Related Expenditure,Gas,Greater Manchester Combined Authority,768.44,31113801
Corona Energy,08/04/2022,Premises Related Expenditure,Gas,Greater Manchester Combined Authority,"1,096.92",31113801
Corona Energy,08/04/2022,Premises Related Expenditure,Gas,Greater Manchester Combined Authority,594.02,31113801
Corona Energy,08/04/2022,Premises Related Expenditure,Gas,Greater Manchester Combined Authority,515.24,31113801
Corona Energy,08/04/2022,Premises Related Expenditure,Gas,Greater Manchester Combined Authority,560.38,31113801
Corona Energy,08/04/2022,Premises Related Expenditure,Gas,Greater Manchester Combined Authority,"2,187.50",31113801
Corona Energy,08/04/2022,Premises Related Expenditure,Gas,Greater Manchester Combined Authority,790.36,31113801
Corona Energy,08/04/2022,Premises Related Expenditure,Gas,Greater Manchester Combined Authority,713.77,31113801
Corona Energy,08/04/2022,Premises Related Expenditure,Gas,Greater Manchester Combined Authority,578.23,31113801
Corona Energy,08/04/2022,Premises Related Expenditure,Gas,Greater Manchester Combined Authority,894.34,31113801
Corona Energy,08/04/2022,Premises Related Expenditure,Gas,Greater Manchester Combined Authority,692.46,31113801
Corona Energy,08/04/2022,Premises Related Expenditure,Gas,Greater Manchester Combined Authority,"1,045.19",31113801
Corona Energy,08/04/2022,Premises Related Expenditure,Gas,Greater Manchester Combined Authority,996.09,31113801
Corona Energy,08/04/2022,Premises Related Expenditure,Gas,Greater Manchester Combined Authority,856.30,31113801
Corona Energy,08/04/2022,Premises Related Expenditure,Gas,Greater Manchester Combined Authority,528.71,31113801
Corona Energy,08/04/2022,Premises Related Expenditure,Gas,Greater Manchester Combined Authority,"1,117.72",31113801
Corona Energy,08/04/2022,Premises Related Expenditure,Gas,Greater Manchester Combined Authority,601.71,31113801
Corona Energy,08/04/2022,Premises Related Expenditure,Gas,Greater Manchester Combined Authority,618.37,31113801
Corona Energy,08/04/2022,Premises Related Expenditure,Gas,Greater Manchester Combined Authority,975.46,31113801
Corona Energy,08/04/2022,Premises Related Expenditure,Gas,Greater Manchester Combined Authority,879.71,31113801
Corona Energy,08/04/2022,Premises Related Expenditure,Gas,Greater Manchester Combined Authority,912.36,31113801
Corona Energy,08/04/2022,Premises Related Expenditure,Gas,Greater Manchester Combined Authority,"1,501.61",31113801
Corona Energy,08/04/2022,Premises Related Expenditure,Gas,Greater Manchester Combined Authority,595.54,31113801
Corona Energy,08/04/2022,Premises Related Expenditure,Gas,Greater Manchester Combined Authority,"2,201.81",31113801
Corona Energy,08/04/2022,Premises Related Expenditure,Gas,Greater Manchester Combined Authority,"2,201.81",31113801
Corona Energy,08/04/2022,Premises Related Expenditure,Gas,Greater Manchester Combined Authority,618.37,31113801
Corona Energy,08/04/2022,Premises Related Expenditure,Gas,Greater Manchester Combined Authority,975.46,31113801
Corona Energy,08/04/2022,Premises Related Expenditure,Gas,Greater Manchester Combined Authority,879.71,31113801
Corona Energy,08/04/2022,Premises Related Expenditure,Gas,Greater Manchester Combined Authority,955.24,31113801
Corona Energy,08/04/2022,Premises Related Expenditure,Gas,Greater Manchester Combined Authority,876.14,31113801
Corona Energy,08/04/2022,Premises Related Expenditure,Gas,Greater Manchester Combined Authority,802.19,31113801
Corona Energy,08/04/2022,Premises Related Expenditure,Gas,Greater Manchester Combined Authority,"4,255.25",31113801
Corona Energy,08/04/2022,Premises Related Expenditure,Gas,Greater Manchester Combined Authority,908.13,31113801
Corona Energy,08/04/2022,Premises Related Expenditure,Gas,Greater Manchester Combined Authority,798.85,31113801
Corona Energy,08/04/2022,Premises Related Expenditure,Gas,Greater Manchester Combined Authority,699.97,31113801
Corona Energy,08/04/2022,Premises Related Expenditure,Gas,Greater Manchester Combined Authority,"1,158.70",31113801
Corona Energy,08/04/2022,Premises Related Expenditure,Gas,Greater Manchester Combined Authority,685.15,31113801
Corona Energy,08/04/2022,Premises Related Expenditure,Gas,Greater Manchester Combined Authority,768.44,31113801
Corona Energy,08/04/2022,Premises Related Expenditure,Gas,Greater Manchester Combined Authority,840.54,31113801
Corona Energy,08/04/2022,Premises Related Expenditure,Gas,Greater Manchester Combined Authority,561.18,31113801
Corona Energy,08/04/2022,Premises Related Expenditure,Gas,Greater Manchester Combined Authority,958.44,31113801
Corona Energy,08/04/2022,Premises Related Expenditure,Gas,Greater Manchester Combined Authority,"1,096.92",31113801
Corona Energy,08/04/2022,Premises Related Expenditure,Gas,Greater Manchester Combined Authority,578.23,31113801
Corona Energy,08/04/2022,Premises Related Expenditure,Gas,Greater Manchester Combined Authority,692.46,31113801
Corona Energy,08/04/2022,Premises Related Expenditure,Gas,Greater Manchester Combined Authority,594.02,31113801
Corona Energy,08/04/2022,Premises Related Expenditure,Gas,Greater Manchester Combined Authority,790.36,31113801
Corona Energy,08/04/2022,Premises Related Expenditure,Gas,Greater Manchester Combined Authority,560.38,31113801
Corona Energy,08/04/2022,Premises Related Expenditure,Gas,Greater Manchester Combined Authority,894.34,31113801
Corona Energy,08/04/2022,Premises Related Expenditure,Gas,Greater Manchester Combined Authority,"2,187.50",31113801
Corona Energy,08/04/2022,Premises Related Expenditure,Gas,Greater Manchester Combined Authority,912.36,31113801
Corona Energy,08/04/2022,Premises Related Expenditure,Gas,Greater Manchester Combined Authority,"1,501.61",31113801
Corona Energy,08/04/2022,Premises Related Expenditure,Gas,Greater Manchester Combined Authority,595.54,31113801
Corona Energy,08/04/2022,Premises Related Expenditure,Gas,Greater Manchester Combined Authority,713.77,31113801
Corona Energy,08/04/2022,Premises Related Expenditure,Gas,Greater Manchester Combined Authority,515.24,31113801
Corona Energy,08/04/2022,Premises Related Expenditure,Gas,Greater Manchester Combined Authority,856.30,31113801
Corona Energy,08/04/2022,Premises Related Expenditure,Gas,Greater Manchester Combined Authority,"1,045.19",31113801
Corona Energy,08/04/2022,Premises Related Expenditure,Gas,Greater Manchester Combined Authority,996.09,31113801
Corona Energy,08/04/2022,Premises Related Expenditure,Gas,Greater Manchester Combined Authority,528.71,31113801
Corona Energy,08/04/2022,Premises Related Expenditure,Gas,Greater Manchester Combined Authority,"1,117.72",31113801
Corona Energy,08/04/2022,Premises Related Expenditure,Gas,Greater Manchester Combined Authority,601.71,31113801
GKR Partnerships,08/04/2022,"Supplies, Services & Other Expenses",Consultancy Fees,Greater Manchester Combined Authority,"6,200.00",31113782
Great Places Housing Group,08/04/2022,"Supplies, Services & Other Expenses",Professional Fees,Greater Manchester Combined Authority,"49,000.00",31113795
Justice and Care,08/04/2022,"Supplies, Services & Other Expenses",Partnerships,Greater Manchester Combined Authority,"4,000.00",31113635
King�s House Conference (Greater Manchester) Ltd,08/04/2022,"Supplies, Services & Other Expenses",Kitchen Equipment,Greater Manchester Combined Authority,520.00,31113718
Manchester City Council,08/04/2022,"Supplies, Services & Other Expenses",Equipment Hire,Greater Manchester Combined Authority,"1,780.00",31113785
Manchester City Council,08/04/2022,"Supplies, Services & Other Expenses",Equipment Hire,Greater Manchester Combined Authority,"1,450.00",31113786
Manchester City Council,08/04/2022,"Supplies, Services & Other Expenses",Equipment Hire,Greater Manchester Combined Authority,"1,450.00",31113787
Manchester City Council,08/04/2022,"Supplies, Services & Other Expenses",Equipment Hire,Greater Manchester Combined Authority,"1,450.00",31113788
Manchester City Council,08/04/2022,"Supplies, Services & Other Expenses",Equipment Hire,Greater Manchester Combined Authority,"1,450.00",31113791
Mantax,08/04/2022,Transport Related Expenditure,Officers Travel & Subsistence,Greater Manchester Combined Authority,530.60,31113790
NPOWER YORKSHIRE LTD,08/04/2022,Premises Related Expenditure,Electricity,Greater Manchester Combined Authority,"6,362.67",31113802
NPOWER YORKSHIRE LTD,08/04/2022,Premises Related Expenditure,Electricity,Greater Manchester Combined Authority,"5,346.07",31113802
NPOWER YORKSHIRE LTD,08/04/2022,Premises Related Expenditure,Electricity,Greater Manchester Combined Authority,"4,544.99",31113802
NPOWER YORKSHIRE LTD,08/04/2022,Premises Related Expenditure,Electricity,Greater Manchester Combined Authority,"6,707.82",31113802
NPOWER YORKSHIRE LTD,08/04/2022,Premises Related Expenditure,Electricity,Greater Manchester Combined Authority,"3,325.72",31113802
NPOWER YORKSHIRE LTD,08/04/2022,Premises Related Expenditure,Electricity,Greater Manchester Combined Authority,"4,359.59",31113802
NPOWER YORKSHIRE LTD,08/04/2022,Premises Related Expenditure,Electricity,Greater Manchester Combined Authority,513.37,31113803
NPOWER YORKSHIRE LTD,08/04/2022,Premises Related Expenditure,Electricity,Greater Manchester Combined Authority,567.23,31113803
NPOWER YORKSHIRE LTD,08/04/2022,Premises Related Expenditure,Electricity,Greater Manchester Combined Authority,681.89,31113803
NPOWER YORKSHIRE LTD,08/04/2022,Premises Related Expenditure,Electricity,Greater Manchester Combined Authority,731.71,31113803
NPOWER YORKSHIRE LTD,08/04/2022,Premises Related Expenditure,Electricity,Greater Manchester Combined Authority,"1,794.26",31113803
NPOWER YORKSHIRE LTD,08/04/2022,Premises Related Expenditure,Electricity,Greater Manchester Combined Authority,813.19,31113803
NPOWER YORKSHIRE LTD,08/04/2022,Premises Related Expenditure,Electricity,Greater Manchester Combined Authority,"1,762.40",31113803
NPOWER YORKSHIRE LTD,08/04/2022,Premises Related Expenditure,Electricity,Greater Manchester Combined Authority,"1,022.67",31113803
NPOWER YORKSHIRE LTD,08/04/2022,Premises Related Expenditure,Electricity,Greater Manchester Combined Authority,"1,883.98",31113803
NPOWER YORKSHIRE LTD,08/04/2022,Premises Related Expenditure,Electricity,Greater Manchester Combined Authority,818.36,31113803
NPOWER YORKSHIRE LTD,08/04/2022,Premises Related Expenditure,Electricity,Greater Manchester Combined Authority,622.08,31113803
NPOWER YORKSHIRE LTD,08/04/2022,Premises Related Expenditure,Electricity,Greater Manchester Combined Authority,825.52,31113803
NPOWER YORKSHIRE LTD,08/04/2022,Premises Related Expenditure,Electricity,Greater Manchester Combined Authority,556.79,31113803
NPOWER YORKSHIRE LTD,08/04/2022,Premises Related Expenditure,Electricity,Greater Manchester Combined Authority,705.02,31113803
NPOWER YORKSHIRE LTD,08/04/2022,Premises Related Expenditure,Electricity,Greater Manchester Combined Authority,"1,116.83",31113803
NPOWER YORKSHIRE LTD,08/04/2022,Premises Related Expenditure,Electricity,Greater Manchester Combined Authority,827.34,31113803
NPOWER YORKSHIRE LTD,08/04/2022,Premises Related Expenditure,Electricity,Greater Manchester Combined Authority,812.55,31113804
NPOWER YORKSHIRE LTD,08/04/2022,Premises Related Expenditure,Electricity,Greater Manchester Combined Authority,730.96,31113804
NPOWER YORKSHIRE LTD,08/04/2022,Premises Related Expenditure,Electricity,Greater Manchester Combined Authority,674.79,31113804
NPOWER YORKSHIRE LTD,08/04/2022,Premises Related Expenditure,Electricity,Greater Manchester Combined Authority,629.70,31113804
NPOWER YORKSHIRE LTD,08/04/2022,Premises Related Expenditure,Electricity,Greater Manchester Combined Authority,"1,299.61",31113804
NPOWER YORKSHIRE LTD,08/04/2022,Premises Related Expenditure,Electricity,Greater Manchester Combined Authority,"1,145.82",31113804
NPOWER YORKSHIRE LTD,08/04/2022,Premises Related Expenditure,Electricity,Greater Manchester Combined Authority,667.63,31113804
NPOWER YORKSHIRE LTD,08/04/2022,Premises Related Expenditure,Electricity,Greater Manchester Combined Authority,627.51,31113804
NPOWER YORKSHIRE LTD,08/04/2022,Premises Related Expenditure,Electricity,Greater Manchester Combined Authority,856.19,31113804
NPOWER YORKSHIRE LTD,08/04/2022,Premises Related Expenditure,Electricity,Greater Manchester Combined Authority,619.71,31113804
NPOWER YORKSHIRE LTD,08/04/2022,Premises Related Expenditure,Electricity,Greater Manchester Combined Authority,718.50,31113804
NPOWER YORKSHIRE LTD,08/04/2022,Premises Related Expenditure,Electricity,Greater Manchester Combined Authority,"1,138.83",31113804
NPOWER YORKSHIRE LTD,08/04/2022,Premises Related Expenditure,Electricity,Greater Manchester Combined Authority,"1,143.59",31113804
NPOWER YORKSHIRE LTD,08/04/2022,Premises Related Expenditure,Electricity,Greater Manchester Combined Authority,841.89,31113804
NPOWER YORKSHIRE LTD,08/04/2022,Premises Related Expenditure,Electricity,Greater Manchester Combined Authority,"1,114.18",31113804
NPOWER YORKSHIRE LTD,08/04/2022,Premises Related Expenditure,Electricity,Greater Manchester Combined Authority,"1,735.22",31113804
NPOWER YORKSHIRE LTD,08/04/2022,Premises Related Expenditure,Electricity,Greater Manchester Combined Authority,739.15,31113804
NPOWER YORKSHIRE LTD,08/04/2022,Premises Related Expenditure,Electricity,Greater Manchester Combined Authority,"3,325.72",31113802
NPOWER YORKSHIRE LTD,08/04/2022,Premises Related Expenditure,Electricity,Greater Manchester Combined Authority,"4,359.59",31113802
NPOWER YORKSHIRE LTD,08/04/2022,Premises Related Expenditure,Electricity,Greater Manchester Combined Authority,"5,346.07",31113802
NPOWER YORKSHIRE LTD,08/04/2022,Premises Related Expenditure,Electricity,Greater Manchester Combined Authority,"4,544.99",31113802
NPOWER YORKSHIRE LTD,08/04/2022,Premises Related Expenditure,Electricity,Greater Manchester Combined Authority,"6,707.82",31113802
NPOWER YORKSHIRE LTD,08/04/2022,Premises Related Expenditure,Electricity,Greater Manchester Combined Authority,"6,362.67",31113802
NPOWER YORKSHIRE LTD,08/04/2022,Premises Related Expenditure,Electricity,Greater Manchester Combined Authority,567.23,31113803
NPOWER YORKSHIRE LTD,08/04/2022,Premises Related Expenditure,Electricity,Greater Manchester Combined Authority,681.89,31113803
NPOWER YORKSHIRE LTD,08/04/2022,Premises Related Expenditure,Electricity,Greater Manchester Combined Authority,731.71,31113803
NPOWER YORKSHIRE LTD,08/04/2022,Premises Related Expenditure,Electricity,Greater Manchester Combined Authority,513.37,31113803
NPOWER YORKSHIRE LTD,08/04/2022,Premises Related Expenditure,Electricity,Greater Manchester Combined Authority,"1,762.40",31113803
NPOWER YORKSHIRE LTD,08/04/2022,Premises Related Expenditure,Electricity,Greater Manchester Combined Authority,"1,022.67",31113803
NPOWER YORKSHIRE LTD,08/04/2022,Premises Related Expenditure,Electricity,Greater Manchester Combined Authority,827.34,31113803
NPOWER YORKSHIRE LTD,08/04/2022,Premises Related Expenditure,Electricity,Greater Manchester Combined Authority,818.36,31113803
NPOWER YORKSHIRE LTD,08/04/2022,Premises Related Expenditure,Electricity,Greater Manchester Combined Authority,"1,883.98",31113803
NPOWER YORKSHIRE LTD,08/04/2022,Premises Related Expenditure,Electricity,Greater Manchester Combined Authority,622.08,31113803
NPOWER YORKSHIRE LTD,08/04/2022,Premises Related Expenditure,Electricity,Greater Manchester Combined Authority,825.52,31113803
NPOWER YORKSHIRE LTD,08/04/2022,Premises Related Expenditure,Electricity,Greater Manchester Combined Authority,556.79,31113803
NPOWER YORKSHIRE LTD,08/04/2022,Premises Related Expenditure,Electricity,Greater Manchester Combined Authority,705.02,31113803
NPOWER YORKSHIRE LTD,08/04/2022,Premises Related Expenditure,Electricity,Greater Manchester Combined Authority,"1,794.26",31113803
NPOWER YORKSHIRE LTD,08/04/2022,Premises Related Expenditure,Electricity,Greater Manchester Combined Authority,813.19,31113803
NPOWER YORKSHIRE LTD,08/04/2022,Premises Related Expenditure,Electricity,Greater Manchester Combined Authority,"1,116.83",31113803
NPOWER YORKSHIRE LTD,08/04/2022,Premises Related Expenditure,Electricity,Greater Manchester Combined Authority,"1,299.61",31113804
NPOWER YORKSHIRE LTD,08/04/2022,Premises Related Expenditure,Electricity,Greater Manchester Combined Authority,674.79,31113804
NPOWER YORKSHIRE LTD,08/04/2022,Premises Related Expenditure,Electricity,Greater Manchester Combined Authority,629.70,31113804
NPOWER YORKSHIRE LTD,08/04/2022,Premises Related Expenditure,Electricity,Greater Manchester Combined Authority,739.15,31113804
NPOWER YORKSHIRE LTD,08/04/2022,Premises Related Expenditure,Electricity,Greater Manchester Combined Authority,841.89,31113804
NPOWER YORKSHIRE LTD,08/04/2022,Premises Related Expenditure,Electricity,Greater Manchester Combined Authority,"1,114.18",31113804
NPOWER YORKSHIRE LTD,08/04/2022,Premises Related Expenditure,Electricity,Greater Manchester Combined Authority,627.51,31113804
NPOWER YORKSHIRE LTD,08/04/2022,Premises Related Expenditure,Electricity,Greater Manchester Combined Authority,667.63,31113804
NPOWER YORKSHIRE LTD,08/04/2022,Premises Related Expenditure,Electricity,Greater Manchester Combined Authority,"1,145.82",31113804
NPOWER YORKSHIRE LTD,08/04/2022,Premises Related Expenditure,Electricity,Greater Manchester Combined Authority,856.19,31113804
NPOWER YORKSHIRE LTD,08/04/2022,Premises Related Expenditure,Electricity,Greater Manchester Combined Authority,619.71,31113804
NPOWER YORKSHIRE LTD,08/04/2022,Premises Related Expenditure,Electricity,Greater Manchester Combined Authority,"1,138.83",31113804
NPOWER YORKSHIRE LTD,08/04/2022,Premises Related Expenditure,Electricity,Greater Manchester Combined Authority,718.50,31113804
NPOWER YORKSHIRE LTD,08/04/2022,Premises Related Expenditure,Electricity,Greater Manchester Combined Authority,812.55,31113804
NPOWER YORKSHIRE LTD,08/04/2022,Premises Related Expenditure,Electricity,Greater Manchester Combined Authority,730.96,31113804
NPOWER YORKSHIRE LTD,08/04/2022,Premises Related Expenditure,Electricity,Greater Manchester Combined Authority,"1,143.59",31113804
NPOWER YORKSHIRE LTD,08/04/2022,Premises Related Expenditure,Electricity,Greater Manchester Combined Authority,"1,735.22",31113804
Optimum Chauffers Ltd,08/04/2022,Transport Related Expenditure,Officers Travel & Subsistence,Greater Manchester Combined Authority,"1,281.36",20116981
Reed Specialist Recruitment Ltd,08/04/2022,Employees Pay,Agency Staff Costs,Greater Manchester Combined Authority,"3,435.40",31113796
Rock n� Real Estate Limited T/A Nexus Real Estate,08/04/2022,"Supplies, Services & Other Expenses",Members Conference Fees,Greater Manchester Combined Authority,"1,650.00",31113798
Swinton Masonic Club Limited,08/04/2022,Premises Related Expenditure,Programmed Repairs & Maintenance,Greater Manchester Combined Authority,"2,070.00",31113762
Swinton Masonic Club Limited,08/04/2022,Premises Related Expenditure,Programmed Repairs & Maintenance,Greater Manchester Combined Authority,"2,070.00",31113763
Transport for Greater Manchester ,08/04/2022,"Supplies, Services & Other Expenses",Management Fees,Greater Manchester Combined Authority,"71,618.71",31113800
United Flags And Flagstaffs Ltd,08/04/2022,"Supplies, Services & Other Expenses",Stationery,Greater Manchester Combined Authority,887.50,31112677
AVM Solutions UK,11/04/2022,Capital,ICT Capital Hardware,Greater Manchester Combined Authority,"4,783.35",31113833
GM Community Led Housing Ltd,11/04/2022,"Supplies, Services & Other Expenses",Grant Expenditure,Greater Manchester Combined Authority,"51,000.00",31113834
K LAMB ASSOCIATES LTD,11/04/2022,Indirect Employee Allowances,Training Course Fees,Greater Manchester Combined Authority,"8,500.00",31113231
Manchester City Council,11/04/2022,"Supplies, Services & Other Expenses",Equipment Hire,Greater Manchester Combined Authority,"1,420.00",31113784
Transport for Greater Manchester ,11/04/2022,"Supplies, Services & Other Expenses",Management Fees,Greater Manchester Combined Authority,"10,988.29",31113809
Transport for Greater Manchester ,11/04/2022,"Supplies, Services & Other Expenses",Management Fees,Greater Manchester Combined Authority,"7,156.33",31113810
THE HEIGHTEC GROUP LTD,11/04/2022,"Supplies, Services & Other Expenses",Operational Equipment Non-Consumables,Greater Manchester Combined Authority,634.22,31113828
The Institution of Fire Engineers,11/04/2022,Indirect Employee Allowances,Training Course Fees,Greater Manchester Combined Authority,"6,984.00",31113869
24 Hour Nationwide FM Services Ltd,12/04/2022,Premises Related Expenditure,Programmed Repairs & Maintenance,Greater Manchester Combined Authority,"1,594.27",31114041
Association Of Police And Crime Commissioners,12/04/2022,"Supplies, Services & Other Expenses",Commissioned Services,Greater Manchester Combined Authority,"31,200.00",31113978
Best Companies Ltd,12/04/2022,Indirect Employee Allowances,Training Course Fees,Greater Manchester Combined Authority,"20,870.50",31114037
Bid Group Ltd,12/04/2022,Capital,Estates Capital Contracts,Greater Manchester Combined Authority,"18,160.00",31114050
Bid Group Ltd,12/04/2022,Premises Related Expenditure,Responsive Repairs & Maintenance,Greater Manchester Combined Authority,"1,310.00",31113990
BRADSHAW GASS & HOPE LLP,12/04/2022,Capital,Estates Capital Contracts,Greater Manchester Combined Authority,"2,357.91",31113840
Cheshire Training Solutions Ltd,12/04/2022,Indirect Employee Allowances,Training Course Fees,Greater Manchester Combined Authority,"1,450.00",31113961
Cornerstone Design & Marketing Ltd,12/04/2022,"Supplies, Services & Other Expenses",Digital,Greater Manchester Combined Authority,680.00,31114005
DWF LLP,12/04/2022,"Supplies, Services & Other Expenses",Professional Fees,Greater Manchester Combined Authority,500.00,31114046
Evotix Limited,12/04/2022,"Supplies, Services & Other Expenses",Computer Software,Greater Manchester Combined Authority,"20,165.00",31113967
GKR Partnerships,12/04/2022,"Supplies, Services & Other Expenses",Consultancy Fees,Greater Manchester Combined Authority,"9,300.00",31113937
GM Business Support Ltd,12/04/2022,"Supplies, Services & Other Expenses",Grant Expenditure,Greater Manchester Combined Authority,"49,228.98",31114021
GML Joinery and Construction LLP,12/04/2022,Capital,Estates Capital Contracts,Greater Manchester Combined Authority,"6,500.00",31113963
Great Places Housing Group,12/04/2022,"Supplies, Services & Other Expenses",Commissioned Services,Greater Manchester Combined Authority,"28,145.99",31114030
Greater Manchester Sports Partnership T/A GREATERSPORT,12/04/2022,"Supplies, Services & Other Expenses",Contributions to ED&R Functions,Greater Manchester Combined Authority,"25,000.00",31113983
Gv Multi-Media,12/04/2022,Capital,ICT Capital Hardware,Greater Manchester Combined Authority,623.00,31114011
H JENKINSON & COMPANY LTD,12/04/2022,Premises Related Expenditure,Fixtures & Fittings,Greater Manchester Combined Authority,"1,130.22",31114035
H.H. Smith & Sons Co. Limited,12/04/2022,Capital,Estates Capital Contracts,Greater Manchester Combined Authority,"47,098.75",31113886
Haskel Energy Systems Ltd,12/04/2022,"Supplies, Services & Other Expenses",Operational Equipment Non-Consumables,Greater Manchester Combined Authority,"1,971.42",31113931
Insight Direct (UK) Limited,12/04/2022,"Supplies, Services & Other Expenses",Computer Hardware,Greater Manchester Combined Authority,"6,025.14",31113973
Insight Direct (UK) Limited,12/04/2022,"Supplies, Services & Other Expenses",Computer Hardware,Greater Manchester Combined Authority,603.97,31113974
John Berry Controls,12/04/2022,Premises Related Expenditure,Programmed Repairs & Maintenance,Greater Manchester Combined Authority,720.00,31113900
JRA Interpreting Ltd,12/04/2022,"Supplies, Services & Other Expenses",Professional Fees,Greater Manchester Combined Authority,750.00,31114032
NORTH WEST ENVIRONMENTAL SERVICES,12/04/2022,Premises Related Expenditure,Programmed Repairs & Maintenance,Greater Manchester Combined Authority,675.00,31113954
Objectivity Limited,12/04/2022,"Supplies, Services & Other Expenses",Professional Fees,Greater Manchester Combined Authority,"10,500.00",31113946
OTRA Ltd,12/04/2022,Transport Related Expenditure,Repairs and Maintenance - Transport,Greater Manchester Combined Authority,"1,185.50",31113926
Our Agency CIC,12/04/2022,"Supplies, Services & Other Expenses",Professional Fees,Greater Manchester Combined Authority,"1,640.00",31113982
PageOne Communications Ltd,12/04/2022,"Supplies, Services & Other Expenses",Other Communications Equipment,Greater Manchester Combined Authority,"7,704.00",31113831
Perfect Colours Ltd,12/04/2022,"Supplies, Services & Other Expenses",Computer Hardware,Greater Manchester Combined Authority,"1,050.00",31113620
PG BELL ELECTRICAL CONTRACTORS LTD,12/04/2022,Premises Related Expenditure,Responsive Repairs & Maintenance,Greater Manchester Combined Authority,659.50,31113839
Phoenix Software Ltd,12/04/2022,"Supplies, Services & Other Expenses",Computer Software,Greater Manchester Combined Authority,559.20,31113853
Phoenix Software Ltd,12/04/2022,"Supplies, Services & Other Expenses",Computer Software,Greater Manchester Combined Authority,"3,881.10",31113915
PLP Construction Ltd,12/04/2022,Capital,Estates Capital Contracts,Greater Manchester Combined Authority,"364,454.48",31113904
RADIOCOMS SYSTEMS LIMITED,12/04/2022,"Supplies, Services & Other Expenses",Other Communications Equipment,Greater Manchester Combined Authority,867.00,31114012
Redacted Personal Data,12/04/2022,"Supplies, Services & Other Expenses",Legal Liabilities,Greater Manchester Combined Authority,765.00,31113932
Reed Specialist Recruitment Ltd,12/04/2022,Employees Pay,Agency Staff Costs,Greater Manchester Combined Authority,"2,548.48",31113962
Ryedale Organics Ltd,12/04/2022,"Supplies, Services & Other Expenses",Waste Disposal Services,Greater Manchester Combined Authority,"89,029.11",31111336
Saffer Cooper Ltd,12/04/2022,"Supplies, Services & Other Expenses",Consultancy Fees,Greater Manchester Combined Authority,720.00,31114004
Salford City Council,12/04/2022,"Supplies, Services & Other Expenses",Grant Expenditure,Greater Manchester Combined Authority,"360,570.00",31113808
Salford City Council,12/04/2022,"Supplies, Services & Other Expenses",Grant Expenditure,Greater Manchester Combined Authority,"1,613,279.00",31114056
Stellar Network Solutions Ltd,12/04/2022,"Supplies, Services & Other Expenses",Other Communications Equipment,Greater Manchester Combined Authority,"3,490.00",31114013
Straight Manufacturing Ltd,12/04/2022,"Supplies, Services & Other Expenses",Waste Campaigns,Greater Manchester Combined Authority,922.92,31114057
Telent Technology Services Ltd,12/04/2022,"Supplies, Services & Other Expenses",Other Communications Equipment,Greater Manchester Combined Authority,"3,944.59",31113875
Telent Technology Services Ltd,12/04/2022,"Supplies, Services & Other Expenses",Other Communications Equipment,Greater Manchester Combined Authority,"11,544.94",31113874
The Financial Times Limited,12/04/2022,"Supplies, Services & Other Expenses",Subscriptions,Greater Manchester Combined Authority,"2,596.00",31113854
UNITED UTILITIES WATER PLC,12/04/2022,"Supplies, Services & Other Expenses",Hydrants Repairs,Greater Manchester Combined Authority,758.71,31113964
UNITED UTILITIES WATER PLC,12/04/2022,"Supplies, Services & Other Expenses",Hydrants Repairs,Greater Manchester Combined Authority,512.74,31113965
UNITED UTILITIES WATER PLC,12/04/2022,"Supplies, Services & Other Expenses",Hydrants Repairs,Greater Manchester Combined Authority,758.71,31113966
UNITED UTILITIES WATER PLC,12/04/2022,"Supplies, Services & Other Expenses",Hydrants Repairs,Greater Manchester Combined Authority,758.71,31114024
UNITED UTILITIES WATER PLC,12/04/2022,"Supplies, Services & Other Expenses",Hydrants Repairs,Greater Manchester Combined Authority,758.71,31114025
UNITED UTILITIES WATER PLC,12/04/2022,"Supplies, Services & Other Expenses",Hydrants Repairs,Greater Manchester Combined Authority,"1,286.80",31114027
UNITED UTILITIES WATER PLC,12/04/2022,"Supplies, Services & Other Expenses",Hydrants Repairs,Greater Manchester Combined Authority,"1,286.80",31114029
Barlows (UK) Ltd,13/04/2022,Premises Related Expenditure,Programmed Repairs & Maintenance,Greater Manchester Combined Authority,745.00,31114086
Bio Trading Limited,13/04/2022,"Supplies, Services & Other Expenses",Commissioned Services,Greater Manchester Combined Authority,"11,796.00",31114007
Biowise Limited (t/a Wastewise),13/04/2022,"Supplies, Services & Other Expenses",Waste Disposal Services,Greater Manchester Combined Authority,"32,720.17",31111557
Brighter Sound Ltd,13/04/2022,"Supplies, Services & Other Expenses",Grant Expenditure,Greater Manchester Combined Authority,"7,272.00",31114083
BROSTERS ENVIRONMENTAL LIMITED,13/04/2022,"Supplies, Services & Other Expenses",Waste Disposal Services,Greater Manchester Combined Authority,"24,272.89",31111376
Buy Me Media,13/04/2022,"Supplies, Services & Other Expenses",Waste Campaigns,Greater Manchester Combined Authority,"5,000.00",31114071
CIPFA BUSINESS LTD,13/04/2022,"Supplies, Services & Other Expenses",Consultancy Fees,Greater Manchester Combined Authority,500.00,31113905
Clarion Security Systems Ltd,13/04/2022,Premises Related Expenditure,Programmed Repairs & Maintenance,Greater Manchester Combined Authority,678.00,31114130
Elis UK Ltd,13/04/2022,"Supplies, Services & Other Expenses",PPE Maintenance,Greater Manchester Combined Authority,"7,669.87",31113681
GM Business Support Ltd,13/04/2022,"Supplies, Services & Other Expenses",Grant Expenditure,Greater Manchester Combined Authority,"-49,228.98",31114059
GM Business Support Ltd,13/04/2022,"Supplies, Services & Other Expenses",Grant Expenditure,Greater Manchester Combined Authority,"-49,228.98",31114060
GM Business Support Ltd,13/04/2022,"Supplies, Services & Other Expenses",Grant Expenditure,Greater Manchester Combined Authority,"328,092.00",31114058
GM Business Support Ltd,13/04/2022,"Supplies, Services & Other Expenses",Grant Expenditure,Greater Manchester Combined Authority,"49,228.98",31114059
GM Business Support Ltd,13/04/2022,"Supplies, Services & Other Expenses",Grant Expenditure,Greater Manchester Combined Authority,"49,228.98",31114061
GM Business Support Ltd,13/04/2022,"Supplies, Services & Other Expenses",Grant Expenditure,Greater Manchester Combined Authority,"163,852.00",31114089
Quality Data Analysis Services Ltd,13/04/2022,Indirect Employee Allowances,Other Training Expenses,Greater Manchester Combined Authority,"1,995.00",31113896
SPW Consulting,13/04/2022,"Supplies, Services & Other Expenses",Professional Fees,Greater Manchester Combined Authority,600.00,31114068
SSS Public Safety Limited,13/04/2022,"Supplies, Services & Other Expenses",Computer Software,Greater Manchester Combined Authority,"12,120.00",31114077
Standby Productions Ltd,13/04/2022,"Supplies, Services & Other Expenses",Digital,Greater Manchester Combined Authority,"2,840.00",31114084
Transport for Greater Manchester ,13/04/2022,Capital,Capital Professional Fees,Greater Manchester Combined Authority,"8,603.07",31114069
The Growth Company,13/04/2022,"Supplies, Services & Other Expenses",Contributions to ED&R Functions,Greater Manchester Combined Authority,"147,561.00",31113987
The Innovation Unit Limited,13/04/2022,"Supplies, Services & Other Expenses",Commissioned Services,Greater Manchester Combined Authority,"74,610.00",31114070
THOMAS HARDIE COMMERCIALS LTD,13/04/2022,Transport Related Expenditure,Repairs and Maintenance - Transport,Greater Manchester Combined Authority,728.31,31114054
THOMAS HARDIE COMMERCIALS LTD,13/04/2022,Transport Related Expenditure,Repairs and Maintenance - Transport,Greater Manchester Combined Authority,526.79,31114055
Trafford College,13/04/2022,Capital,Capital Grant Expenditure,Greater Manchester Combined Authority,"631,500.00",20117291
Veolia ES (UK) Ltd,13/04/2022,Premises Related Expenditure,Fixtures & Fittings,Greater Manchester Combined Authority,523.92,31113959
WISE OWL BUSINESS SOLUTIONS,13/04/2022,Indirect Employee Allowances,Training Course Fees,Greater Manchester Combined Authority,"1,350.00",31114073
AALCO,14/04/2022,Transport Related Expenditure,Repairs and Maintenance - Transport,Greater Manchester Combined Authority,982.00,31114144
ANS Group PLC,14/04/2022,"Supplies, Services & Other Expenses",Professional Fees,Greater Manchester Combined Authority,"-5,000.00",31114139
ANS Group PLC,14/04/2022,"Supplies, Services & Other Expenses",Professional Fees,Greater Manchester Combined Authority,"10,000.00",31114140
Centerprise International Ltd,14/04/2022,Capital,ICT Capital Hardware,Greater Manchester Combined Authority,800.00,31114181
Home Office,14/04/2022,"Supplies, Services & Other Expenses",Other Communications Equipment,Greater Manchester Combined Authority,"11,131.69",31114171
Northern Housing Consortium Ltd,14/04/2022,"Supplies, Services & Other Expenses",Subscriptions,Greater Manchester Combined Authority,"5,900.00",31114167
Objectivity Limited,14/04/2022,"Supplies, Services & Other Expenses",Professional Fees,Greater Manchester Combined Authority,"3,354.00",31114150
PG BELL ELECTRICAL CONTRACTORS LTD,14/04/2022,Premises Related Expenditure,Responsive Repairs & Maintenance,Greater Manchester Combined Authority,"2,490.00",31114238
RADIOCOMS SYSTEMS LIMITED,14/04/2022,"Supplies, Services & Other Expenses",Other Communications Equipment,Greater Manchester Combined Authority,"9,549.00",31114228
Salford City Council,14/04/2022,"Supplies, Services & Other Expenses",Subscriptions,Greater Manchester Combined Authority,"24,225.00",31113797
Transport for Greater Manchester ,14/04/2022,Capital,Capital Professional Fees,Greater Manchester Combined Authority,"10,507.64",31114177
Transport for Greater Manchester ,14/04/2022,Capital,Capital Professional Fees,Greater Manchester Combined Authority,"29,631.01",31114178
Transport for Greater Manchester  Interbank,14/04/2022,"Supplies, Services & Other Expenses",Grant Expenditure,Greater Manchester Combined Authority,"45,833.33",20117328
Transport for Greater Manchester  Interbank,14/04/2022,"Supplies, Services & Other Expenses",Grant Expenditure,Greater Manchester Combined Authority,"1,350,000.00",20117328
Transport for Greater Manchester  Interbank,14/04/2022,"Supplies, Services & Other Expenses",Grant Expenditure,Greater Manchester Combined Authority,"982,083.33",20117328
Transport for Greater Manchester  Interbank,14/04/2022,"Supplies, Services & Other Expenses",Grant Expenditure,Greater Manchester Combined Authority,"1,324,583.33",20117328
Transport for Greater Manchester  Interbank,14/04/2022,"Supplies, Services & Other Expenses",TFGM Revenue Support Grant,Greater Manchester Combined Authority,"10,408,583.00",20117328
THOMAS HARDIE COMMERCIALS LTD,14/04/2022,Transport Related Expenditure,Repairs and Maintenance - Transport,Greater Manchester Combined Authority,502.85,31114079
THOMAS HARDIE COMMERCIALS LTD,14/04/2022,Transport Related Expenditure,Repairs and Maintenance - Transport,Greater Manchester Combined Authority,572.51,31114220
UNITED UTILITIES WATER PLC,14/04/2022,"Supplies, Services & Other Expenses",Hydrants Repairs,Greater Manchester Combined Authority,"1,286.80",31114208
Watts Group Limited,14/04/2022,"Supplies, Services & Other Expenses",Professional Fees,Greater Manchester Combined Authority,775.00,31114240
Whittan Industrial Ltd,14/04/2022,Capital,Estates Capital Contracts,Greater Manchester Combined Authority,"13,812.62",31114080
Redacted Personal Data,18/04/2022,Transport Related Expenditure,Repairs and Maintenance - Transport,Greater Manchester Combined Authority,"1,234.70",31114065
Redacted Personal Data,19/04/2022,"Supplies, Services & Other Expenses",Professional Fees,Greater Manchester Combined Authority,"1,550.00",31114225
Aquinas College,19/04/2022,"Supplies, Services & Other Expenses",Grant Expenditure,Greater Manchester Combined Authority,"-10,800.00",31114282
Aquinas College,19/04/2022,"Supplies, Services & Other Expenses",Grant Expenditure,Greater Manchester Combined Authority,"10,817.34",31114280
BAUER KOMPRESSOREN UK LTD,19/04/2022,Capital,Capital Equipment,Greater Manchester Combined Authority,"9,424.00",31114239
BAUER KOMPRESSOREN UK LTD,19/04/2022,"Supplies, Services & Other Expenses",Operational Equipment Non-Consumables,Greater Manchester Combined Authority,766.80,31114226
Bolton College,19/04/2022,"Supplies, Services & Other Expenses",Grant Expenditure,Greater Manchester Combined Authority,"467,508.48",31114270
Bolton MBC,19/04/2022,"Supplies, Services & Other Expenses",Grant Expenditure,Greater Manchester Combined Authority,"275,148.90",31114264
BRADSHAW GASS & HOPE LLP,19/04/2022,Capital,Estates Capital Contracts,Greater Manchester Combined Authority,920.00,31114256
Bury College,19/04/2022,"Supplies, Services & Other Expenses",Grant Expenditure,Greater Manchester Combined Authority,"274,389.91",31114271
Bury Council,19/04/2022,"Supplies, Services & Other Expenses",Grant Expenditure,Greater Manchester Combined Authority,"181,398.60",31114265
DELL COMPUTER CORPORATION LTD,19/04/2022,"Supplies, Services & Other Expenses",Computer Hardware,Greater Manchester Combined Authority,745.25,31114326
DWF LLP,19/04/2022,"Supplies, Services & Other Expenses",Professional Fees,Greater Manchester Combined Authority,"25,884.50",31114328
Glorious Creative Limited,19/04/2022,"Supplies, Services & Other Expenses",Professional Fees,Greater Manchester Combined Authority,"2,150.00",31114179
Guardian Media Group,19/04/2022,Indirect Employee Allowances,Advertising: Employees,Greater Manchester Combined Authority,575.00,31114224
Hopwood Hall College,19/04/2022,"Supplies, Services & Other Expenses",Grant Expenditure,Greater Manchester Combined Authority,"598,953.03",31114272
I.J. KENDRICK LIMITED,19/04/2022,Premises Related Expenditure,Responsive Repairs & Maintenance,Greater Manchester Combined Authority,"5,980.00",31114293
J Fletcher (Engineers) Ltd,19/04/2022,Premises Related Expenditure,Responsive Repairs & Maintenance,Greater Manchester Combined Authority,617.55,31114291
Legacy Telecom Ltd,19/04/2022,"Supplies, Services & Other Expenses",Other Communications Equipment,Greater Manchester Combined Authority,"1,006.80",31114191
LTE Group (The Manchester College),19/04/2022,"Supplies, Services & Other Expenses",Grant Expenditure,Greater Manchester Combined Authority,"2,223,694.21",31114273
Manchester City Council,19/04/2022,"Supplies, Services & Other Expenses",Grant Expenditure,Greater Manchester Combined Authority,"967,530.78",31114266
Manchester City Council,19/04/2022,"Supplies, Services & Other Expenses",Professional Fees,Greater Manchester Combined Authority,"37,584.60",31114305
Manchester City Council,19/04/2022,Capital,Capital Grant Expenditure,Greater Manchester Combined Authority,"109,682.60",31113753
National Fire Chiefs Council,19/04/2022,"Supplies, Services & Other Expenses",Professional Fees,Greater Manchester Combined Authority,"65,000.00",31114311
Oldham College,19/04/2022,"Supplies, Services & Other Expenses",Grant Expenditure,Greater Manchester Combined Authority,"409,873.55",31114276
OLDHAM MET BOROUGH,19/04/2022,"Supplies, Services & Other Expenses",Grant Expenditure,Greater Manchester Combined Authority,"356,411.98",31114267
People Asset Management Ltd,19/04/2022,Indirect Employee Allowances,Medical Fees,Greater Manchester Combined Authority,"28,006.00",31114324
People Asset Management Ltd,19/04/2022,Indirect Employee Allowances,Medical Fees,Greater Manchester Combined Authority,"10,843.25",31114324
Rochdale Metropolitan Borough Council,19/04/2022,Premises Related Expenditure,Rates,Greater Manchester Combined Authority,"5,482.00",20117396
Rochdale Metropolitan Borough Council,19/04/2022,Premises Related Expenditure,Rates,Greater Manchester Combined Authority,"1,096.00",20117396
Rochdale Metropolitan Borough Council,19/04/2022,Premises Related Expenditure,Rates,Greater Manchester Combined Authority,"1,873.50",20117396
Salford City College,19/04/2022,"Supplies, Services & Other Expenses",Grant Expenditure,Greater Manchester Combined Authority,"780,866.71",31114274
Salford City Council,19/04/2022,Capital,Capital Grant Expenditure,Greater Manchester Combined Authority,"213,990.86",31113704
Seddons (Plant & Engineers) Ltd,19/04/2022,Premises Related Expenditure,Waste Site Programmed,Greater Manchester Combined Authority,"1,208.26",31114332
ServiceMaster Manchester Contract Services,19/04/2022,Employees Pay,Agency Staff Costs,Greater Manchester Combined Authority,650.90,31114128
Stamford Park Trust,19/04/2022,"Supplies, Services & Other Expenses",Grant Expenditure,Greater Manchester Combined Authority,"19,937.13",31114281
Standby Productions Ltd,19/04/2022,"Supplies, Services & Other Expenses",Events,Greater Manchester Combined Authority,"1,500.00",31113056
Stockport MBC,19/04/2022,Premises Related Expenditure,Rates,Greater Manchester Combined Authority,"1,660.75",20117396
Stockport MBC,19/04/2022,Premises Related Expenditure,Rates,Greater Manchester Combined Authority,"1,717.50",20117396
Stockport MBC,19/04/2022,"Supplies, Services & Other Expenses",Grant Expenditure,Greater Manchester Combined Authority,"153,839.73",31114269
Talk Talk Business,19/04/2022,"Supplies, Services & Other Expenses",Other Communications Equipment,Greater Manchester Combined Authority,728.54,31114244
Talk Talk Business,19/04/2022,"Supplies, Services & Other Expenses",Other Communications Equipment,Greater Manchester Combined Authority,"2,324.25",31114245
Talk Talk Business,19/04/2022,"Supplies, Services & Other Expenses",Other Communications Equipment,Greater Manchester Combined Authority,728.54,31114246
Tameside College,19/04/2022,"Supplies, Services & Other Expenses",Grant Expenditure,Greater Manchester Combined Authority,"340,642.87",31114275
TAMESIDE MBC,19/04/2022,"Supplies, Services & Other Expenses",Contributions to ED&R Functions,Greater Manchester Combined Authority,"804,083.00",31114248
TAMESIDE MBC,19/04/2022,Capital,Capital Grant Expenditure,Greater Manchester Combined Authority,"123,734.91",31112485
Trafford College,19/04/2022,"Supplies, Services & Other Expenses",Grant Expenditure,Greater Manchester Combined Authority,"722,523.42",31114277
Trafford College,19/04/2022,"Supplies, Services & Other Expenses",Grant Expenditure,Greater Manchester Combined Authority,"22,124.38",31114279
United Kingdom Accreditation Service,19/04/2022,Indirect Employee Allowances,Training Course Fees,Greater Manchester Combined Authority,"1,989.00",31114310
UNIVERSITY OF LEEDS,19/04/2022,Indirect Employee Allowances,Training Course Fees,Greater Manchester Combined Authority,"7,975.00",31113730
We Are Snook Limited,19/04/2022,"Supplies, Services & Other Expenses",Consultancy Fees,Greater Manchester Combined Authority,"9,999.00",31112488
Wigan & Leigh College,19/04/2022,"Supplies, Services & Other Expenses",Grant Expenditure,Greater Manchester Combined Authority,"458,359.25",31114278
WIGAN MBC,19/04/2022,"Supplies, Services & Other Expenses",Grant Expenditure,Greater Manchester Combined Authority,"96,811.00",31114268
WIGAN MBC,19/04/2022,"Supplies, Services & Other Expenses",Grant Expenditure,Greater Manchester Combined Authority,"281,787.60",31114331
Work in Mind,19/04/2022,Indirect Employee Allowances,Medical Fees,Greater Manchester Combined Authority,802.15,31114287
24 Hour Nationwide FM Services Ltd,20/04/2022,Premises Related Expenditure,Programmed Repairs & Maintenance,Greater Manchester Combined Authority,"1,234.05",31114382
24 Hour Nationwide FM Services Ltd,20/04/2022,Premises Related Expenditure,Programmed Repairs & Maintenance,Greater Manchester Combined Authority,"1,273.02",31114383
24 Hour Nationwide FM Services Ltd,20/04/2022,Premises Related Expenditure,Programmed Repairs & Maintenance,Greater Manchester Combined Authority,"1,267.76",31114384
24 Hour Nationwide FM Services Ltd,20/04/2022,Premises Related Expenditure,Programmed Repairs & Maintenance,Greater Manchester Combined Authority,"1,309.10",31114385
24 Hour Nationwide FM Services Ltd,20/04/2022,Premises Related Expenditure,Programmed Repairs & Maintenance,Greater Manchester Combined Authority,"1,267.76",31114386
24 Hour Nationwide FM Services Ltd,20/04/2022,Premises Related Expenditure,Programmed Repairs & Maintenance,Greater Manchester Combined Authority,785.46,31114387
24 Hour Nationwide FM Services Ltd,20/04/2022,Premises Related Expenditure,Programmed Repairs & Maintenance,Greater Manchester Combined Authority,"1,350.44",31114389
24 Hour Nationwide FM Services Ltd,20/04/2022,Premises Related Expenditure,Programmed Repairs & Maintenance,Greater Manchester Combined Authority,937.04,31114390
24 Hour Nationwide FM Services Ltd,20/04/2022,Premises Related Expenditure,Programmed Repairs & Maintenance,Greater Manchester Combined Authority,"1,102.40",31114392
24 Hour Nationwide FM Services Ltd,20/04/2022,Premises Related Expenditure,Programmed Repairs & Maintenance,Greater Manchester Combined Authority,"1,350.44",31114393
24 Hour Nationwide FM Services Ltd,20/04/2022,Premises Related Expenditure,Programmed Repairs & Maintenance,Greater Manchester Combined Authority,"1,281.54",31114394
ANS Group PLC,20/04/2022,"Supplies, Services & Other Expenses",Professional Fees,Greater Manchester Combined Authority,"10,000.00",31114381
ARC4 LIMITED,20/04/2022,"Supplies, Services & Other Expenses",Consultancy Fees,Greater Manchester Combined Authority,"9,460.00",31114198
Bury Council,20/04/2022,Premises Related Expenditure,Rates,Greater Manchester Combined Authority,"2,404.75",20117497
Cartwheel Arts,20/04/2022,"Supplies, Services & Other Expenses",Professional Fees,Greater Manchester Combined Authority,620.00,31114262
Centerprise International Ltd,20/04/2022,"Supplies, Services & Other Expenses",Outsourced Services IT,Greater Manchester Combined Authority,"36,414.00",31114283
Corps Security (UK) Limited,20/04/2022,Premises Related Expenditure,Programmed Repairs & Maintenance,Greater Manchester Combined Authority,"9,981.48",31114307
Corps Security (UK) Limited,20/04/2022,Premises Related Expenditure,Programmed Repairs & Maintenance,Greater Manchester Combined Authority,"9,981.48",31114308
Evotix Limited,20/04/2022,"Supplies, Services & Other Expenses",Computer Software,Greater Manchester Combined Authority,"20,165.00",31114395
Floorbrite Cleaning Contractors Ltd,20/04/2022,Employees Pay,Agency Staff Costs,Greater Manchester Combined Authority,"1,158.24",31114398
Floorbrite Cleaning Contractors Ltd,20/04/2022,Employees Pay,Agency Staff Costs,Greater Manchester Combined Authority,746.12,31114399
Floorbrite Cleaning Contractors Ltd,20/04/2022,Employees Pay,Agency Staff Costs,Greater Manchester Combined Authority,893.24,31114401
Floorbrite Cleaning Contractors Ltd,20/04/2022,Employees Pay,Agency Staff Costs,Greater Manchester Combined Authority,901.22,31114402
H JENKINSON & COMPANY LTD,20/04/2022,Premises Related Expenditure,Fixtures & Fittings,Greater Manchester Combined Authority,753.48,31113996
Open Data Institute,20/04/2022,"Supplies, Services & Other Expenses",Subscriptions,Greater Manchester Combined Authority,"2,200.00",31114407
PageOne Communications Ltd,20/04/2022,"Supplies, Services & Other Expenses",Other Communications Equipment,Greater Manchester Combined Authority,"11,340.00",31114350
PageOne Communications Ltd,20/04/2022,"Supplies, Services & Other Expenses",Other Communications Equipment,Greater Manchester Combined Authority,"2,052.00",31114352
Redacted Personal Data,20/04/2022,"Supplies, Services & Other Expenses",Professional Fees,Greater Manchester Combined Authority,"5,000.00",31113292
Reed Specialist Recruitment Ltd,20/04/2022,Employees Pay,Agency Staff Costs,Greater Manchester Combined Authority,"6,064.56",31114333
Salford City Council,20/04/2022,"Supplies, Services & Other Expenses",Professional Fees,Greater Manchester Combined Authority,958.33,31114353
THOMAS HARDIE COMMERCIALS LTD,20/04/2022,Transport Related Expenditure,Repairs and Maintenance - Transport,Greater Manchester Combined Authority,913.87,31114375
Umbraco A/S,20/04/2022,Indirect Employee Allowances,IT Training,Greater Manchester Combined Authority,909.00,31114406
Veolia ES (UK) Ltd,20/04/2022,Premises Related Expenditure,Programmed Repairs & Maintenance,Greater Manchester Combined Authority,599.40,31114370
Access To Music Ltd t/a Access Creative College,21/04/2022,"Supplies, Services & Other Expenses",Commissioned Services,Greater Manchester Combined Authority,"18,589.97",31114430
Aerial Motion Pictures LTD T/A UAVHUB,21/04/2022,Indirect Employee Allowances,Training Course Fees,Greater Manchester Combined Authority,"1,245.85",31114364
Allstar Business Solutions Ltd,21/04/2022,Transport Related Expenditure,Fuel,Greater Manchester Combined Authority,"69,786.87",20117498
Ashdown Phillips & Partners,21/04/2022,Premises Related Expenditure,Electricity,Greater Manchester Combined Authority,"6,184.84",31114498
Ashdown Phillips & Partners,21/04/2022,Premises Related Expenditure,Electricity,Greater Manchester Combined Authority,"6,184.84",31114498
Babington Business College,21/04/2022,"Supplies, Services & Other Expenses",Commissioned Services,Greater Manchester Combined Authority,"28,443.19",31114431
Back 2 Work Complete Training Ltd,21/04/2022,"Supplies, Services & Other Expenses",Commissioned Services,Greater Manchester Combined Authority,"177,683.01",31114432
Back 2 Work Complete Training Ltd,21/04/2022,"Supplies, Services & Other Expenses",Commissioned Services,Greater Manchester Combined Authority,"7,756.59",31114466
Blackstone Chambers,21/04/2022,"Supplies, Services & Other Expenses",Professional Fees,Greater Manchester Combined Authority,650.00,31114344
Blackstone Chambers,21/04/2022,"Supplies, Services & Other Expenses",Professional Fees,Greater Manchester Combined Authority,500.00,31114344
Bolton College,21/04/2022,"Supplies, Services & Other Expenses",Commissioned Services,Greater Manchester Combined Authority,"1,279.26",31114448
Bolton College,21/04/2022,"Supplies, Services & Other Expenses",Commissioned Services,Greater Manchester Combined Authority,"7,381.89",31114467
Bury College,21/04/2022,"Supplies, Services & Other Expenses",Commissioned Services,Greater Manchester Combined Authority,"7,525.17",31114449
Bury College,21/04/2022,"Supplies, Services & Other Expenses",Commissioned Services,Greater Manchester Combined Authority,"10,272.50",31114468
Floorbrite Cleaning Contractors Ltd,21/04/2022,Employees Pay,Agency Staff Costs,Greater Manchester Combined Authority,"1,444.12",31114416
Floorbrite Cleaning Contractors Ltd,21/04/2022,Employees Pay,Agency Staff Costs,Greater Manchester Combined Authority,"1,282.22",31114417
Floorbrite Cleaning Contractors Ltd,21/04/2022,Employees Pay,Agency Staff Costs,Greater Manchester Combined Authority,"2,023.43",31114418
Floorbrite Cleaning Contractors Ltd,21/04/2022,Employees Pay,Agency Staff Costs,Greater Manchester Combined Authority,746.12,31114419
Gloucestershire College,21/04/2022,"Supplies, Services & Other Expenses",Commissioned Services,Greater Manchester Combined Authority,"42,221.58",31114433
Greater Manchester Coalition of Disabled People,21/04/2022,"Supplies, Services & Other Expenses",Grant Expenditure,Greater Manchester Combined Authority,"25,000.00",31114425
GROUNDWORK GREATER MANCHESTER,21/04/2022,"Supplies, Services & Other Expenses",Commissioned Services,Greater Manchester Combined Authority,"1,704.93",31114434
H JENKINSON & COMPANY LTD,21/04/2022,Premises Related Expenditure,Fixtures & Fittings,Greater Manchester Combined Authority,"1,318.59",31114414
Hopwood Hall College,21/04/2022,"Supplies, Services & Other Expenses",Commissioned Services,Greater Manchester Combined Authority,"9,581.54",31114450
Hopwood Hall College,21/04/2022,"Supplies, Services & Other Expenses",Commissioned Services,Greater Manchester Combined Authority,"13,652.74",31114469
LTE Group (The Manchester College),21/04/2022,"Supplies, Services & Other Expenses",Commissioned Services,Greater Manchester Combined Authority,"42,659.16",31114451
LTE Group (The Manchester College),21/04/2022,"Supplies, Services & Other Expenses",Commissioned Services,Greater Manchester Combined Authority,"24,878.40",31114470
Manchester City Council,21/04/2022,Premises Related Expenditure,Rates,Greater Manchester Combined Authority,"5,159.00",20117498
Manchester City Council,21/04/2022,Premises Related Expenditure,Rates,Greater Manchester Combined Authority,"1,925.75",20117498
Manchester City Council,21/04/2022,Premises Related Expenditure,Rates,Greater Manchester Combined Authority,"4,352.00",20117498
Manchester City Council,21/04/2022,"Supplies, Services & Other Expenses",Commissioned Services,Greater Manchester Combined Authority,"18,932.38",31114452
Manchester City Council,21/04/2022,"Supplies, Services & Other Expenses",Commissioned Services,Greater Manchester Combined Authority,"1,498.15",31114471
Mantra Learning Ltd,21/04/2022,"Supplies, Services & Other Expenses",Commissioned Services,Greater Manchester Combined Authority,"299,695.98",31114435
Mantra Learning Ltd,21/04/2022,"Supplies, Services & Other Expenses",Commissioned Services,Greater Manchester Combined Authority,"17,746.73",31114472
Maximus UK Services Ltd,21/04/2022,"Supplies, Services & Other Expenses",Commissioned Services,Greater Manchester Combined Authority,"95,689.53",31114436
Maximus UK Services Ltd,21/04/2022,"Supplies, Services & Other Expenses",Commissioned Services,Greater Manchester Combined Authority,892.58,31114454
Maximus UK Services Ltd,21/04/2022,"Supplies, Services & Other Expenses",Commissioned Services,Greater Manchester Combined Authority,"2,057.45",31114473
Mitie Ltd,21/04/2022,"Supplies, Services & Other Expenses",Commissioned Services,Greater Manchester Combined Authority,"198,864.80",31113264
Oldham College,21/04/2022,"Supplies, Services & Other Expenses",Commissioned Services,Greater Manchester Combined Authority,"3,155.50",31114461
Oldham College,21/04/2022,"Supplies, Services & Other Expenses",Commissioned Services,Greater Manchester Combined Authority,"9,128.90",31114479
Pathway First Limited,21/04/2022,"Supplies, Services & Other Expenses",Commissioned Services,Greater Manchester Combined Authority,"65,155.41",31114437
PeoplePlus Group Limited,21/04/2022,"Supplies, Services & Other Expenses",Commissioned Services,Greater Manchester Combined Authority,"46,063.72",31114438
PeoplePlus Group Limited,21/04/2022,"Supplies, Services & Other Expenses",Commissioned Services,Greater Manchester Combined Authority,748.59,31114455
Salford City College,21/04/2022,"Supplies, Services & Other Expenses",Commissioned Services,Greater Manchester Combined Authority,835.09,31114456
Salford City College,21/04/2022,"Supplies, Services & Other Expenses",Commissioned Services,Greater Manchester Combined Authority,"8,939.86",31114474
Seetec Business Technology Centre Limited,21/04/2022,"Supplies, Services & Other Expenses",Commissioned Services,Greater Manchester Combined Authority,"127,812.00",31114439
Seetec Business Technology Centre Limited,21/04/2022,"Supplies, Services & Other Expenses",Commissioned Services,Greater Manchester Combined Authority,"14,941.09",31114475
Stamford Park Trust,21/04/2022,"Supplies, Services & Other Expenses",Commissioned Services,Greater Manchester Combined Authority,"1,201.74",31114447
Standguide Limited,21/04/2022,"Supplies, Services & Other Expenses",Commissioned Services,Greater Manchester Combined Authority,"123,688.26",31114440
Standguide Limited,21/04/2022,"Supplies, Services & Other Expenses",Commissioned Services,Greater Manchester Combined Authority,"3,281.41",31114457
Standguide Limited,21/04/2022,"Supplies, Services & Other Expenses",Commissioned Services,Greater Manchester Combined Authority,"3,285.28",31114476
Stockport MBC,21/04/2022,"Supplies, Services & Other Expenses",Commissioned Services,Greater Manchester Combined Authority,"2,631.39",31114458
Stockport MBC,21/04/2022,"Supplies, Services & Other Expenses",Commissioned Services,Greater Manchester Combined Authority,"5,257.07",31114477
System Group Ltd,21/04/2022,"Supplies, Services & Other Expenses",Commissioned Services,Greater Manchester Combined Authority,"105,227.46",31114441
System Group Ltd,21/04/2022,"Supplies, Services & Other Expenses",Commissioned Services,Greater Manchester Combined Authority,"2,609.50",31114459
Tameside College,21/04/2022,"Supplies, Services & Other Expenses",Commissioned Services,Greater Manchester Combined Authority,"3,226.22",31114460
Tameside College,21/04/2022,"Supplies, Services & Other Expenses",Commissioned Services,Greater Manchester Combined Authority,"3,593.70",31114478
The Education and Skills Partnership Ltd,21/04/2022,"Supplies, Services & Other Expenses",Commissioned Services,Greater Manchester Combined Authority,"37,147.10",31114442
The Growth Company,21/04/2022,"Supplies, Services & Other Expenses",Commissioned Services,Greater Manchester Combined Authority,"252,251.69",31114443
The Training Brokers Limited,21/04/2022,"Supplies, Services & Other Expenses",Commissioned Services,Greater Manchester Combined Authority,"56,357.49",31114444
Total People Ltd,21/04/2022,"Supplies, Services & Other Expenses",Commissioned Services,Greater Manchester Combined Authority,"42,065.01",31114445
Trade Counter Direct,21/04/2022,"Supplies, Services & Other Expenses",Operational Equipment Non-Consumables,Greater Manchester Combined Authority,599.98,31114503
Trade Counter Direct,21/04/2022,Capital,Capital Equipment,Greater Manchester Combined Authority,"1,709.88",31114504
Trade Counter Direct,21/04/2022,Capital,Capital Equipment,Greater Manchester Combined Authority,899.82,31114505
Trade Counter Direct,21/04/2022,"Supplies, Services & Other Expenses",Office Equipment,Greater Manchester Combined Authority,"1,558.98",31114506
Trafford College,21/04/2022,"Supplies, Services & Other Expenses",Commissioned Services,Greater Manchester Combined Authority,-705.92,31114462
Trafford College,21/04/2022,"Supplies, Services & Other Expenses",Commissioned Services,Greater Manchester Combined Authority,"-64,670.11",31114480
Wigan & Leigh College,21/04/2022,"Supplies, Services & Other Expenses",Commissioned Services,Greater Manchester Combined Authority,"11,512.63",31114463
Wigan & Leigh College,21/04/2022,"Supplies, Services & Other Expenses",Commissioned Services,Greater Manchester Combined Authority,"5,619.63",31114481
WIGAN MBC,21/04/2022,"Supplies, Services & Other Expenses",Commissioned Services,Greater Manchester Combined Authority,"2,830.60",31114464
Workers� Educational Association,21/04/2022,"Supplies, Services & Other Expenses",Commissioned Services,Greater Manchester Combined Authority,"179,134.24",31114446
Workers� Educational Association,21/04/2022,"Supplies, Services & Other Expenses",Commissioned Services,Greater Manchester Combined Authority,"4,134.79",31114465
Alastair McLeod t/a Ascerta,22/04/2022,"Supplies, Services & Other Expenses",Professional Fees,Greater Manchester Combined Authority,990.00,31114669
BERRYMANS LACE MAWER LLP,22/04/2022,"Supplies, Services & Other Expenses",Professional Fees,Greater Manchester Combined Authority,"-47,860.00",31114538
BERRYMANS LACE MAWER LLP,22/04/2022,"Supplies, Services & Other Expenses",Professional Fees,Greater Manchester Combined Authority,"47,860.00",31114538
Carboncreative,22/04/2022,"Supplies, Services & Other Expenses",Publicity,Greater Manchester Combined Authority,"3,205.00",31114684
Fanfare North,22/04/2022,"Supplies, Services & Other Expenses",Stationery,Greater Manchester Combined Authority,"1,027.50",31111705
DELL COMPUTER CORPORATION LTD,22/04/2022,Capital,ICT Capital Hardware,Greater Manchester Combined Authority,"27,097.00",31114668
Gazelle Hotel,22/04/2022,"Supplies, Services & Other Expenses",Subsistence,Greater Manchester Combined Authority,"3,360.00",31113145
H JENKINSON & COMPANY LTD,22/04/2022,Premises Related Expenditure,Fixtures & Fittings,Greater Manchester Combined Authority,"1,506.96",31114415
H JENKINSON & COMPANY LTD,22/04/2022,Premises Related Expenditure,Fixtures & Fittings,Greater Manchester Combined Authority,941.85,31114664
H JENKINSON & COMPANY LTD,22/04/2022,Premises Related Expenditure,Fixtures & Fittings,Greater Manchester Combined Authority,565.11,31114663
H JENKINSON & COMPANY LTD,22/04/2022,Premises Related Expenditure,Fixtures & Fittings,Greater Manchester Combined Authority,"1,506.96",31114660
HM Prison & Probation Service,22/04/2022,"Supplies, Services & Other Expenses",Grant Expenditure,Greater Manchester Combined Authority,"5,201.98",31114686
Jaguarpress Ltd,22/04/2022,"Supplies, Services & Other Expenses",Events,Greater Manchester Combined Authority,672.00,31114081
Microsoft Ltd,22/04/2022,"Supplies, Services & Other Expenses",Computer Software,Greater Manchester Combined Authority,"59,317.00",31114543
Mitie Ltd,22/04/2022,"Supplies, Services & Other Expenses",Commissioned Services,Greater Manchester Combined Authority,"-8,031.18",31114515
Reed Specialist Recruitment Ltd,22/04/2022,Indirect Employee Allowances,Recruitment,Greater Manchester Combined Authority,556.50,31113975
THOMAS HARDIE COMMERCIALS LTD,22/04/2022,Transport Related Expenditure,Repairs and Maintenance - Transport,Greater Manchester Combined Authority,"1,332.66",31114536
THOMAS HARDIE COMMERCIALS LTD,22/04/2022,Transport Related Expenditure,Repairs and Maintenance - Transport,Greater Manchester Combined Authority,766.42,31114539
UNITED UTILITIES WATER PLC,22/04/2022,"Supplies, Services & Other Expenses",Hydrants Repairs,Greater Manchester Combined Authority,"1,286.80",31113268
PageOne Communications Ltd,23/04/2022,"Supplies, Services & Other Expenses",Other Communications Equipment,Greater Manchester Combined Authority,"-7,704.00",31113832
PageOne Communications Ltd,23/04/2022,"Supplies, Services & Other Expenses",Other Communications Equipment,Greater Manchester Combined Authority,"6,420.00",31113832
ANS Group PLC,25/04/2022,"Supplies, Services & Other Expenses",Computer Software,Greater Manchester Combined Authority,"19,884.12",31114721
Bolton MBC,25/04/2022,Premises Related Expenditure,Rates,Greater Manchester Combined Authority,"6,038.00",20117591
Bolton MBC,25/04/2022,Premises Related Expenditure,Rates,Greater Manchester Combined Authority,"3,072.00",20117591
Bolton MBC,25/04/2022,Premises Related Expenditure,Rates,Greater Manchester Combined Authority,"1,996.00",20117591
Bolton MBC,25/04/2022,Premises Related Expenditure,Rates,Greater Manchester Combined Authority,589.25,20117591
DELL COMPUTER CORPORATION LTD,25/04/2022,"Supplies, Services & Other Expenses",Computer Hardware,Greater Manchester Combined Authority,"2,699.85",31114141
DELL COMPUTER CORPORATION LTD,25/04/2022,"Supplies, Services & Other Expenses",Computer Hardware,Greater Manchester Combined Authority,"3,730.90",31114207
DRAEGER LTD,25/04/2022,"Supplies, Services & Other Expenses",Operational Equipment Non-Consumables,Greater Manchester Combined Authority,"4,627.40",31114687
Great Places Housing Group,25/04/2022,"Supplies, Services & Other Expenses",Professional Fees,Greater Manchester Combined Authority,"161,580.00",31114720
Greater Manchester Women�s Support Alliance,25/04/2022,"Supplies, Services & Other Expenses",Commissioned Services,Greater Manchester Combined Authority,"212,500.00",31114697
Hydronic System Optimisation TA Hysopt,25/04/2022,"Supplies, Services & Other Expenses",Professional Fees,Greater Manchester Combined Authority,"4,180.00",31114738
MWS Technology Ltd,25/04/2022,"Supplies, Services & Other Expenses",Systems Development,Greater Manchester Combined Authority,"3,900.00",31114713
OLDHAM MET BOROUGH,25/04/2022,Premises Related Expenditure,Rates,Greater Manchester Combined Authority,"3,712.00",20117591
OLDHAM MET BOROUGH,25/04/2022,Premises Related Expenditure,Rates,Greater Manchester Combined Authority,"2,891.00",20117591
Open Kitchen MCR,25/04/2022,"Supplies, Services & Other Expenses",Subsistence,Greater Manchester Combined Authority,"1,025.00",31114705
RADIOCOMS SYSTEMS LIMITED,25/04/2022,"Supplies, Services & Other Expenses",Other Communications Equipment,Greater Manchester Combined Authority,606.12,31114688
Salford City Council,25/04/2022,Premises Related Expenditure,Rates,Greater Manchester Combined Authority,"1,562.75",20117591
Salford City Council,25/04/2022,Premises Related Expenditure,Rates,Greater Manchester Combined Authority,"3,734.00",20117591
Salford City Council,25/04/2022,Premises Related Expenditure,Rates,Greater Manchester Combined Authority,"6,250.00",20117591
Salford City Council,25/04/2022,Premises Related Expenditure,Rates,Greater Manchester Combined Authority,"1,611.75",20117591
Salford City Council,25/04/2022,Premises Related Expenditure,Rates,Greater Manchester Combined Authority,"4,555.00",20117591
Salford City Council,25/04/2022,Premises Related Expenditure,Rates,Greater Manchester Combined Authority,"12,800.00",20117591
Stockport MBC,25/04/2022,Premises Related Expenditure,Rates,Greater Manchester Combined Authority,711.75,20117591
Stockport MBC,25/04/2022,Premises Related Expenditure,Rates,Greater Manchester Combined Authority,"5,429.00",20117591
Stockport MBC,25/04/2022,Premises Related Expenditure,Rates,Greater Manchester Combined Authority,"1,562.75",20117591
24 Hour Nationwide FM Services Ltd,26/04/2022,Premises Related Expenditure,Programmed Repairs & Maintenance,Greater Manchester Combined Authority,"1,271.21",31114882
24 Hour Nationwide FM Services Ltd,26/04/2022,Premises Related Expenditure,Programmed Repairs & Maintenance,Greater Manchester Combined Authority,923.26,31114911
Artal Fund Monitoring,26/04/2022,"Supplies, Services & Other Expenses",Professional Fees,Greater Manchester Combined Authority,750.00,31114919
Behavioural Insights Ltd,26/04/2022,"Supplies, Services & Other Expenses",Professional Fees,Greater Manchester Combined Authority,"32,790.00",31114916
Corps Security (UK) Limited,26/04/2022,Premises Related Expenditure,Programmed Repairs & Maintenance,Greater Manchester Combined Authority,"2,772.78",31114906
Corps Security (UK) Limited,26/04/2022,Premises Related Expenditure,Programmed Repairs & Maintenance,Greater Manchester Combined Authority,"8,595.92",31114904
Corps Security (UK) Limited,26/04/2022,Premises Related Expenditure,Programmed Repairs & Maintenance,Greater Manchester Combined Authority,"3,633.02",31114905
GM Business Support Ltd,26/04/2022,"Supplies, Services & Other Expenses",Grant Expenditure,Greater Manchester Combined Authority,"187,112.00",31114749
Helen Wilson Consultancy Limited,26/04/2022,"Supplies, Services & Other Expenses",Consultancy Fees,Greater Manchester Combined Authority,"2,333.50",31114909
Hydronic System Optimisation TA Hysopt,26/04/2022,"Supplies, Services & Other Expenses",Professional Fees,Greater Manchester Combined Authority,-880.00,31114892
Imprana Ltd,26/04/2022,"Supplies, Services & Other Expenses",Consultancy Fees,Greater Manchester Combined Authority,"8,050.00",31114926
Imprana Ltd,26/04/2022,"Supplies, Services & Other Expenses",Consultancy Fees,Greater Manchester Combined Authority,"1,200.00",31114929
NORTH WEST ENVIRONMENTAL SERVICES,26/04/2022,Premises Related Expenditure,Programmed Repairs & Maintenance,Greater Manchester Combined Authority,"5,425.00",31114746
Reach and Rescue Ltd,26/04/2022,"Supplies, Services & Other Expenses",Operational Equipment Non-Consumables,Greater Manchester Combined Authority,"36,633.60",31114716
Rendall and Rittner Limited (c/o Leftbank Management Limited),26/04/2022,Capital,Capital Grant Expenditure,Greater Manchester Combined Authority,"184,717.63",31114912
Transport for Greater Manchester ,26/04/2022,Capital,Traffic Signals,Greater Manchester Combined Authority,"14,550.00",31114829
Transport for Greater Manchester ,26/04/2022,Capital,Traffic Signals,Greater Manchester Combined Authority,"14,550.00",31114830
Transport for Greater Manchester ,26/04/2022,Capital,Traffic Signals,Greater Manchester Combined Authority,"14,550.00",31114831
Transport for Greater Manchester ,26/04/2022,Capital,Traffic Signals,Greater Manchester Combined Authority,"14,550.00",31114832
Transport for Greater Manchester ,26/04/2022,Capital,Traffic Signals,Greater Manchester Combined Authority,"11,400.00",31114833
Transport for Greater Manchester ,26/04/2022,Capital,Traffic Signals,Greater Manchester Combined Authority,"11,650.00",31114834
Transport for Greater Manchester ,26/04/2022,Capital,Traffic Signals,Greater Manchester Combined Authority,"32,427.50",31114835
Transport for Greater Manchester ,26/04/2022,Capital,Traffic Signals,Greater Manchester Combined Authority,"13,678.35",31114845
Transport for Greater Manchester ,26/04/2022,Capital,Traffic Signals,Greater Manchester Combined Authority,"13,560.25",31114846
Transport for Greater Manchester ,26/04/2022,Capital,Traffic Signals,Greater Manchester Combined Authority,"5,250.00",31114847
Transport for Greater Manchester ,26/04/2022,Capital,Traffic Signals,Greater Manchester Combined Authority,"15,060.56",31114836
Transport for Greater Manchester ,26/04/2022,Capital,Traffic Signals,Greater Manchester Combined Authority,"12,486.93",31114837
Transport for Greater Manchester ,26/04/2022,Capital,Traffic Signals,Greater Manchester Combined Authority,"15,188.00",31114838
Transport for Greater Manchester ,26/04/2022,Capital,Traffic Signals,Greater Manchester Combined Authority,"10,260.00",31114839
Transport for Greater Manchester ,26/04/2022,Capital,Traffic Signals,Greater Manchester Combined Authority,"17,293.24",31114842
Transport for Greater Manchester ,26/04/2022,Capital,Traffic Signals,Greater Manchester Combined Authority,"19,911.12",31114843
Transport for Greater Manchester ,26/04/2022,Capital,Traffic Signals,Greater Manchester Combined Authority,"7,216.64",31114844
Transport for Greater Manchester ,26/04/2022,Capital,Traffic Signals,Greater Manchester Combined Authority,"3,760.00",31114848
Transport for Greater Manchester ,26/04/2022,Capital,Traffic Signals,Greater Manchester Combined Authority,"5,775.69",31114849
Transport for Greater Manchester ,26/04/2022,Capital,Traffic Signals,Greater Manchester Combined Authority,"7,038.55",31114850
Transport for Greater Manchester ,26/04/2022,Capital,Traffic Signals,Greater Manchester Combined Authority,"9,225.08",31114851
Transport for Greater Manchester ,26/04/2022,Capital,Traffic Signals,Greater Manchester Combined Authority,"9,755.74",31114852
Transport for Greater Manchester ,26/04/2022,Capital,Traffic Signals,Greater Manchester Combined Authority,"4,091.00",31114853
Transport for Greater Manchester ,26/04/2022,Capital,Traffic Signals,Greater Manchester Combined Authority,500.00,31114854
Transport for Greater Manchester ,26/04/2022,Capital,Traffic Signals,Greater Manchester Combined Authority,"9,025.81",31114855
Transport for Greater Manchester ,26/04/2022,Capital,Traffic Signals,Greater Manchester Combined Authority,556.36,31114856
Transport for Greater Manchester ,26/04/2022,Capital,Traffic Signals,Greater Manchester Combined Authority,682.52,31114857
Transport for Greater Manchester ,26/04/2022,Capital,Traffic Signals,Greater Manchester Combined Authority,682.52,31114858
Transport for Greater Manchester ,26/04/2022,Capital,Traffic Signals,Greater Manchester Combined Authority,"3,083.61",31114859
Transport for Greater Manchester ,26/04/2022,Capital,Traffic Signals,Greater Manchester Combined Authority,"3,439.36",31114860
Transport for Greater Manchester ,26/04/2022,Capital,Traffic Signals,Greater Manchester Combined Authority,"3,953.25",31114861
Transport for Greater Manchester ,26/04/2022,Capital,Traffic Signals,Greater Manchester Combined Authority,"3,393.84",31114862
Transport for Greater Manchester ,26/04/2022,Capital,Traffic Signals,Greater Manchester Combined Authority,682.52,31114863
Transport for Greater Manchester ,26/04/2022,Capital,Traffic Signals,Greater Manchester Combined Authority,678.66,31114864
Transport for Greater Manchester ,26/04/2022,Capital,Traffic Signals,Greater Manchester Combined Authority,657.41,31114865
Transport for Greater Manchester ,26/04/2022,Capital,Traffic Signals,Greater Manchester Combined Authority,"3,291.78",31114866
Transport for Greater Manchester ,26/04/2022,Capital,Traffic Signals,Greater Manchester Combined Authority,553.32,31114867
Transport for Greater Manchester ,26/04/2022,Capital,Traffic Signals,Greater Manchester Combined Authority,"6,484.95",31114870
Transport for Greater Manchester ,26/04/2022,Capital,Traffic Signals,Greater Manchester Combined Authority,"4,502.75",31114871
Transport for Greater Manchester ,26/04/2022,Capital,Traffic Signals,Greater Manchester Combined Authority,"5,571.91",31114872
Transport for Greater Manchester ,26/04/2022,Capital,Traffic Signals,Greater Manchester Combined Authority,"32,597.30",31114875
Transport for Greater Manchester ,26/04/2022,Capital,Traffic Signals,Greater Manchester Combined Authority,"14,406.90",31114876
Transport for Greater Manchester ,26/04/2022,Capital,Traffic Signals,Greater Manchester Combined Authority,"12,068.57",31114873
Transport for Greater Manchester ,26/04/2022,Capital,Traffic Signals,Greater Manchester Combined Authority,"11,295.54",31114874
THOMAS HARDIE COMMERCIALS LTD,26/04/2022,Transport Related Expenditure,Repairs and Maintenance - Transport,Greater Manchester Combined Authority,711.02,31114744
TRAFFORD MBC,26/04/2022,Capital,Capital Grant Expenditure,Greater Manchester Combined Authority,"163,442.93",31114162
UNITED UTILITIES WATER PLC,26/04/2022,"Supplies, Services & Other Expenses",Hydrants Repairs,Greater Manchester Combined Authority,758.71,31114883
Watts Group Limited,26/04/2022,"Supplies, Services & Other Expenses",Professional Fees,Greater Manchester Combined Authority,"2,008.00",31114915
Wigan & Leigh College,26/04/2022,"Supplies, Services & Other Expenses",Professional Fees,Greater Manchester Combined Authority,"2,595.00",31114935
Addleshaw Goddard LLP,27/04/2022,"Supplies, Services & Other Expenses",Legal Liabilities,Greater Manchester Combined Authority,"34,000.00",31115005
Ashton Pioneer Homes Ltd,27/04/2022,Capital,Capital Grant Expenditure,Greater Manchester Combined Authority,"13,700.00",31114939
BAUER KOMPRESSOREN UK LTD,27/04/2022,"Supplies, Services & Other Expenses",Operational Equipment Non-Consumables,Greater Manchester Combined Authority,947.65,31114894
BAUER KOMPRESSOREN UK LTD,27/04/2022,"Supplies, Services & Other Expenses",Operational Equipment Non-Consumables,Greater Manchester Combined Authority,947.65,31114895
BAUER KOMPRESSOREN UK LTD,27/04/2022,"Supplies, Services & Other Expenses",Operational Equipment Non-Consumables,Greater Manchester Combined Authority,748.18,31114896
BAUER KOMPRESSOREN UK LTD,27/04/2022,"Supplies, Services & Other Expenses",Operational Equipment Non-Consumables,Greater Manchester Combined Authority,947.65,31114897
BAUER KOMPRESSOREN UK LTD,27/04/2022,"Supplies, Services & Other Expenses",Operational Equipment Non-Consumables,Greater Manchester Combined Authority,820.89,31114917
BAUER KOMPRESSOREN UK LTD,27/04/2022,"Supplies, Services & Other Expenses",Operational Equipment Non-Consumables,Greater Manchester Combined Authority,766.29,31114918
BERRYMANS LACE MAWER LLP,27/04/2022,"Supplies, Services & Other Expenses",Professional Fees,Greater Manchester Combined Authority,"-2,595.00",31114942
BERRYMANS LACE MAWER LLP,27/04/2022,"Supplies, Services & Other Expenses",Professional Fees,Greater Manchester Combined Authority,"2,595.00",31114942
BMG Research Ltd,27/04/2022,"Supplies, Services & Other Expenses",Graphics/ Branding,Greater Manchester Combined Authority,"19,484.00",31114987
CIPFA BUSINESS LTD,27/04/2022,"Supplies, Services & Other Expenses",Computer Software,Greater Manchester Combined Authority,"1,359.60",31114994
DIVRSE 1 LTD,27/04/2022,"Supplies, Services & Other Expenses",Professional Fees,Greater Manchester Combined Authority,713.37,31114933
Floorbrite Cleaning Contractors Ltd,27/04/2022,Employees Pay,Agency Staff Costs,Greater Manchester Combined Authority,"2,438.92",31113906
Floorbrite Cleaning Contractors Ltd,27/04/2022,Employees Pay,Agency Staff Costs,Greater Manchester Combined Authority,813.29,31113907
Floorbrite Cleaning Contractors Ltd,27/04/2022,Employees Pay,Agency Staff Costs,Greater Manchester Combined Authority,776.81,31113911
Floorbrite Cleaning Contractors Ltd,27/04/2022,Employees Pay,Agency Staff Costs,Greater Manchester Combined Authority,"1,364.24",31113994
Floorbrite Cleaning Contractors Ltd,27/04/2022,Employees Pay,Agency Staff Costs,Greater Manchester Combined Authority,"2,130.34",31113913
Floorbrite Cleaning Contractors Ltd,27/04/2022,Employees Pay,Agency Staff Costs,Greater Manchester Combined Authority,"1,287.99",31113914
Floorbrite Cleaning Contractors Ltd,27/04/2022,Employees Pay,Agency Staff Costs,Greater Manchester Combined Authority,"1,103.20",31113995
Floorbrite Cleaning Contractors Ltd,27/04/2022,Employees Pay,Agency Staff Costs,Greater Manchester Combined Authority,"1,185.70",31113908
Floorbrite Cleaning Contractors Ltd,27/04/2022,Employees Pay,Agency Staff Costs,Greater Manchester Combined Authority,853.12,31113909
Floorbrite Cleaning Contractors Ltd,27/04/2022,Employees Pay,Agency Staff Costs,Greater Manchester Combined Authority,746.10,31113910
Floorbrite Cleaning Contractors Ltd,27/04/2022,Employees Pay,Agency Staff Costs,Greater Manchester Combined Authority,761.59,31113912
GML Joinery and Construction LLP,27/04/2022,Capital,Estates Capital Contracts,Greater Manchester Combined Authority,"7,750.00",31114976
J Fletcher (Engineers) Ltd,27/04/2022,Premises Related Expenditure,Responsive Repairs & Maintenance,Greater Manchester Combined Authority,"2,582.00",31114974
Mother Mountain Productions CIC,27/04/2022,"Supplies, Services & Other Expenses",Grant Expenditure,Greater Manchester Combined Authority,"14,985.00",31114937
Northgate Vehicle Hire Ltd,27/04/2022,Transport Related Expenditure,Vehicle Leasing,Greater Manchester Combined Authority,518.84,31114952
Northgate Vehicle Hire Ltd,27/04/2022,Transport Related Expenditure,Vehicle Leasing,Greater Manchester Combined Authority,533.34,31114951
Northgate Vehicle Hire Ltd,27/04/2022,Transport Related Expenditure,Vehicle Leasing,Greater Manchester Combined Authority,518.84,31114954
Northgate Vehicle Hire Ltd,27/04/2022,Transport Related Expenditure,Vehicle Leasing,Greater Manchester Combined Authority,518.84,31114955
Northgate Vehicle Hire Ltd,27/04/2022,Transport Related Expenditure,Vehicle Leasing,Greater Manchester Combined Authority,518.84,31114969
Phoenix Software Ltd,27/04/2022,"Supplies, Services & Other Expenses",Computer Software,Greater Manchester Combined Authority,893.36,31114967
Pollen Studio,27/04/2022,"Supplies, Services & Other Expenses",Computer Software,Greater Manchester Combined Authority,"2,600.00",31114943
Redacted Personal Data,27/04/2022,Indirect Employee Allowances,Training Course Fees,Greater Manchester Combined Authority,700.00,31115000
Reed Specialist Recruitment Ltd,27/04/2022,Employees Pay,Agency Staff Costs,Greater Manchester Combined Authority,"3,879.52",31114908
Rentokil Initial UK Ltd,27/04/2022,Premises Related Expenditure,Programmed Repairs & Maintenance,Greater Manchester Combined Authority,535.55,31114970
St Mungo Community Housing Association,27/04/2022,"Supplies, Services & Other Expenses",Systems Development,Greater Manchester Combined Authority,"4,959.16",31114938
Transport for Greater Manchester ,27/04/2022,Capital,Traffic Signals,Greater Manchester Combined Authority,"-3,366.42",31114750
Transport for Greater Manchester ,27/04/2022,Capital,Traffic Signals,Greater Manchester Combined Authority,"-7,000.00",31114751
Transport for Greater Manchester ,27/04/2022,"Supplies, Services & Other Expenses",Traffic Signal Repairs,Greater Manchester Combined Authority,"3,020.38",31114826
Transport for Greater Manchester ,27/04/2022,"Supplies, Services & Other Expenses",Traffic Signal Repairs,Greater Manchester Combined Authority,"318,500.00",31114756
Transport for Greater Manchester ,27/04/2022,"Supplies, Services & Other Expenses",Traffic Signal Repairs,Greater Manchester Combined Authority,"1,234.47",31114802
Transport for Greater Manchester ,27/04/2022,"Supplies, Services & Other Expenses",Traffic Signal Repairs,Greater Manchester Combined Authority,"2,808.63",31114804
Transport for Greater Manchester ,27/04/2022,"Supplies, Services & Other Expenses",Traffic Signal Repairs,Greater Manchester Combined Authority,"1,057.89",31114806
Transport for Greater Manchester ,27/04/2022,"Supplies, Services & Other Expenses",Traffic Signal Repairs,Greater Manchester Combined Authority,"45,100.00",31114753
Transport for Greater Manchester ,27/04/2022,"Supplies, Services & Other Expenses",Traffic Signal Repairs,Greater Manchester Combined Authority,"1,059.90",31114807
Transport for Greater Manchester ,27/04/2022,"Supplies, Services & Other Expenses",Traffic Signal Repairs,Greater Manchester Combined Authority,"1,057.34",31114809
Transport for Greater Manchester ,27/04/2022,"Supplies, Services & Other Expenses",Traffic Signal Repairs,Greater Manchester Combined Authority,"1,538.24",31114811
Transport for Greater Manchester ,27/04/2022,"Supplies, Services & Other Expenses",Traffic Signal Repairs,Greater Manchester Combined Authority,"3,157.53",31114813
Transport for Greater Manchester ,27/04/2022,"Supplies, Services & Other Expenses",Traffic Signal Repairs,Greater Manchester Combined Authority,"2,302.86",31114815
Transport for Greater Manchester ,27/04/2022,"Supplies, Services & Other Expenses",Traffic Signal Repairs,Greater Manchester Combined Authority,"3,204.64",31114817
Transport for Greater Manchester ,27/04/2022,"Supplies, Services & Other Expenses",Traffic Signal Repairs,Greater Manchester Combined Authority,"22,804.34",31114818
Transport for Greater Manchester ,27/04/2022,"Supplies, Services & Other Expenses",Traffic Signal Repairs,Greater Manchester Combined Authority,"6,975.51",31114820
Transport for Greater Manchester ,27/04/2022,"Supplies, Services & Other Expenses",Traffic Signal Repairs,Greater Manchester Combined Authority,"2,029.93",31114824
Transport for Greater Manchester ,27/04/2022,"Supplies, Services & Other Expenses",Traffic Signal Repairs,Greater Manchester Combined Authority,"3,179.42",31114825
Transport for Greater Manchester ,27/04/2022,Capital,Traffic Signals,Greater Manchester Combined Authority,"4,549.81",31114755
Transport for Greater Manchester ,27/04/2022,Capital,Traffic Signals,Greater Manchester Combined Authority,"8,166.75",31114754
Transport for Greater Manchester ,27/04/2022,Capital,Traffic Signals,Greater Manchester Combined Authority,"1,561.59",31114788
Transport for Greater Manchester ,27/04/2022,Capital,Traffic Signals,Greater Manchester Combined Authority,"1,273.68",31114789
Transport for Greater Manchester ,27/04/2022,Capital,Traffic Signals,Greater Manchester Combined Authority,"1,273.68",31114790
Transport for Greater Manchester ,27/04/2022,Capital,Traffic Signals,Greater Manchester Combined Authority,"10,969.63",31114841
Transport for Greater Manchester ,27/04/2022,Capital,Traffic Signals,Greater Manchester Combined Authority,"2,470.00",31114786
Transport for Greater Manchester ,27/04/2022,Capital,Traffic Signals,Greater Manchester Combined Authority,"2,470.00",31114787
Transport for Greater Manchester ,27/04/2022,Capital,Traffic Signals,Greater Manchester Combined Authority,"1,544.69",31114791
Transport for Greater Manchester ,27/04/2022,Capital,Traffic Signals,Greater Manchester Combined Authority,"4,864.25",31114792
Transport for Greater Manchester ,27/04/2022,Capital,Traffic Signals,Greater Manchester Combined Authority,"19,911.12",31114793
Transport for Greater Manchester ,27/04/2022,Capital,Traffic Signals,Greater Manchester Combined Authority,"3,360.00",31114763
Transport for Greater Manchester ,27/04/2022,Capital,Traffic Signals,Greater Manchester Combined Authority,"3,947.36",31114765
Transport for Greater Manchester ,27/04/2022,Capital,Traffic Signals,Greater Manchester Combined Authority,850.14,31114757
Transport for Greater Manchester ,27/04/2022,Capital,Traffic Signals,Greater Manchester Combined Authority,"1,100.00",31114758
Transport for Greater Manchester ,27/04/2022,Capital,Traffic Signals,Greater Manchester Combined Authority,"1,200.00",31114759
Transport for Greater Manchester ,27/04/2022,Capital,Traffic Signals,Greater Manchester Combined Authority,"1,200.00",31114760
Transport for Greater Manchester ,27/04/2022,Capital,Traffic Signals,Greater Manchester Combined Authority,"2,500.00",31114800
Transport for Greater Manchester ,27/04/2022,Capital,Traffic Signals,Greater Manchester Combined Authority,"2,500.00",31114801
Transport for Greater Manchester ,27/04/2022,Capital,Traffic Signals,Greater Manchester Combined Authority,"1,200.00",31114761
Transport for Greater Manchester ,27/04/2022,Capital,Traffic Signals,Greater Manchester Combined Authority,"1,200.00",31114762
Transport for Greater Manchester ,27/04/2022,Capital,Traffic Signals,Greater Manchester Combined Authority,"1,200.00",31114764
Transport for Greater Manchester ,27/04/2022,Capital,Traffic Signals,Greater Manchester Combined Authority,"2,500.00",31114803
Transport for Greater Manchester ,27/04/2022,Capital,Traffic Signals,Greater Manchester Combined Authority,"2,500.00",31114805
Transport for Greater Manchester ,27/04/2022,Capital,Traffic Signals,Greater Manchester Combined Authority,"71,132.77",31114752
Transport for Greater Manchester ,27/04/2022,Capital,Traffic Signals,Greater Manchester Combined Authority,"11,445.00",31114827
Transport for Greater Manchester ,27/04/2022,Capital,Traffic Signals,Greater Manchester Combined Authority,"11,445.00",31114828
Transport for Greater Manchester ,27/04/2022,Capital,Traffic Signals,Greater Manchester Combined Authority,972.14,31114766
Transport for Greater Manchester ,27/04/2022,Capital,Traffic Signals,Greater Manchester Combined Authority,"2,500.00",31114808
Transport for Greater Manchester ,27/04/2022,Capital,Traffic Signals,Greater Manchester Combined Authority,"2,200.00",31114810
Transport for Greater Manchester ,27/04/2022,Capital,Traffic Signals,Greater Manchester Combined Authority,"2,500.00",31114812
Transport for Greater Manchester ,27/04/2022,Capital,Traffic Signals,Greater Manchester Combined Authority,"1,450.00",31114768
Transport for Greater Manchester ,27/04/2022,Capital,Traffic Signals,Greater Manchester Combined Authority,"1,450.00",31114769
Transport for Greater Manchester ,27/04/2022,Capital,Traffic Signals,Greater Manchester Combined Authority,"1,450.00",31114771
Transport for Greater Manchester ,27/04/2022,Capital,Traffic Signals,Greater Manchester Combined Authority,"1,450.00",31114772
Transport for Greater Manchester ,27/04/2022,Capital,Traffic Signals,Greater Manchester Combined Authority,"2,850.00",31114814
Transport for Greater Manchester ,27/04/2022,Capital,Traffic Signals,Greater Manchester Combined Authority,"2,470.00",31114767
Transport for Greater Manchester ,27/04/2022,Capital,Traffic Signals,Greater Manchester Combined Authority,"3,360.00",31114770
Transport for Greater Manchester ,27/04/2022,Capital,Traffic Signals,Greater Manchester Combined Authority,"4,430.00",31114773
Transport for Greater Manchester ,27/04/2022,Capital,Traffic Signals,Greater Manchester Combined Authority,"2,470.00",31114774
Transport for Greater Manchester ,27/04/2022,Capital,Traffic Signals,Greater Manchester Combined Authority,"2,470.00",31114776
Transport for Greater Manchester ,27/04/2022,Capital,Traffic Signals,Greater Manchester Combined Authority,"2,470.00",31114778
Transport for Greater Manchester ,27/04/2022,Capital,Traffic Signals,Greater Manchester Combined Authority,933.30,31114779
Transport for Greater Manchester ,27/04/2022,Capital,Traffic Signals,Greater Manchester Combined Authority,"2,850.00",31114816
Transport for Greater Manchester ,27/04/2022,Capital,Traffic Signals,Greater Manchester Combined Authority,"1,450.00",31114775
Transport for Greater Manchester ,27/04/2022,Capital,Traffic Signals,Greater Manchester Combined Authority,"1,450.00",31114777
Transport for Greater Manchester ,27/04/2022,Capital,Traffic Signals,Greater Manchester Combined Authority,"2,850.00",31114819
Transport for Greater Manchester ,27/04/2022,Capital,Traffic Signals,Greater Manchester Combined Authority,"2,420.00",31114794
Transport for Greater Manchester ,27/04/2022,Capital,Traffic Signals,Greater Manchester Combined Authority,"2,076.43",31114795
Transport for Greater Manchester ,27/04/2022,Capital,Traffic Signals,Greater Manchester Combined Authority,"2,076.43",31114796
Transport for Greater Manchester ,27/04/2022,Capital,Traffic Signals,Greater Manchester Combined Authority,"2,500.00",31114797
Transport for Greater Manchester ,27/04/2022,Capital,Traffic Signals,Greater Manchester Combined Authority,"2,500.00",31114798
Transport for Greater Manchester ,27/04/2022,Capital,Traffic Signals,Greater Manchester Combined Authority,"2,500.00",31114799
Transport for Greater Manchester ,27/04/2022,Capital,Traffic Signals,Greater Manchester Combined Authority,"8,500.00",31114840
Transport for Greater Manchester ,27/04/2022,Capital,Traffic Signals,Greater Manchester Combined Authority,"1,158.51",31114781
Transport for Greater Manchester ,27/04/2022,Capital,Traffic Signals,Greater Manchester Combined Authority,"1,724.92",31114821
Transport for Greater Manchester ,27/04/2022,Capital,Traffic Signals,Greater Manchester Combined Authority,"2,446.45",31114822
Transport for Greater Manchester ,27/04/2022,Capital,Traffic Signals,Greater Manchester Combined Authority,"1,690.53",31114823
Transport for Greater Manchester ,27/04/2022,Capital,Traffic Signals,Greater Manchester Combined Authority,"1,544.69",31114783
Transport for Greater Manchester ,27/04/2022,Capital,Traffic Signals,Greater Manchester Combined Authority,"1,161.45",31114785
Transport for Greater Manchester ,27/04/2022,Capital,Traffic Signals,Greater Manchester Combined Authority,"13,434.42",31114780
Transport for Greater Manchester ,27/04/2022,Capital,Traffic Signals,Greater Manchester Combined Authority,"12,245.71",31114782
Transport for Greater Manchester ,27/04/2022,Capital,Traffic Signals,Greater Manchester Combined Authority,"23,095.00",31114784
Transport for Greater Manchester ,27/04/2022,Capital,Capital Professional Fees,Greater Manchester Combined Authority,"9,002.73",31114946
"TLC: TALK, LISTEN, CHANGE.",27/04/2022,"Supplies, Services & Other Expenses",Commissioned Services,Greater Manchester Combined Authority,"525,800.00",31114927
"TLC: TALK, LISTEN, CHANGE.",27/04/2022,"Supplies, Services & Other Expenses",Commissioned Services,Greater Manchester Combined Authority,"121,999.00",31114928
UNITED UTILITIES WATER PLC,27/04/2022,"Supplies, Services & Other Expenses",Hydrants Repairs,Greater Manchester Combined Authority,758.71,31114945
UNITED UTILITIES WATER PLC,27/04/2022,"Supplies, Services & Other Expenses",Hydrants Repairs,Greater Manchester Combined Authority,"1,286.80",31114947
UNITED UTILITIES WATER PLC,27/04/2022,"Supplies, Services & Other Expenses",Hydrants Repairs,Greater Manchester Combined Authority,758.71,31114948
WIGAN MBC,27/04/2022,Premises Related Expenditure,Rates,Greater Manchester Combined Authority,"1,595.00",20117622
WIGAN MBC,27/04/2022,Premises Related Expenditure,Rates,Greater Manchester Combined Authority,"12,085.00",20117622
WIGAN MBC,27/04/2022,Premises Related Expenditure,Rates,Greater Manchester Combined Authority,"1,668.50",20117622
ALLIANCE DISPOSABLES LTD,28/04/2022,"Supplies, Services & Other Expenses",Kitchen Equipment,Greater Manchester Combined Authority,675.25,31114990
Appleby (Guernsey) LLP,28/04/2022,"Supplies, Services & Other Expenses",Legal Liabilities,Greater Manchester Combined Authority,"1,231.88",31115028
H JENKINSON & COMPANY LTD,28/04/2022,Premises Related Expenditure,Fixtures & Fittings,Greater Manchester Combined Authority,"1,130.22",31114920
H JENKINSON & COMPANY LTD,28/04/2022,Premises Related Expenditure,Fixtures & Fittings,Greater Manchester Combined Authority,565.11,31114921
J Fletcher (Engineers) Ltd,28/04/2022,Premises Related Expenditure,Responsive Repairs & Maintenance,Greater Manchester Combined Authority,544.00,31115033
Manchester City Council,28/04/2022,Premises Related Expenditure,Rates,Greater Manchester Combined Authority,"2,020.50",20117624
Manchester City Council,28/04/2022,Premises Related Expenditure,Rates,Greater Manchester Combined Authority,"1,826.00",20117624
Manchester City Council,28/04/2022,Premises Related Expenditure,Rates,Greater Manchester Combined Authority,"1,611.75",20117624
Manchester City Council,28/04/2022,Premises Related Expenditure,Rates,Greater Manchester Combined Authority,"1,325.50",20117624
Manchester City Council,28/04/2022,Premises Related Expenditure,Rates,Greater Manchester Combined Authority,"2,838.00",20117624
Manchester City Council,28/04/2022,Premises Related Expenditure,Rates,Greater Manchester Combined Authority,"8,103.00",20117624
Manchester City Council,28/04/2022,Premises Related Expenditure,Rates,Greater Manchester Combined Authority,"13,543.00",20117624
Michael Page International Recruitment Limited,28/04/2022,"Supplies, Services & Other Expenses",Professional Fees,Greater Manchester Combined Authority,"3,279.80",31115032
NETWORKING WOMEN IN THE FIRE SERVICE,28/04/2022,"Supplies, Services & Other Expenses",Events,Greater Manchester Combined Authority,"3,294.00",31115055
NW Fire Control Ltd,28/04/2022,"Supplies, Services & Other Expenses",Outsourced Regional Control,Greater Manchester Combined Authority,"656,670.11",31115054
Objectivity Limited,28/04/2022,"Supplies, Services & Other Expenses",Professional Fees,Greater Manchester Combined Authority,"6,802.00",31114359
Royal Institute of Chartered Surveyors,28/04/2022,"Supplies, Services & Other Expenses",Subscriptions,Greater Manchester Combined Authority,"2,000.00",31115029
Saz Media,28/04/2022,"Supplies, Services & Other Expenses",Waste Campaigns,Greater Manchester Combined Authority,"2,500.00",31113924
STEROPLAST HEALTHCARE LIMITED,28/04/2022,"Supplies, Services & Other Expenses",Operational Equipment Non-Consumables,Greater Manchester Combined Authority,770.80,31112858
STEROPLAST HEALTHCARE LIMITED,28/04/2022,"Supplies, Services & Other Expenses",Operational Equipment Non-Consumables,Greater Manchester Combined Authority,"3,324.40",31113102
Transport for Greater Manchester ,28/04/2022,Transport Related Expenditure,Officers Travel & Subsistence,Greater Manchester Combined Authority,504.00,31114487
Transport for Greater Manchester ,28/04/2022,Transport Related Expenditure,Officers Travel & Subsistence,Greater Manchester Combined Authority,574.00,31114488
The Nuffield Centre,28/04/2022,Indirect Employee Allowances,Training Course Fees,Greater Manchester Combined Authority,880.00,31115030
The Nuffield Centre,28/04/2022,Indirect Employee Allowances,Training Course Fees,Greater Manchester Combined Authority,880.00,31115031
WeareM.I.N Limited,28/04/2022,"Supplies, Services & Other Expenses",Professional Fees,Greater Manchester Combined Authority,"10,000.00",31114497
Blackley Golf Club Ltd,29/04/2022,"Supplies, Services & Other Expenses",Food,Greater Manchester Combined Authority,656.44,31115086
CIPFA BUSINESS LTD,29/04/2022,"Supplies, Services & Other Expenses",Computer Software,Greater Manchester Combined Authority,"5,896.75",31114993
EAGLE TECHNICAL PRODUCTS  LTD,29/04/2022,Indirect Employee Allowances,Other Training Expenses,Greater Manchester Combined Authority,"1,900.00",31108905
Greater Manchester Coalition of Disabled People,29/04/2022,"Supplies, Services & Other Expenses",Grant Expenditure,Greater Manchester Combined Authority,"10,000.00",31113637
Instep UK Ltd,29/04/2022,"Supplies, Services & Other Expenses",Commissioned Services,Greater Manchester Combined Authority,706.80,31114672
King�s House Conference (Greater Manchester) Ltd,29/04/2022,Indirect Employee Allowances,Other Training Expenses,Greater Manchester Combined Authority,900.40,31115088
Portakabin Ltd,29/04/2022,Premises Related Expenditure,Fixtures & Fittings,Greater Manchester Combined Authority,606.68,31115111
Portakabin Ltd,29/04/2022,Indirect Employee Allowances,Other Training Expenses,Greater Manchester Combined Authority,602.01,31115112
Prestige Chauffeurs Limited,29/04/2022,Transport Related Expenditure,Officers Travel & Subsistence,Greater Manchester Combined Authority,640.00,31115095
SUEZ RECYCLING AND RECOVERY UK LTD,29/04/2022,Capital,Site Works,Greater Manchester Combined Authority,"138,916.80",20117679
SUEZ RECYCLING AND RECOVERY UK LTD,29/04/2022,Capital,Site Works,Greater Manchester Combined Authority,"37,323.21",20117679
SUEZ RECYCLING AND RECOVERY UK LTD,29/04/2022,"Supplies, Services & Other Expenses",Waste Disposal Services,Greater Manchester Combined Authority,"3,352,398.85",20117679
SUEZ RECYCLING AND RECOVERY UK LTD,29/04/2022,"Supplies, Services & Other Expenses",Waste Disposal Services,Greater Manchester Combined Authority,"933,627.15",20117679
SUEZ RECYCLING AND RECOVERY UK LTD,29/04/2022,Premises Related Expenditure,Waste Machinery Maintenance,Greater Manchester Combined Authority,"23,844.86",20117679
THOMAS HARDIE COMMERCIALS LTD,29/04/2022,Transport Related Expenditure,Repairs and Maintenance - Transport,Greater Manchester Combined Authority,-913.87,31114980
Warden Construction Ltd,29/04/2022,Capital,Estates Capital Contracts,Greater Manchester Combined Authority,"13,191.23",31111711
Warden Construction Ltd,29/04/2022,Capital,Estates Capital Contracts,Greater Manchester Combined Authority,"7,827.20",31111712
Bury Council,03/05/2022,Premises Related Expenditure,Rates,Greater Manchester Combined Authority,"5,274.00",20117705
Bury Council,03/05/2022,Premises Related Expenditure,Rates,Greater Manchester Combined Authority,"1,485.00",20117705
Bury Council,03/05/2022,Premises Related Expenditure,Rates,Greater Manchester Combined Authority,"1,584.00",20117705
Bury Council,03/05/2022,Premises Related Expenditure,Rates,Greater Manchester Combined Authority,"19,712.00",20117705
Castlefield Recruitment Limited,03/05/2022,Employees Pay,Agency Staff Costs,Greater Manchester Combined Authority,"1,683.29",31114010
Emergency One (UK) Ltd,03/05/2022,Transport Related Expenditure,Repairs and Maintenance - Transport,Greater Manchester Combined Authority,584.76,31115048
Monks Contractors Ltd,03/05/2022,Premises Related Expenditure,Waste Site Programmed,Greater Manchester Combined Authority,"3,712.90",31115100
Pinecroft Lodges Ltd,03/05/2022,Indirect Employee Allowances,Training Course Fees,Greater Manchester Combined Authority,"1,194.67",31115011
Protec Camerfield Ltd,03/05/2022,Premises Related Expenditure,Responsive Repairs & Maintenance,Greater Manchester Combined Authority,889.00,31115147
Retrofit Works Limited t/a RetrofitWorks,03/05/2022,"Supplies, Services & Other Expenses",Consultancy Fees,Greater Manchester Combined Authority,"200,000.00",31115129
TAMESIDE MBC,03/05/2022,Premises Related Expenditure,Rates,Greater Manchester Combined Authority,"4,582.00",20117705
TAMESIDE MBC,03/05/2022,Premises Related Expenditure,Rates,Greater Manchester Combined Authority,"2,242.00",20117705
TAMESIDE MBC,03/05/2022,Premises Related Expenditure,Rates,Greater Manchester Combined Authority,"1,666.00",20117705
Telefonica UK Ltd (O2),03/05/2022,"Supplies, Services & Other Expenses",Mobile call charges,Greater Manchester Combined Authority,"6,725.06",31115132
TERBERG DTS UK,03/05/2022,"Supplies, Services & Other Expenses",Office Equipment,Greater Manchester Combined Authority,"16,406.98",31115098
TRAFFORD MBC,03/05/2022,Premises Related Expenditure,Rates,Greater Manchester Combined Authority,"1,859.00",20117705
TRAFFORD MBC,03/05/2022,Premises Related Expenditure,Rates,Greater Manchester Combined Authority,"2,171.00",20117705
Virgin Media Business Limited,03/05/2022,Capital,ICT Capital Hardware,Greater Manchester Combined Authority,"1,697,606.83",31114512
Water Plus Limited,03/05/2022,Premises Related Expenditure,Metered Water,Greater Manchester Combined Authority,"3,842.55",31115123
Water Plus Limited,03/05/2022,Premises Related Expenditure,Metered Water,Greater Manchester Combined Authority,620.13,31115123
Water Plus Limited,03/05/2022,Premises Related Expenditure,Metered Water,Greater Manchester Combined Authority,620.13,31115123
Water Plus Limited,03/05/2022,Premises Related Expenditure,Metered Water,Greater Manchester Combined Authority,620.13,31115123
Water Plus Limited,03/05/2022,Premises Related Expenditure,Metered Water,Greater Manchester Combined Authority,620.13,31115123
Water Plus Limited,03/05/2022,Premises Related Expenditure,Metered Water,Greater Manchester Combined Authority,620.13,31115123
Water Plus Limited,03/05/2022,Premises Related Expenditure,Metered Water,Greater Manchester Combined Authority,677.29,31115123
Water Plus Limited,03/05/2022,Premises Related Expenditure,Metered Water,Greater Manchester Combined Authority,532.45,31115123
Water Plus Limited,03/05/2022,Premises Related Expenditure,Metered Water,Greater Manchester Combined Authority,620.13,31115123
Water Plus Limited,03/05/2022,Premises Related Expenditure,Metered Water,Greater Manchester Combined Authority,620.13,31115123
Water Plus Limited,03/05/2022,Premises Related Expenditure,Metered Water,Greater Manchester Combined Authority,620.13,31115123
Water Plus Limited,03/05/2022,Premises Related Expenditure,Metered Water,Greater Manchester Combined Authority,620.13,31115123
Water Plus Limited,03/05/2022,Premises Related Expenditure,Metered Water,Greater Manchester Combined Authority,620.13,31115123
Water Plus Limited,03/05/2022,Premises Related Expenditure,Metered Water,Greater Manchester Combined Authority,"1,317.14",31115123
Water Plus Limited,03/05/2022,Premises Related Expenditure,Metered Water,Greater Manchester Combined Authority,552.51,31115123
Water Plus Limited,03/05/2022,Premises Related Expenditure,Metered Water,Greater Manchester Combined Authority,555.33,31115123
Water Plus Limited,03/05/2022,Premises Related Expenditure,Metered Water,Greater Manchester Combined Authority,620.13,31115123
Water Plus Limited,03/05/2022,Premises Related Expenditure,Metered Water,Greater Manchester Combined Authority,"3,848.94",31115123
Water Plus Limited,03/05/2022,Premises Related Expenditure,Metered Water,Greater Manchester Combined Authority,620.13,31115123
Water Plus Limited,03/05/2022,Premises Related Expenditure,Metered Water,Greater Manchester Combined Authority,620.13,31115123
Water Plus Limited,03/05/2022,Premises Related Expenditure,Metered Water,Greater Manchester Combined Authority,"1,946.50",31115123
WIGAN MBC,03/05/2022,Premises Related Expenditure,Rates,Greater Manchester Combined Authority,"4,326.00",20117705
Artal Fund Monitoring,04/05/2022,"Supplies, Services & Other Expenses",Professional Fees,Greater Manchester Combined Authority,"1,400.00",31115195
AVM Solutions UK,04/05/2022,"Supplies, Services & Other Expenses",Computer Software,Greater Manchester Combined Authority,"10,583.75",31115232
Barlows (UK) Ltd,04/05/2022,Premises Related Expenditure,Responsive Repairs & Maintenance,Greater Manchester Combined Authority,"3,405.92",31115157
Bid Group Ltd,04/05/2022,Capital,Estates Capital Contracts,Greater Manchester Combined Authority,"29,713.00",31115356
Bloom Procurement Services Ltd,04/05/2022,"Supplies, Services & Other Expenses",Professional Fees,Greater Manchester Combined Authority,"15,400.00",31115039
BMG Research Ltd,04/05/2022,"Supplies, Services & Other Expenses",Graphics/ Branding,Greater Manchester Combined Authority,"19,484.00",31115173
Bolton MBC,04/05/2022,Capital,Capital Grant Expenditure,Greater Manchester Combined Authority,"186,627.96",31115256
Bolton MBC,04/05/2022,Capital,Capital Grant Expenditure,Greater Manchester Combined Authority,"55,000.00",31115303
Bolton MBC,04/05/2022,Capital,Capital Grant Expenditure,Greater Manchester Combined Authority,"4,000.00",31115313
Bolton MBC,04/05/2022,"Supplies, Services & Other Expenses",Grant Expenditure,Greater Manchester Combined Authority,"17,720.00",31115343
Bolton MBC,04/05/2022,"Supplies, Services & Other Expenses",Grant Expenditure,Greater Manchester Combined Authority,"2,500.00",31115349
Bury Council,04/05/2022,"Supplies, Services & Other Expenses",Contributions to ED&R Functions,Greater Manchester Combined Authority,"9,200.00",31115162
Bury Council,04/05/2022,Capital,Capital Grant Expenditure,Greater Manchester Combined Authority,"8,648.47",31115292
Bury Council,04/05/2022,Capital,Capital Grant Expenditure,Greater Manchester Combined Authority,"149,813.58",31115293
Bury Council,04/05/2022,Capital,Capital Grant Expenditure,Greater Manchester Combined Authority,"13,571.00",31115294
Bury Council,04/05/2022,Capital,Capital Grant Expenditure,Greater Manchester Combined Authority,"144,126.64",31115304
Bury Council,04/05/2022,Capital,Capital Grant Expenditure,Greater Manchester Combined Authority,"142,446.26",31115314
Bury Council,04/05/2022,"Supplies, Services & Other Expenses",Grant Expenditure,Greater Manchester Combined Authority,"7,651.25",31115344
Bury Council,04/05/2022,"Supplies, Services & Other Expenses",Grant Expenditure,Greater Manchester Combined Authority,"36,500.00",31115350
Castlefield Recruitment Limited,04/05/2022,Employees Pay,Agency Staff Costs,Greater Manchester Combined Authority,"1,923.76",31114702
Charles Watson Ironmongers Ltd,04/05/2022,Capital,Capital Equipment,Greater Manchester Combined Authority,"1,703.70",31115204
Commercial Blinds and Glazing Limited,04/05/2022,Premises Related Expenditure,Responsive Repairs & Maintenance,Greater Manchester Combined Authority,631.35,31115200
Ekosgen,04/05/2022,"Supplies, Services & Other Expenses",Professional Fees,Greater Manchester Combined Authority,"7,262.81",31115131
Greater Manchester Mental Health Nhs Foundation Trust,04/05/2022,"Supplies, Services & Other Expenses",Grant Expenditure,Greater Manchester Combined Authority,"3,924.00",31115189
Greater Manchester Women�s Support Alliance,04/05/2022,"Supplies, Services & Other Expenses",Commissioned Services,Greater Manchester Combined Authority,"80,000.00",31115183
H JENKINSON & COMPANY LTD,04/05/2022,Premises Related Expenditure,Fixtures & Fittings,Greater Manchester Combined Authority,"1,318.59",31114661
H JENKINSON & COMPANY LTD,04/05/2022,Premises Related Expenditure,Fixtures & Fittings,Greater Manchester Combined Authority,753.48,31114662
Hitch Marketing Ltd,04/05/2022,"Supplies, Services & Other Expenses",Commissioned Services,Greater Manchester Combined Authority,"1,000.00",31115171
Manchester City Council,04/05/2022,"Supplies, Services & Other Expenses",Professional Fees,Greater Manchester Combined Authority,"19,440.10",31095641
Manchester City Council,04/05/2022,"Supplies, Services & Other Expenses",Commissioned Services,Greater Manchester Combined Authority,"44,530.93",31115163
Manchester City Council,04/05/2022,Capital,Capital Grant Expenditure,Greater Manchester Combined Authority,"3,302,160.47",31115305
Manchester City Council,04/05/2022,Capital,Capital Grant Expenditure,Greater Manchester Combined Authority,"57,590.99",31115315
Manchester City Council,04/05/2022,"Supplies, Services & Other Expenses",Grant Expenditure,Greater Manchester Combined Authority,"15,245.39",31115351
Monks Contractors Ltd,04/05/2022,Premises Related Expenditure,Waste Site Programmed,Greater Manchester Combined Authority,850.00,31115210
OLDHAM MET BOROUGH,04/05/2022,Capital,Capital Grant Expenditure,Greater Manchester Combined Authority,"810,064.21",31115289
OLDHAM MET BOROUGH,04/05/2022,Capital,Capital Grant Expenditure,Greater Manchester Combined Authority,"147,981.79",31115290
OLDHAM MET BOROUGH,04/05/2022,Capital,Capital Grant Expenditure,Greater Manchester Combined Authority,"320,297.64",31115306
OLDHAM MET BOROUGH,04/05/2022,Capital,Capital Grant Expenditure,Greater Manchester Combined Authority,"14,573.18",31115316
OLDHAM MET BOROUGH,04/05/2022,"Supplies, Services & Other Expenses",Grant Expenditure,Greater Manchester Combined Authority,"61,651.00",31115345
OLDHAM MET BOROUGH,04/05/2022,"Supplies, Services & Other Expenses",Grant Expenditure,Greater Manchester Combined Authority,"42,649.98",31115352
Phoenix Software Ltd,04/05/2022,"Supplies, Services & Other Expenses",Computer Software,Greater Manchester Combined Authority,"3,881.10",31115371
PMA International Limited,04/05/2022,"Supplies, Services & Other Expenses",Professional Fees,Greater Manchester Combined Authority,"2,500.00",31115154
Positive Steps Oldham,04/05/2022,"Supplies, Services & Other Expenses",Commissioned Services,Greater Manchester Combined Authority,"8,166.13",31115149
Reed Specialist Recruitment Ltd,04/05/2022,Employees Pay,Agency Staff Costs,Greater Manchester Combined Authority,"3,136.95",31115150
Remedi � Restorative Services,04/05/2022,"Supplies, Services & Other Expenses",Commissioned Services,Greater Manchester Combined Authority,"20,588.33",31115160
Rider Levett Bucknall UK Limited,04/05/2022,"Supplies, Services & Other Expenses",Professional Fees,Greater Manchester Combined Authority,950.00,31115224
Rochdale Metropolitan Borough Council,04/05/2022,Capital,Capital Grant Expenditure,Greater Manchester Combined Authority,"68,745.26",31115307
Rochdale Metropolitan Borough Council,04/05/2022,Capital,Capital Grant Expenditure,Greater Manchester Combined Authority,"54,576.06",31115317
Rochdale Metropolitan Borough Council,04/05/2022,"Supplies, Services & Other Expenses",Grant Expenditure,Greater Manchester Combined Authority,"-25,088.00",31115346
Rochdale Metropolitan Borough Council,04/05/2022,"Supplies, Services & Other Expenses",Grant Expenditure,Greater Manchester Combined Authority,"25,088.00",31115353
Rosenbauer UK Plc,04/05/2022,Transport Related Expenditure,Repairs and Maintenance - Transport,Greater Manchester Combined Authority,773.09,31115376
Salford City Council,04/05/2022,Capital,Capital Grant Expenditure,Greater Manchester Combined Authority,"31,735.20",31115258
Salford City Council,04/05/2022,Capital,Capital Grant Expenditure,Greater Manchester Combined Authority,"406,831.76",31115295
Salford City Council,04/05/2022,Capital,Capital Grant Expenditure,Greater Manchester Combined Authority,"30,306.04",31115296
Salford City Council,04/05/2022,Capital,Capital Grant Expenditure,Greater Manchester Combined Authority,"38,969.19",31115299
Salford City Council,04/05/2022,Capital,Capital Grant Expenditure,Greater Manchester Combined Authority,"4,236,164.89",31115308
Salford City Council,04/05/2022,Capital,Capital Grant Expenditure,Greater Manchester Combined Authority,"1,625.59",31115318
Salford City Council,04/05/2022,"Supplies, Services & Other Expenses",Grant Expenditure,Greater Manchester Combined Authority,"100,000.00",31115347
Salford City Council,04/05/2022,Premises Related Expenditure,Rent,Greater Manchester Combined Authority,"3,125.00",31115367
Salford Primary Care Together CIC,04/05/2022,"Supplies, Services & Other Expenses",Grant Expenditure,Greater Manchester Combined Authority,"7,492.00",31115151
Squire Patton Boggs (UK) LLP,04/05/2022,"Supplies, Services & Other Expenses",Legal Liabilities,Greater Manchester Combined Authority,"20,200.00",31115182
Stockport MBC,04/05/2022,Capital,Capital Grant Expenditure,Greater Manchester Combined Authority,"103,431.45",31115257
Stockport MBC,04/05/2022,Capital,Capital Grant Expenditure,Greater Manchester Combined Authority,"1,319,215.83",31115302
Stockport MBC,04/05/2022,Capital,Capital Grant Expenditure,Greater Manchester Combined Authority,"3,559,639.87",31115309
Stockport MBC,04/05/2022,Capital,Capital Grant Expenditure,Greater Manchester Combined Authority,"113,574.40",31115319
Stockport MBC,04/05/2022,"Supplies, Services & Other Expenses",Grant Expenditure,Greater Manchester Combined Authority,"88,639.00",31115348
Stockport MBC,04/05/2022,"Supplies, Services & Other Expenses",Grant Expenditure,Greater Manchester Combined Authority,"36,657.91",31115354
TAMESIDE MBC,04/05/2022,Capital,Capital Grant Expenditure,Greater Manchester Combined Authority,"27,315.53",31115300
TAMESIDE MBC,04/05/2022,Capital,Capital Grant Expenditure,Greater Manchester Combined Authority,"291,576.00",31115310
TAMESIDE MBC,04/05/2022,Capital,Capital Grant Expenditure,Greater Manchester Combined Authority,"43,388.29",31115320
TAMESIDE MBC,04/05/2022,"Supplies, Services & Other Expenses",Grant Expenditure,Greater Manchester Combined Authority,"44,884.45",31115355
Transport for Greater Manchester  Interbank,04/05/2022,Capital,Capital Grant Expenditure,Greater Manchester Combined Authority,"58,081.11",31115239
Transport for Greater Manchester  Interbank,04/05/2022,Capital,Capital Grant Expenditure,Greater Manchester Combined Authority,"-3,927.56",31115240
Transport for Greater Manchester  Interbank,04/05/2022,Capital,Capital Grant Expenditure,Greater Manchester Combined Authority,"142,179.62",31115241
Transport for Greater Manchester  Interbank,04/05/2022,Capital,Capital Grant Expenditure,Greater Manchester Combined Authority,"32,352.93",31115242
Transport for Greater Manchester  Interbank,04/05/2022,Capital,Capital Grant Expenditure,Greater Manchester Combined Authority,"23,374.19",31115243
Transport for Greater Manchester  Interbank,04/05/2022,Capital,Capital Grant Expenditure,Greater Manchester Combined Authority,"1,398,818.96",31115244
Transport for Greater Manchester  Interbank,04/05/2022,Capital,Capital Grant Expenditure,Greater Manchester Combined Authority,"52,304.77",31115245
Transport for Greater Manchester  Interbank,04/05/2022,Capital,Capital Grant Expenditure,Greater Manchester Combined Authority,"128,746.47",31115246
Transport for Greater Manchester  Interbank,04/05/2022,Capital,Capital Grant Expenditure,Greater Manchester Combined Authority,"2,904,317.38",31115247
Transport for Greater Manchester  Interbank,04/05/2022,Capital,Capital Grant Expenditure,Greater Manchester Combined Authority,"13,293.13",31115248
Transport for Greater Manchester  Interbank,04/05/2022,Capital,Capital Grant Expenditure,Greater Manchester Combined Authority,"3,729.52",31115249
Transport for Greater Manchester  Interbank,04/05/2022,Capital,Capital Grant Expenditure,Greater Manchester Combined Authority,"24,421.43",31115250
Transport for Greater Manchester  Interbank,04/05/2022,Capital,Capital Grant Expenditure,Greater Manchester Combined Authority,"1,008.92",31115251
Transport for Greater Manchester  Interbank,04/05/2022,Capital,Capital Grant Expenditure,Greater Manchester Combined Authority,"54,467.71",31115252
Transport for Greater Manchester  Interbank,04/05/2022,Capital,Capital Grant Expenditure,Greater Manchester Combined Authority,"-378,700.34",31115254
Transport for Greater Manchester  Interbank,04/05/2022,Capital,Capital Grant Expenditure,Greater Manchester Combined Authority,"128,589.56",31115255
Transport for Greater Manchester  Interbank,04/05/2022,Capital,Capital Grant Expenditure,Greater Manchester Combined Authority,"5,156.36",31115259
Transport for Greater Manchester  Interbank,04/05/2022,Capital,Capital Grant Expenditure,Greater Manchester Combined Authority,"70,920.22",31115260
Transport for Greater Manchester  Interbank,04/05/2022,Capital,Capital Grant Expenditure,Greater Manchester Combined Authority,"33,818.88",31115261
Transport for Greater Manchester  Interbank,04/05/2022,Capital,Capital Grant Expenditure,Greater Manchester Combined Authority,"134,386.58",31115262
Transport for Greater Manchester  Interbank,04/05/2022,Capital,Capital Grant Expenditure,Greater Manchester Combined Authority,"20,675.78",31115263
Transport for Greater Manchester  Interbank,04/05/2022,Capital,Capital Grant Expenditure,Greater Manchester Combined Authority,"264,685.30",31115264
Transport for Greater Manchester  Interbank,04/05/2022,Capital,Capital Grant Expenditure,Greater Manchester Combined Authority,"13,584.16",31115265
Transport for Greater Manchester  Interbank,04/05/2022,Capital,Capital Grant Expenditure,Greater Manchester Combined Authority,"-54,718.61",31115266
Transport for Greater Manchester  Interbank,04/05/2022,Capital,Capital Grant Expenditure,Greater Manchester Combined Authority,814.00,31115267
Transport for Greater Manchester  Interbank,04/05/2022,Capital,Capital Grant Expenditure,Greater Manchester Combined Authority,"1,934,364.39",31115268
Transport for Greater Manchester  Interbank,04/05/2022,Capital,Capital Grant Expenditure,Greater Manchester Combined Authority,"6,566.88",31115270
Transport for Greater Manchester  Interbank,04/05/2022,Capital,Capital Grant Expenditure,Greater Manchester Combined Authority,"4,191.60",31115271
Transport for Greater Manchester  Interbank,04/05/2022,Capital,Capital Grant Expenditure,Greater Manchester Combined Authority,"-3,630,217.53",31115272
Transport for Greater Manchester  Interbank,04/05/2022,Capital,Capital Grant Expenditure,Greater Manchester Combined Authority,"-78,854.52",31115273
Transport for Greater Manchester  Interbank,04/05/2022,Capital,Capital Grant Expenditure,Greater Manchester Combined Authority,"6,146.93",31115274
Transport for Greater Manchester  Interbank,04/05/2022,Capital,Capital Grant Expenditure,Greater Manchester Combined Authority,"512,287.00",31115275
Transport for Greater Manchester  Interbank,04/05/2022,Capital,Capital Grant Expenditure,Greater Manchester Combined Authority,"819,398.72",31115276
Transport for Greater Manchester  Interbank,04/05/2022,Capital,Capital Grant Expenditure,Greater Manchester Combined Authority,"20,218.40",31115277
Transport for Greater Manchester  Interbank,04/05/2022,Capital,Capital Grant Expenditure,Greater Manchester Combined Authority,"54,196.81",31115278
Transport for Greater Manchester  Interbank,04/05/2022,Capital,Capital Grant Expenditure,Greater Manchester Combined Authority,"78,715.03",31115279
Transport for Greater Manchester  Interbank,04/05/2022,Capital,Capital Grant Expenditure,Greater Manchester Combined Authority,"39,509.16",31115280
Transport for Greater Manchester  Interbank,04/05/2022,Capital,Capital Grant Expenditure,Greater Manchester Combined Authority,"23,287.53",31115281
Transport for Greater Manchester  Interbank,04/05/2022,Capital,Capital Grant Expenditure,Greater Manchester Combined Authority,"37,708.66",31115282
Transport for Greater Manchester  Interbank,04/05/2022,Capital,Capital Grant Expenditure,Greater Manchester Combined Authority,"386,055.00",31115283
Transport for Greater Manchester  Interbank,04/05/2022,Capital,Capital Grant Expenditure,Greater Manchester Combined Authority,"1,569,946.01",31115284
Transport for Greater Manchester  Interbank,04/05/2022,Capital,Capital Grant Expenditure,Greater Manchester Combined Authority,"1,454,851.09",31115285
Transport for Greater Manchester  Interbank,04/05/2022,Capital,Capital Grant Expenditure,Greater Manchester Combined Authority,"404,338.74",31115286
Transport for Greater Manchester  Interbank,04/05/2022,Capital,Capital Grant Expenditure,Greater Manchester Combined Authority,"176,845.56",31115287
Transport for Greater Manchester  Interbank,04/05/2022,"Supplies, Services & Other Expenses",Grant Expenditure,Greater Manchester Combined Authority,"918,155.71",31115323
Transport for Greater Manchester  Interbank,04/05/2022,"Supplies, Services & Other Expenses",Grant Expenditure,Greater Manchester Combined Authority,"124,284.75",31115324
Transport for Greater Manchester  Interbank,04/05/2022,"Supplies, Services & Other Expenses",Grant Expenditure,Greater Manchester Combined Authority,"5,211.62",31115325
Transport for Greater Manchester  Interbank,04/05/2022,"Supplies, Services & Other Expenses",Grant Expenditure,Greater Manchester Combined Authority,"1,468,264.75",31115327
Transport for Greater Manchester  Interbank,04/05/2022,"Supplies, Services & Other Expenses",Grant Expenditure,Greater Manchester Combined Authority,"73,724.55",31115328
Transport for Greater Manchester  Interbank,04/05/2022,"Supplies, Services & Other Expenses",Grant Expenditure,Greater Manchester Combined Authority,"6,343.92",31115329
Transport for Greater Manchester  Interbank,04/05/2022,"Supplies, Services & Other Expenses",Grant Expenditure,Greater Manchester Combined Authority,"350,354.00",31115330
Transport for Greater Manchester  Interbank,04/05/2022,"Supplies, Services & Other Expenses",Grant Expenditure,Greater Manchester Combined Authority,"12,769.26",31115331
Transport for Greater Manchester  Interbank,04/05/2022,"Supplies, Services & Other Expenses",Grant Expenditure,Greater Manchester Combined Authority,"4,342,244.46",31115332
Transport for Greater Manchester  Interbank,04/05/2022,"Supplies, Services & Other Expenses",Grant Expenditure,Greater Manchester Combined Authority,"6,129,528.57",31115333
Transport for Greater Manchester  Interbank,04/05/2022,"Supplies, Services & Other Expenses",Grant Expenditure,Greater Manchester Combined Authority,"7,059.66",31115334
Transport for Greater Manchester  Interbank,04/05/2022,"Supplies, Services & Other Expenses",Grant Expenditure,Greater Manchester Combined Authority,"54,303.71",31115335
Transport for Greater Manchester  Interbank,04/05/2022,"Supplies, Services & Other Expenses",Grant Expenditure,Greater Manchester Combined Authority,"120,802.40",31115336
Transport for Greater Manchester  Interbank,04/05/2022,"Supplies, Services & Other Expenses",Grant Expenditure,Greater Manchester Combined Authority,"72,813.46",31115337
Transport for Greater Manchester  Interbank,04/05/2022,"Supplies, Services & Other Expenses",Grant Expenditure,Greater Manchester Combined Authority,"46,950.00",31115338
Transport for Greater Manchester  Interbank,04/05/2022,"Supplies, Services & Other Expenses",Grant Expenditure,Greater Manchester Combined Authority,"28,812.00",31115339
Transport for Greater Manchester  Interbank,04/05/2022,"Supplies, Services & Other Expenses",Grant Expenditure,Greater Manchester Combined Authority,"3,159,740.00",31115340
Transport for Greater Manchester  Interbank,04/05/2022,"Supplies, Services & Other Expenses",Grant Expenditure,Greater Manchester Combined Authority,"33,752.44",31115341
Transport for Greater Manchester  Interbank,04/05/2022,"Supplies, Services & Other Expenses",Grant Expenditure,Greater Manchester Combined Authority,"-117,528.57",31115342
The Copyright Licencing Agency Ltd,04/05/2022,"Supplies, Services & Other Expenses",Professional Fees,Greater Manchester Combined Authority,"10,712.52",31115146
The Copyright Licencing Agency Ltd,04/05/2022,"Supplies, Services & Other Expenses",Professional Fees,Greater Manchester Combined Authority,"5,920.88",31115146
The University of Manchester,04/05/2022,"Supplies, Services & Other Expenses",Consultancy Fees,Greater Manchester Combined Authority,"14,000.00",31115176
TRAFFORD MBC,04/05/2022,Capital,Capital Grant Expenditure,Greater Manchester Combined Authority,"25,376.98",31115301
TRAFFORD MBC,04/05/2022,Capital,Capital Grant Expenditure,Greater Manchester Combined Authority,"346,811.42",31115311
TRAFFORD MBC,04/05/2022,Capital,Capital Grant Expenditure,Greater Manchester Combined Authority,"43,373.40",31115321
Virgin Media Business Limited,04/05/2022,"Supplies, Services & Other Expenses",Outsourced Services IT,Greater Manchester Combined Authority,650.00,31115380
Virgin Media Business Limited,04/05/2022,"Supplies, Services & Other Expenses",Outsourced Services IT,Greater Manchester Combined Authority,650.00,31115382
Virgin Media Business Limited,04/05/2022,"Supplies, Services & Other Expenses",Outsourced Services IT,Greater Manchester Combined Authority,650.00,31115383
Watts Group Limited,04/05/2022,"Supplies, Services & Other Expenses",Professional Fees,Greater Manchester Combined Authority,725.00,31115192
WIGAN MBC,04/05/2022,Capital,Capital Grant Expenditure,Greater Manchester Combined Authority,"219,000.00",31115288
WIGAN MBC,04/05/2022,Capital,Capital Grant Expenditure,Greater Manchester Combined Authority,"328,346.85",31115291
WIGAN MBC,04/05/2022,Capital,Capital Grant Expenditure,Greater Manchester Combined Authority,"537,567.57",31115297
WIGAN MBC,04/05/2022,Capital,Capital Grant Expenditure,Greater Manchester Combined Authority,"281,647.55",31115298
WIGAN MBC,04/05/2022,Capital,Capital Grant Expenditure,Greater Manchester Combined Authority,"1,247,678.90",31115312
WIGAN MBC,04/05/2022,Capital,Capital Grant Expenditure,Greater Manchester Combined Authority,"33,437.11",31115322
Bolton MBC,05/05/2022,"Supplies, Services & Other Expenses",Grant Expenditure,Greater Manchester Combined Authority,"12,192.00",31115430
Bury Council,05/05/2022,Capital,Capital Grant Expenditure,Greater Manchester Combined Authority,"9,178.68",31115128
Carboncreative,05/05/2022,"Supplies, Services & Other Expenses",Stationery,Greater Manchester Combined Authority,945.00,31115216
Carboncreative,05/05/2022,"Supplies, Services & Other Expenses",Stationery,Greater Manchester Combined Authority,"1,295.00",31115216
Emergency One (UK) Ltd,05/05/2022,Transport Related Expenditure,Repairs and Maintenance - Transport,Greater Manchester Combined Authority,505.60,31115389
Future PR Ltd,05/05/2022,"Supplies, Services & Other Expenses",Equipment Hire,Greater Manchester Combined Authority,635.00,31115361
Gaydio CIC,05/05/2022,"Supplies, Services & Other Expenses",Grant Expenditure,Greater Manchester Combined Authority,"6,500.00",31115423
GE Robinson & Co Ltd,05/05/2022,Indirect Employee Allowances,Other Training Expenses,Greater Manchester Combined Authority,"1,858.10",31115396
Redacted Personal Data,05/05/2022,Premises Related Expenditure,Responsive Repairs & Maintenance,Greater Manchester Combined Authority,500.00,31115421
Local Government Association,05/05/2022,"Supplies, Services & Other Expenses",Subscriptions,Greater Manchester Combined Authority,"14,959.05",20117994
Manchester City Council,05/05/2022,"Supplies, Services & Other Expenses",Professional Fees,Greater Manchester Combined Authority,"10,220.00",31115397
North West Skills Academy,05/05/2022,"Supplies, Services & Other Expenses",Grant Expenditure,Greater Manchester Combined Authority,"33,626.00",31115104
OLDHAM MET BOROUGH,05/05/2022,"Supplies, Services & Other Expenses",Grant Expenditure,Greater Manchester Combined Authority,"9,015.00",31115398
People Asset Management Ltd,05/05/2022,Indirect Employee Allowances,Medical Fees,Greater Manchester Combined Authority,"18,120.00",31115433
People Asset Management Ltd,05/05/2022,Indirect Employee Allowances,Medical Fees,Greater Manchester Combined Authority,"8,179.15",31115433
Pulse Regeneration Ltd,05/05/2022,"Supplies, Services & Other Expenses",Commissioned Services,Greater Manchester Combined Authority,"12,487.50",31115437
Rochdale Metropolitan Borough Council,05/05/2022,Capital,Capital Grant Expenditure,Greater Manchester Combined Authority,"1,110,683.81",31114145
SERCO LTD,05/05/2022,"Supplies, Services & Other Expenses",Professional Fees,Greater Manchester Combined Authority,"14,206.72",31114949
Slalom Consulting Ltd,05/05/2022,"Supplies, Services & Other Expenses",Professional Fees,Greater Manchester Combined Authority,"1,250.00",31115394
SQW Ltd,05/05/2022,"Supplies, Services & Other Expenses",Consultancy Fees,Greater Manchester Combined Authority,"7,691.00",31115374
Stellar Network Solutions Ltd,05/05/2022,"Supplies, Services & Other Expenses",Other Communications Equipment,Greater Manchester Combined Authority,"1,230.00",31115417
Stellar Network Solutions Ltd,05/05/2022,"Supplies, Services & Other Expenses",Other Communications Equipment,Greater Manchester Combined Authority,"1,137.50",31115418
THOMAS HARDIE COMMERCIALS LTD,05/05/2022,Transport Related Expenditure,Repairs and Maintenance - Transport,Greater Manchester Combined Authority,"1,356.40",31115428
Trafford College,05/05/2022,Capital,Capital Grant Expenditure,Greater Manchester Combined Authority,"434,890.00",20117813
Transport for Greater Manchester  ,05/05/2022,Capital,Capital Professional Fees,Greater Manchester Combined Authority,"10,507.64",31115405
Transport for Greater Manchester  ,05/05/2022,Capital,Capital Professional Fees,Greater Manchester Combined Authority,"29,631.01",31115406
VODAFONE HQ,05/05/2022,"Supplies, Services & Other Expenses",Outsourced Services IT,Greater Manchester Combined Authority,"2,945.85",31115395
Water Plus Limited,05/05/2022,Premises Related Expenditure,Metered Water,Greater Manchester Combined Authority,"3,644.00",31115012
Water Plus Limited,05/05/2022,Premises Related Expenditure,Metered Water,Greater Manchester Combined Authority,"3,516.19",31115012
Water Plus Limited,05/05/2022,Premises Related Expenditure,Metered Water,Greater Manchester Combined Authority,"12,644.32",31115012
Water Plus Limited,05/05/2022,Premises Related Expenditure,Metered Water,Greater Manchester Combined Authority,594.93,31115012
Water Plus Limited,05/05/2022,Premises Related Expenditure,Metered Water,Greater Manchester Combined Authority,932.11,31115012
Water Plus Limited,05/05/2022,Premises Related Expenditure,Metered Water,Greater Manchester Combined Authority,"13,655.80",31115012
Water Plus Limited,05/05/2022,Premises Related Expenditure,Metered Water,Greater Manchester Combined Authority,563.71,31115012
Water Plus Limited,05/05/2022,Premises Related Expenditure,Metered Water,Greater Manchester Combined Authority,563.71,31115012
Water Plus Limited,05/05/2022,Premises Related Expenditure,Metered Water,Greater Manchester Combined Authority,"1,769.43",31115012
Water Plus Limited,05/05/2022,Premises Related Expenditure,Metered Water,Greater Manchester Combined Authority,563.71,31115012
Water Plus Limited,05/05/2022,Premises Related Expenditure,Metered Water,Greater Manchester Combined Authority,563.71,31115012
Water Plus Limited,05/05/2022,Premises Related Expenditure,Metered Water,Greater Manchester Combined Authority,563.71,31115012
Water Plus Limited,05/05/2022,Premises Related Expenditure,Metered Water,Greater Manchester Combined Authority,563.71,31115012
Water Plus Limited,05/05/2022,Premises Related Expenditure,Metered Water,Greater Manchester Combined Authority,563.71,31115012
Water Plus Limited,05/05/2022,Premises Related Expenditure,Metered Water,Greater Manchester Combined Authority,563.71,31115012
Water Plus Limited,05/05/2022,Premises Related Expenditure,Metered Water,Greater Manchester Combined Authority,563.71,31115012
Water Plus Limited,05/05/2022,Premises Related Expenditure,Metered Water,Greater Manchester Combined Authority,563.71,31115012
Water Plus Limited,05/05/2022,Premises Related Expenditure,Metered Water,Greater Manchester Combined Authority,814.96,31115012
Water Plus Limited,05/05/2022,Premises Related Expenditure,Metered Water,Greater Manchester Combined Authority,"1,811.93",31115012
Water Plus Limited,05/05/2022,Premises Related Expenditure,Metered Water,Greater Manchester Combined Authority,"4,268.11",31115012
Water Plus Limited,05/05/2022,Premises Related Expenditure,Metered Water,Greater Manchester Combined Authority,615.68,31115012
Water Plus Limited,05/05/2022,Premises Related Expenditure,Metered Water,Greater Manchester Combined Authority,814.96,31115012
Water Plus Limited,05/05/2022,Premises Related Expenditure,Metered Water,Greater Manchester Combined Authority,650.68,31115012
COMPACT GROUNDS MAINTENANCE LD,06/05/2022,Premises Related Expenditure,Waste Site Programmed,Greater Manchester Combined Authority,"1,160.21",31115505
Creative Inclusion Limited,06/05/2022,"Supplies, Services & Other Expenses",Professional Fees,Greater Manchester Combined Authority,"1,750.00",31115468
DGW,06/05/2022,"Supplies, Services & Other Expenses",Operational Equipment Non-Consumables,Greater Manchester Combined Authority,999.50,31115493
Egress Limited,06/05/2022,"Supplies, Services & Other Expenses",Professional Fees,Greater Manchester Combined Authority,"6,000.00",31115184
IKG Consulting Limited,06/05/2022,Capital,Estates Capital Contracts,Greater Manchester Combined Authority,"2,100.00",31115502
IKG Consulting Limited,06/05/2022,Capital,Estates Capital Contracts,Greater Manchester Combined Authority,700.00,31115503
INEOS Runcorn (TPS) Limited,06/05/2022,"Supplies, Services & Other Expenses",Waste Disposal Services,Greater Manchester Combined Authority,"1,935,204.72",31115044
Ingeus UK Ltd,06/05/2022,"Supplies, Services & Other Expenses",Commissioned Services,Greater Manchester Combined Authority,"251,471.86",31115466
Ingeus UK Ltd,06/05/2022,"Supplies, Services & Other Expenses",Commissioned Services,Greater Manchester Combined Authority,"741,943.16",31115469
KC Consultants (Cumbria) Ltd,06/05/2022,"Supplies, Services & Other Expenses",Legal Liabilities,Greater Manchester Combined Authority,"1,238.86",31115464
LINK TREASURY SERVICES LIMITED,06/05/2022,"Supplies, Services & Other Expenses",Professional Fees,Greater Manchester Combined Authority,"7,425.00",31115531
Marie Bintley Consultancy Ltd,06/05/2022,"Supplies, Services & Other Expenses",Consultancy Fees,Greater Manchester Combined Authority,"7,200.00",31115453
North West Skills Academy,06/05/2022,"Supplies, Services & Other Expenses",Professional Fees,Greater Manchester Combined Authority,"5,788.80",31115084
North West Skills Academy,06/05/2022,"Supplies, Services & Other Expenses",Professional Fees,Greater Manchester Combined Authority,"15,437.12",31115084
Orion Health Limited,06/05/2022,"Supplies, Services & Other Expenses",Professional Fees,Greater Manchester Combined Authority,"40,846.00",31115509
RADIOCOMS SYSTEMS LIMITED,06/05/2022,"Supplies, Services & Other Expenses",Other Communications Equipment,Greater Manchester Combined Authority,"2,406.00",31115519
Reed Specialist Recruitment Ltd,06/05/2022,Indirect Employee Allowances,Recruitment,Greater Manchester Combined Authority,556.50,31115126
Rossett Hall Hotel,06/05/2022,"Supplies, Services & Other Expenses",Subsistence,Greater Manchester Combined Authority,"2,590.48",31115449
Salix Homes,06/05/2022,Capital,Capital Grant Expenditure,Greater Manchester Combined Authority,"364,535.00",20117761
SERCO LTD,06/05/2022,Indirect Employee Allowances,Training Course Fees,Greater Manchester Combined Authority,"3,300.00",31115379
Shaping Cloud Limited,06/05/2022,"Supplies, Services & Other Expenses",Professional Fees,Greater Manchester Combined Authority,"9,291.00",31115227
Stormsaver Ltd,06/05/2022,Premises Related Expenditure,Programmed Repairs & Maintenance,Greater Manchester Combined Authority,"1,494.00",31115511
SYNERGI SOFTWARE LIMITED,06/05/2022,"Supplies, Services & Other Expenses",Computer Software,Greater Manchester Combined Authority,"12,020.00",31115452
Telent Technology Services Ltd,06/05/2022,"Supplies, Services & Other Expenses",Other Communications Equipment,Greater Manchester Combined Authority,"1,215.75",31115474
Transport for Greater Manchester  ,06/05/2022,Capital,Capital Professional Fees,Greater Manchester Combined Authority,"2,729.34",31114192
Transport for Greater Manchester  ,06/05/2022,Capital,Capital Professional Fees,Greater Manchester Combined Authority,"23,864.76",31115046
Transport for Greater Manchester  ,06/05/2022,Capital,Capital Professional Fees,Greater Manchester Combined Authority,"1,399.53",31115046
Transport for Greater Manchester  ,06/05/2022,Capital,Capital Professional Fees,Greater Manchester Combined Authority,"10,246.55",31115186
Warden Construction Ltd,06/05/2022,Capital,Estates Capital Contracts,Greater Manchester Combined Authority,623.27,31113950
Warden Construction Ltd,06/05/2022,Capital,Estates Capital Contracts,Greater Manchester Combined Authority,"76,642.29",31113951
WIGAN COUNCIL,06/05/2022,"Supplies, Services & Other Expenses",Stationery,Greater Manchester Combined Authority,"1,865.85",31115521
WillFire HC LLC t/a Williams Fire & Hazard Control,06/05/2022,Indirect Employee Allowances,Training Course Fees,Greater Manchester Combined Authority,"4,500.00",31115425
2Novate,09/05/2022,"Supplies, Services & Other Expenses",Commissioned Services,Greater Manchester Combined Authority,"5,000.00",31115515
Acorn Training Limited,09/05/2022,"Supplies, Services & Other Expenses",Professional Fees,Greater Manchester Combined Authority,"26,087.02",31115386
BALLYCLARE LIMITED,09/05/2022,Indirect Employee Allowances,Other Training Expenses,Greater Manchester Combined Authority,"12,415.20",31115546
Bolton MBC,09/05/2022,Premises Related Expenditure,Rates,Greater Manchester Combined Authority,"1,609.00",20117798
Bolton MBC,09/05/2022,Premises Related Expenditure,Rates,Greater Manchester Combined Authority,"2,283.00",20117798
BRADSHAW GASS & HOPE LLP,09/05/2022,Capital,Estates Capital Contracts,Greater Manchester Combined Authority,"3,713.76",31115522
Department for Work and Pensions,09/05/2022,"Supplies, Services & Other Expenses",Professional Fees,Greater Manchester Combined Authority,"1,186.96",31115578
DJS Research Limited,09/05/2022,"Supplies, Services & Other Expenses",Commissioned Services,Greater Manchester Combined Authority,"38,000.00",31115558
Emergency One (UK) Ltd,09/05/2022,Transport Related Expenditure,Repairs and Maintenance - Transport,Greater Manchester Combined Authority,866.60,31115579
Fire Hose Tech Ltd,09/05/2022,"Supplies, Services & Other Expenses",Operational Equipment Non-Consumables,Greater Manchester Combined Authority,"1,023.20",31115592
Great Places Housing Group,09/05/2022,"Supplies, Services & Other Expenses",Professional Fees,Greater Manchester Combined Authority,"161,580.00",31115559
H2K B.V.,09/05/2022,Indirect Employee Allowances,Training Course Fees,Greater Manchester Combined Authority,"12,356.00",31115548
Healthwork,09/05/2022,Indirect Employee Allowances,Medical Fees,Greater Manchester Combined Authority,500.00,31115554
Healthwork,09/05/2022,Indirect Employee Allowances,Medical Fees,Greater Manchester Combined Authority,960.00,31115555
Millie�s Trust,09/05/2022,Indirect Employee Allowances,Other Training Expenses,Greater Manchester Combined Authority,"1,100.00",31111853
Milton Construction and Property Limited t/a MCP Cost Consultants,09/05/2022,"Supplies, Services & Other Expenses",Professional Fees,Greater Manchester Combined Authority,675.00,31115566
Naismiths Limited,09/05/2022,"Supplies, Services & Other Expenses",Professional Fees,Greater Manchester Combined Authority,700.00,31115565
Neos Global Search Ltd,09/05/2022,"Supplies, Services & Other Expenses",Consultancy Fees,Greater Manchester Combined Authority,"13,897.00",31115568
OBJECTIVE KEYSTONE LIMITED,09/05/2022,"Supplies, Services & Other Expenses",Consultancy Fees,Greater Manchester Combined Authority,"9,448.00",31115436
Open Kitchen MCR,09/05/2022,"Supplies, Services & Other Expenses",Subsistence,Greater Manchester Combined Authority,500.00,31115572
Open Kitchen MCR,09/05/2022,"Supplies, Services & Other Expenses",Subsistence,Greater Manchester Combined Authority,"1,305.00",31115576
Police & Crime Commissioner for West Midlands Police,09/05/2022,Indirect Employee Allowances,Training Course Fees,Greater Manchester Combined Authority,550.00,31115583
RADIOCOMS SYSTEMS LIMITED,09/05/2022,"Supplies, Services & Other Expenses",Other Communications Equipment,Greater Manchester Combined Authority,"6,545.00",31115588
STREETGAMES UK,09/05/2022,"Supplies, Services & Other Expenses",Commissioned Services,Greater Manchester Combined Authority,"29,166.00",31115508
SystemsLink,09/05/2022,"Supplies, Services & Other Expenses",Computer Software,Greater Manchester Combined Authority,"3,975.00",31115440
Telefonica UK Ltd (O2),09/05/2022,"Supplies, Services & Other Expenses",Outsourced Services IT,Greater Manchester Combined Authority,"24,220.00",31115587
Telent Technology Services Ltd,09/05/2022,"Supplies, Services & Other Expenses",Other Communications Equipment,Greater Manchester Combined Authority,"3,944.59",31115571
TRAVELERS INSURANCE COMPANY LIMITED,09/05/2022,"Supplies, Services & Other Expenses",Insurance,Greater Manchester Combined Authority,"4,839.88",31115577
Bury Council,10/05/2022,Capital,Capital Grant Expenditure,Greater Manchester Combined Authority,"220,025.22",31113794
Cornerstone Design & Marketing Ltd,10/05/2022,"Supplies, Services & Other Expenses",Digital,Greater Manchester Combined Authority,"3,400.00",31115600
Cornerstone Design & Marketing Ltd,10/05/2022,"Supplies, Services & Other Expenses",Digital,Greater Manchester Combined Authority,825.00,31115601
J Fletcher (Engineers) Ltd,10/05/2022,Premises Related Expenditure,Responsive Repairs & Maintenance,Greater Manchester Combined Authority,836.32,31115623
Mazars LLP,10/05/2022,"Supplies, Services & Other Expenses",Audit Fee,Greater Manchester Combined Authority,"32,742.00",31115636
Michael Page International Recruitment Limited,10/05/2022,"Supplies, Services & Other Expenses",Professional Fees,Greater Manchester Combined Authority,"3,637.10",31115624
Objectivity Limited,10/05/2022,"Supplies, Services & Other Expenses",Professional Fees,Greater Manchester Combined Authority,"10,500.00",31115606
Prestige Chauffeurs Limited,10/05/2022,Transport Related Expenditure,Officers Travel & Subsistence,Greater Manchester Combined Authority,551.00,31115510
Programme Officer Services Limited,10/05/2022,"Supplies, Services & Other Expenses",Consultancy Fees,Greater Manchester Combined Authority,"2,483.12",31115604
Reed Specialist Recruitment Ltd,10/05/2022,Employees Pay,Agency Staff Costs,Greater Manchester Combined Authority,"4,609.13",31115605
Salesforce UK Limited,10/05/2022,"Supplies, Services & Other Expenses",Professional Fees,Greater Manchester Combined Authority,"7,327.70",31115611
Sattva Associates Ltd,10/05/2022,Indirect Employee Allowances,Training Course Fees,Greater Manchester Combined Authority,"4,515.35",31115598
Sheffield Hallam University,10/05/2022,"Supplies, Services & Other Expenses",Professional Fees,Greater Manchester Combined Authority,"7,345.00",31115006
Transport for Greater Manchester  Interbank,10/05/2022,"Supplies, Services & Other Expenses",TFGM Revenue Support Grant,Greater Manchester Combined Authority,"10,408,584.00",31115597
Transport for Greater Manchester  Interbank,10/05/2022,"Supplies, Services & Other Expenses",Grant Expenditure,Greater Manchester Combined Authority,"982,083.34",31115597
Transport for Greater Manchester  Interbank,10/05/2022,"Supplies, Services & Other Expenses",Grant Expenditure,Greater Manchester Combined Authority,"1,324,583.34",31115597
Transport for Greater Manchester  Interbank,10/05/2022,"Supplies, Services & Other Expenses",Grant Expenditure,Greater Manchester Combined Authority,"1,350,000.00",31115597
Transport for Greater Manchester  Interbank,10/05/2022,"Supplies, Services & Other Expenses",Grant Expenditure,Greater Manchester Combined Authority,"45,833.34",31115597
The Princes Trust,10/05/2022,"Supplies, Services & Other Expenses",Grant Expenditure,Greater Manchester Combined Authority,"444,966.00",31115584
THOMAS HARDIE COMMERCIALS LTD,10/05/2022,Transport Related Expenditure,Repairs and Maintenance - Transport,Greater Manchester Combined Authority,893.37,31115626
Addleshaw Goddard LLP,11/05/2022,"Supplies, Services & Other Expenses",Legal Liabilities,Greater Manchester Combined Authority,"62,307.81",31115661
Addleshaw Goddard LLP,11/05/2022,"Supplies, Services & Other Expenses",Legal Liabilities,Greater Manchester Combined Authority,"5,000.00",31115697
Addleshaw Goddard LLP,11/05/2022,"Supplies, Services & Other Expenses",Legal Liabilities,Greater Manchester Combined Authority,"60,293.13",31115698
Artal Fund Monitoring,11/05/2022,"Supplies, Services & Other Expenses",Professional Fees,Greater Manchester Combined Authority,850.00,31115695
Artal Fund Monitoring,11/05/2022,"Supplies, Services & Other Expenses",Professional Fees,Greater Manchester Combined Authority,750.00,31115696
Corona Energy,11/05/2022,Premises Related Expenditure,Gas,Greater Manchester Combined Authority,535.54,31115684
Corona Energy,11/05/2022,Premises Related Expenditure,Gas,Greater Manchester Combined Authority,765.35,31115684
Corona Energy,11/05/2022,Premises Related Expenditure,Gas,Greater Manchester Combined Authority,878.26,31115684
Corona Energy,11/05/2022,Premises Related Expenditure,Gas,Greater Manchester Combined Authority,575.87,31115684
Corona Energy,11/05/2022,Premises Related Expenditure,Gas,Greater Manchester Combined Authority,753.72,31115684
Corona Energy,11/05/2022,Premises Related Expenditure,Gas,Greater Manchester Combined Authority,650.21,31115684
Corona Energy,11/05/2022,Premises Related Expenditure,Gas,Greater Manchester Combined Authority,962.30,31115684
Corona Energy,11/05/2022,Premises Related Expenditure,Gas,Greater Manchester Combined Authority,675.50,31115684
Corona Energy,11/05/2022,Premises Related Expenditure,Gas,Greater Manchester Combined Authority,649.32,31115684
Corona Energy,11/05/2022,Premises Related Expenditure,Gas,Greater Manchester Combined Authority,811.79,31115684
Corona Energy,11/05/2022,Premises Related Expenditure,Gas,Greater Manchester Combined Authority,547.54,31115684
Corona Energy,11/05/2022,Premises Related Expenditure,Gas,Greater Manchester Combined Authority,"1,849.12",31115684
Corona Energy,11/05/2022,Premises Related Expenditure,Gas,Greater Manchester Combined Authority,550.21,31115684
Corona Energy,11/05/2022,Premises Related Expenditure,Gas,Greater Manchester Combined Authority,579.79,31115684
Corona Energy,11/05/2022,Premises Related Expenditure,Gas,Greater Manchester Combined Authority,"1,104.31",31115684
Corona Energy,11/05/2022,Premises Related Expenditure,Gas,Greater Manchester Combined Authority,884.62,31115684
Corona Energy,11/05/2022,Premises Related Expenditure,Gas,Greater Manchester Combined Authority,746.27,31115684
Corona Energy,11/05/2022,Premises Related Expenditure,Gas,Greater Manchester Combined Authority,968.14,31115684
Corona Energy,11/05/2022,Premises Related Expenditure,Gas,Greater Manchester Combined Authority,698.68,31115684
Corona Energy,11/05/2022,Premises Related Expenditure,Gas,Greater Manchester Combined Authority,824.49,31115684
Corona Energy,11/05/2022,Premises Related Expenditure,Gas,Greater Manchester Combined Authority,642.18,31115684
Corona Energy,11/05/2022,Premises Related Expenditure,Gas,Greater Manchester Combined Authority,831.15,31115684
Corona Energy,11/05/2022,Premises Related Expenditure,Gas,Greater Manchester Combined Authority,507.13,31115684
Corona Energy,11/05/2022,Premises Related Expenditure,Gas,Greater Manchester Combined Authority,692.79,31115684
Corona Energy,11/05/2022,Premises Related Expenditure,Gas,Greater Manchester Combined Authority,"1,016.03",31115684
Corona Energy,11/05/2022,Premises Related Expenditure,Gas,Greater Manchester Combined Authority,"3,840.41",31115684
Corona Energy,11/05/2022,Premises Related Expenditure,Gas,Greater Manchester Combined Authority,799.91,31115684
Corona Energy,11/05/2022,Premises Related Expenditure,Gas,Greater Manchester Combined Authority,757.24,31115684
Corona Energy,11/05/2022,Premises Related Expenditure,Gas,Greater Manchester Combined Authority,679.76,31115684
Corona Energy,11/05/2022,Premises Related Expenditure,Gas,Greater Manchester Combined Authority,"1,592.87",31115684
Corona Energy,11/05/2022,Premises Related Expenditure,Gas,Greater Manchester Combined Authority,934.97,31115684
Corona Energy,11/05/2022,Premises Related Expenditure,Gas,Greater Manchester Combined Authority,"1,840.13",31115684
Corona Energy,11/05/2022,Premises Related Expenditure,Gas,Greater Manchester Combined Authority,535.54,31115684
Corona Energy,11/05/2022,Premises Related Expenditure,Gas,Greater Manchester Combined Authority,878.26,31115684
Corona Energy,11/05/2022,Premises Related Expenditure,Gas,Greater Manchester Combined Authority,765.35,31115684
Corona Energy,11/05/2022,Premises Related Expenditure,Gas,Greater Manchester Combined Authority,575.87,31115684
Corona Energy,11/05/2022,Premises Related Expenditure,Gas,Greater Manchester Combined Authority,507.13,31115684
Corona Energy,11/05/2022,Premises Related Expenditure,Gas,Greater Manchester Combined Authority,831.15,31115684
Corona Energy,11/05/2022,Premises Related Expenditure,Gas,Greater Manchester Combined Authority,642.18,31115684
Corona Energy,11/05/2022,Premises Related Expenditure,Gas,Greater Manchester Combined Authority,"1,016.03",31115684
Corona Energy,11/05/2022,Premises Related Expenditure,Gas,Greater Manchester Combined Authority,692.79,31115684
Corona Energy,11/05/2022,Premises Related Expenditure,Gas,Greater Manchester Combined Authority,799.91,31115684
Corona Energy,11/05/2022,Premises Related Expenditure,Gas,Greater Manchester Combined Authority,757.24,31115684
Corona Energy,11/05/2022,Premises Related Expenditure,Gas,Greater Manchester Combined Authority,"3,840.41",31115684
Corona Energy,11/05/2022,Premises Related Expenditure,Gas,Greater Manchester Combined Authority,698.68,31115684
Corona Energy,11/05/2022,Premises Related Expenditure,Gas,Greater Manchester Combined Authority,824.49,31115684
Corona Energy,11/05/2022,Premises Related Expenditure,Gas,Greater Manchester Combined Authority,962.30,31115684
Corona Energy,11/05/2022,Premises Related Expenditure,Gas,Greater Manchester Combined Authority,753.72,31115684
Corona Energy,11/05/2022,Premises Related Expenditure,Gas,Greater Manchester Combined Authority,650.21,31115684
Corona Energy,11/05/2022,Premises Related Expenditure,Gas,Greater Manchester Combined Authority,649.32,31115684
Corona Energy,11/05/2022,Premises Related Expenditure,Gas,Greater Manchester Combined Authority,675.50,31115684
Corona Energy,11/05/2022,Premises Related Expenditure,Gas,Greater Manchester Combined Authority,547.54,31115684
Corona Energy,11/05/2022,Premises Related Expenditure,Gas,Greater Manchester Combined Authority,"1,849.12",31115684
Corona Energy,11/05/2022,Premises Related Expenditure,Gas,Greater Manchester Combined Authority,811.79,31115684
Corona Energy,11/05/2022,Premises Related Expenditure,Gas,Greater Manchester Combined Authority,550.21,31115684
Corona Energy,11/05/2022,Premises Related Expenditure,Gas,Greater Manchester Combined Authority,579.79,31115684
Corona Energy,11/05/2022,Premises Related Expenditure,Gas,Greater Manchester Combined Authority,968.14,31115684
Corona Energy,11/05/2022,Premises Related Expenditure,Gas,Greater Manchester Combined Authority,"1,104.31",31115684
Corona Energy,11/05/2022,Premises Related Expenditure,Gas,Greater Manchester Combined Authority,884.62,31115684
Corona Energy,11/05/2022,Premises Related Expenditure,Gas,Greater Manchester Combined Authority,746.27,31115684
Corona Energy,11/05/2022,Premises Related Expenditure,Gas,Greater Manchester Combined Authority,"1,840.13",31115684
Corona Energy,11/05/2022,Premises Related Expenditure,Gas,Greater Manchester Combined Authority,679.76,31115684
Corona Energy,11/05/2022,Premises Related Expenditure,Gas,Greater Manchester Combined Authority,"1,592.87",31115684
Corona Energy,11/05/2022,Premises Related Expenditure,Gas,Greater Manchester Combined Authority,934.97,31115684
Delta Fire,11/05/2022,"Supplies, Services & Other Expenses",Operational Equipment Non-Consumables,Greater Manchester Combined Authority,"14,589.00",31115667
Dynamic Descaler UK Ltd,11/05/2022,Premises Related Expenditure,Waste Machinery Maintenance,Greater Manchester Combined Authority,"1,225.00",31115669
Good Things Foundation,11/05/2022,"Supplies, Services & Other Expenses",Grant Expenditure,Greater Manchester Combined Authority,"183,699.00",31115631
H JENKINSON & COMPANY LTD,11/05/2022,Capital,Estates Capital Contracts,Greater Manchester Combined Authority,"7,688.49",31115676
HBL ASSOCIATES,11/05/2022,Premises Related Expenditure,Responsive Repairs & Maintenance,Greater Manchester Combined Authority,"2,750.00",31115193
Redacted Personal Data,11/05/2022,Premises Related Expenditure,Responsive Repairs & Maintenance,Greater Manchester Combined Authority,"1,750.00",31115665
Live Manage Facilitate Limited T/A LMF Energy Services,11/05/2022,"Supplies, Services & Other Expenses",Grant Expenditure,Greater Manchester Combined Authority,"254,494.01",31115694
Manchester Literature Festival,11/05/2022,"Supplies, Services & Other Expenses",Grant Expenditure,Greater Manchester Combined Authority,"20,000.00",31115581
NPOWER YORKSHIRE LTD,11/05/2022,Premises Related Expenditure,Electricity,Greater Manchester Combined Authority,526.66,31115685
NPOWER YORKSHIRE LTD,11/05/2022,Premises Related Expenditure,Electricity,Greater Manchester Combined Authority,735.25,31115685
NPOWER YORKSHIRE LTD,11/05/2022,Premises Related Expenditure,Electricity,Greater Manchester Combined Authority,526.66,31115685
NPOWER YORKSHIRE LTD,11/05/2022,Premises Related Expenditure,Electricity,Greater Manchester Combined Authority,735.25,31115685
NPOWER YORKSHIRE LTD,11/05/2022,Premises Related Expenditure,Electricity,Greater Manchester Combined Authority,"4,608.39",31115686
NPOWER YORKSHIRE LTD,11/05/2022,Premises Related Expenditure,Electricity,Greater Manchester Combined Authority,"5,417.09",31115686
NPOWER YORKSHIRE LTD,11/05/2022,Premises Related Expenditure,Electricity,Greater Manchester Combined Authority,"4,608.39",31115686
NPOWER YORKSHIRE LTD,11/05/2022,Premises Related Expenditure,Electricity,Greater Manchester Combined Authority,"5,417.09",31115686
NPOWER YORKSHIRE LTD,11/05/2022,Premises Related Expenditure,Electricity,Greater Manchester Combined Authority,"1,787.00",31115687
NPOWER YORKSHIRE LTD,11/05/2022,Premises Related Expenditure,Electricity,Greater Manchester Combined Authority,"1,787.00",31115687
NPOWER YORKSHIRE LTD,11/05/2022,Premises Related Expenditure,Electricity,Greater Manchester Combined Authority,"1,165.63",31115688
NPOWER YORKSHIRE LTD,11/05/2022,Premises Related Expenditure,Electricity,Greater Manchester Combined Authority,"1,756.88",31115688
NPOWER YORKSHIRE LTD,11/05/2022,Premises Related Expenditure,Electricity,Greater Manchester Combined Authority,867.90,31115688
NPOWER YORKSHIRE LTD,11/05/2022,Premises Related Expenditure,Electricity,Greater Manchester Combined Authority,"1,170.94",31115688
NPOWER YORKSHIRE LTD,11/05/2022,Premises Related Expenditure,Electricity,Greater Manchester Combined Authority,881.98,31115688
NPOWER YORKSHIRE LTD,11/05/2022,Premises Related Expenditure,Electricity,Greater Manchester Combined Authority,"1,756.88",31115688
NPOWER YORKSHIRE LTD,11/05/2022,Premises Related Expenditure,Electricity,Greater Manchester Combined Authority,867.90,31115688
NPOWER YORKSHIRE LTD,11/05/2022,Premises Related Expenditure,Electricity,Greater Manchester Combined Authority,"1,170.94",31115688
NPOWER YORKSHIRE LTD,11/05/2022,Premises Related Expenditure,Electricity,Greater Manchester Combined Authority,881.98,31115688
NPOWER YORKSHIRE LTD,11/05/2022,Premises Related Expenditure,Electricity,Greater Manchester Combined Authority,"1,165.63",31115688
NPOWER YORKSHIRE LTD,11/05/2022,Premises Related Expenditure,Electricity,Greater Manchester Combined Authority,"4,013.86",31115689
NPOWER YORKSHIRE LTD,11/05/2022,Premises Related Expenditure,Electricity,Greater Manchester Combined Authority,"6,263.03",31115689
NPOWER YORKSHIRE LTD,11/05/2022,Premises Related Expenditure,Electricity,Greater Manchester Combined Authority,"5,467.72",31115689
NPOWER YORKSHIRE LTD,11/05/2022,Premises Related Expenditure,Electricity,Greater Manchester Combined Authority,"5,048.44",31115689
NPOWER YORKSHIRE LTD,11/05/2022,Premises Related Expenditure,Electricity,Greater Manchester Combined Authority,"4,052.46",31115689
NPOWER YORKSHIRE LTD,11/05/2022,Premises Related Expenditure,Electricity,Greater Manchester Combined Authority,"2,898.62",31115689
NPOWER YORKSHIRE LTD,11/05/2022,Premises Related Expenditure,Electricity,Greater Manchester Combined Authority,"2,898.62",31115689
NPOWER YORKSHIRE LTD,11/05/2022,Premises Related Expenditure,Electricity,Greater Manchester Combined Authority,"6,263.03",31115689
NPOWER YORKSHIRE LTD,11/05/2022,Premises Related Expenditure,Electricity,Greater Manchester Combined Authority,"5,467.72",31115689
NPOWER YORKSHIRE LTD,11/05/2022,Premises Related Expenditure,Electricity,Greater Manchester Combined Authority,"5,048.44",31115689
NPOWER YORKSHIRE LTD,11/05/2022,Premises Related Expenditure,Electricity,Greater Manchester Combined Authority,"4,052.46",31115689
NPOWER YORKSHIRE LTD,11/05/2022,Premises Related Expenditure,Electricity,Greater Manchester Combined Authority,"4,013.86",31115689
NPOWER YORKSHIRE LTD,11/05/2022,Premises Related Expenditure,Electricity,Greater Manchester Combined Authority,733.04,31115690
NPOWER YORKSHIRE LTD,11/05/2022,Premises Related Expenditure,Electricity,Greater Manchester Combined Authority,723.59,31115690
NPOWER YORKSHIRE LTD,11/05/2022,Premises Related Expenditure,Electricity,Greater Manchester Combined Authority,"1,394.85",31115690
NPOWER YORKSHIRE LTD,11/05/2022,Premises Related Expenditure,Electricity,Greater Manchester Combined Authority,523.81,31115690
NPOWER YORKSHIRE LTD,11/05/2022,Premises Related Expenditure,Electricity,Greater Manchester Combined Authority,612.58,31115690
NPOWER YORKSHIRE LTD,11/05/2022,Premises Related Expenditure,Electricity,Greater Manchester Combined Authority,"1,837.14",31115690
NPOWER YORKSHIRE LTD,11/05/2022,Premises Related Expenditure,Electricity,Greater Manchester Combined Authority,689.89,31115690
NPOWER YORKSHIRE LTD,11/05/2022,Premises Related Expenditure,Electricity,Greater Manchester Combined Authority,519.40,31115690
NPOWER YORKSHIRE LTD,11/05/2022,Premises Related Expenditure,Electricity,Greater Manchester Combined Authority,884.30,31115690
NPOWER YORKSHIRE LTD,11/05/2022,Premises Related Expenditure,Electricity,Greater Manchester Combined Authority,927.39,31115690
NPOWER YORKSHIRE LTD,11/05/2022,Premises Related Expenditure,Electricity,Greater Manchester Combined Authority,"1,608.21",31115690
NPOWER YORKSHIRE LTD,11/05/2022,Premises Related Expenditure,Electricity,Greater Manchester Combined Authority,583.60,31115690
NPOWER YORKSHIRE LTD,11/05/2022,Premises Related Expenditure,Electricity,Greater Manchester Combined Authority,621.26,31115690
NPOWER YORKSHIRE LTD,11/05/2022,Premises Related Expenditure,Electricity,Greater Manchester Combined Authority,"1,837.14",31115690
NPOWER YORKSHIRE LTD,11/05/2022,Premises Related Expenditure,Electricity,Greater Manchester Combined Authority,689.89,31115690
NPOWER YORKSHIRE LTD,11/05/2022,Premises Related Expenditure,Electricity,Greater Manchester Combined Authority,612.58,31115690
NPOWER YORKSHIRE LTD,11/05/2022,Premises Related Expenditure,Electricity,Greater Manchester Combined Authority,523.81,31115690
NPOWER YORKSHIRE LTD,11/05/2022,Premises Related Expenditure,Electricity,Greater Manchester Combined Authority,519.40,31115690
NPOWER YORKSHIRE LTD,11/05/2022,Premises Related Expenditure,Electricity,Greater Manchester Combined Authority,884.30,31115690
NPOWER YORKSHIRE LTD,11/05/2022,Premises Related Expenditure,Electricity,Greater Manchester Combined Authority,733.04,31115690
NPOWER YORKSHIRE LTD,11/05/2022,Premises Related Expenditure,Electricity,Greater Manchester Combined Authority,"1,394.85",31115690
NPOWER YORKSHIRE LTD,11/05/2022,Premises Related Expenditure,Electricity,Greater Manchester Combined Authority,723.59,31115690
NPOWER YORKSHIRE LTD,11/05/2022,Premises Related Expenditure,Electricity,Greater Manchester Combined Authority,"1,608.21",31115690
NPOWER YORKSHIRE LTD,11/05/2022,Premises Related Expenditure,Electricity,Greater Manchester Combined Authority,927.39,31115690
NPOWER YORKSHIRE LTD,11/05/2022,Premises Related Expenditure,Electricity,Greater Manchester Combined Authority,583.60,31115690
NPOWER YORKSHIRE LTD,11/05/2022,Premises Related Expenditure,Electricity,Greater Manchester Combined Authority,621.26,31115690
NPOWER YORKSHIRE LTD,11/05/2022,Premises Related Expenditure,Electricity,Greater Manchester Combined Authority,"1,006.48",31115691
NPOWER YORKSHIRE LTD,11/05/2022,Premises Related Expenditure,Electricity,Greater Manchester Combined Authority,647.11,31115691
NPOWER YORKSHIRE LTD,11/05/2022,Premises Related Expenditure,Electricity,Greater Manchester Combined Authority,654.45,31115691
NPOWER YORKSHIRE LTD,11/05/2022,Premises Related Expenditure,Electricity,Greater Manchester Combined Authority,603.58,31115691
NPOWER YORKSHIRE LTD,11/05/2022,Premises Related Expenditure,Electricity,Greater Manchester Combined Authority,"1,596.56",31115691
NPOWER YORKSHIRE LTD,11/05/2022,Premises Related Expenditure,Electricity,Greater Manchester Combined Authority,"1,030.54",31115691
NPOWER YORKSHIRE LTD,11/05/2022,Premises Related Expenditure,Electricity,Greater Manchester Combined Authority,563.19,31115691
NPOWER YORKSHIRE LTD,11/05/2022,Premises Related Expenditure,Electricity,Greater Manchester Combined Authority,764.77,31115691
NPOWER YORKSHIRE LTD,11/05/2022,Premises Related Expenditure,Electricity,Greater Manchester Combined Authority,735.54,31115691
NPOWER YORKSHIRE LTD,11/05/2022,Premises Related Expenditure,Electricity,Greater Manchester Combined Authority,666.97,31115691
NPOWER YORKSHIRE LTD,11/05/2022,Premises Related Expenditure,Electricity,Greater Manchester Combined Authority,562.77,31115691
NPOWER YORKSHIRE LTD,11/05/2022,Premises Related Expenditure,Electricity,Greater Manchester Combined Authority,535.88,31115691
NPOWER YORKSHIRE LTD,11/05/2022,Premises Related Expenditure,Electricity,Greater Manchester Combined Authority,"1,036.75",31115691
NPOWER YORKSHIRE LTD,11/05/2022,Premises Related Expenditure,Electricity,Greater Manchester Combined Authority,622.44,31115691
NPOWER YORKSHIRE LTD,11/05/2022,Premises Related Expenditure,Electricity,Greater Manchester Combined Authority,866.03,31115691
NPOWER YORKSHIRE LTD,11/05/2022,Premises Related Expenditure,Electricity,Greater Manchester Combined Authority,"1,044.17",31115691
NPOWER YORKSHIRE LTD,11/05/2022,Premises Related Expenditure,Electricity,Greater Manchester Combined Authority,"1,030.54",31115691
NPOWER YORKSHIRE LTD,11/05/2022,Premises Related Expenditure,Electricity,Greater Manchester Combined Authority,"1,596.56",31115691
NPOWER YORKSHIRE LTD,11/05/2022,Premises Related Expenditure,Electricity,Greater Manchester Combined Authority,"1,036.75",31115691
NPOWER YORKSHIRE LTD,11/05/2022,Premises Related Expenditure,Electricity,Greater Manchester Combined Authority,622.44,31115691
NPOWER YORKSHIRE LTD,11/05/2022,Premises Related Expenditure,Electricity,Greater Manchester Combined Authority,866.03,31115691
NPOWER YORKSHIRE LTD,11/05/2022,Premises Related Expenditure,Electricity,Greater Manchester Combined Authority,"1,044.17",31115691
NPOWER YORKSHIRE LTD,11/05/2022,Premises Related Expenditure,Electricity,Greater Manchester Combined Authority,535.88,31115691
NPOWER YORKSHIRE LTD,11/05/2022,Premises Related Expenditure,Electricity,Greater Manchester Combined Authority,764.77,31115691
NPOWER YORKSHIRE LTD,11/05/2022,Premises Related Expenditure,Electricity,Greater Manchester Combined Authority,562.77,31115691
NPOWER YORKSHIRE LTD,11/05/2022,Premises Related Expenditure,Electricity,Greater Manchester Combined Authority,"1,006.48",31115691
NPOWER YORKSHIRE LTD,11/05/2022,Premises Related Expenditure,Electricity,Greater Manchester Combined Authority,647.11,31115691
NPOWER YORKSHIRE LTD,11/05/2022,Premises Related Expenditure,Electricity,Greater Manchester Combined Authority,563.19,31115691
NPOWER YORKSHIRE LTD,11/05/2022,Premises Related Expenditure,Electricity,Greater Manchester Combined Authority,666.97,31115691
NPOWER YORKSHIRE LTD,11/05/2022,Premises Related Expenditure,Electricity,Greater Manchester Combined Authority,735.54,31115691
NPOWER YORKSHIRE LTD,11/05/2022,Premises Related Expenditure,Electricity,Greater Manchester Combined Authority,603.58,31115691
NPOWER YORKSHIRE LTD,11/05/2022,Premises Related Expenditure,Electricity,Greater Manchester Combined Authority,654.45,31115691
Objectivity Limited,11/05/2022,"Supplies, Services & Other Expenses",Professional Fees,Greater Manchester Combined Authority,"3,824.00",31115670
PLP Construction Ltd,11/05/2022,Capital,Estates Capital Contracts,Greater Manchester Combined Authority,"272,339.04",31115616
Proact IT UK Ltd,11/05/2022,"Supplies, Services & Other Expenses",Outsourced Services IT,Greater Manchester Combined Authority,600.00,31115668
SAFEQUIP LTD,11/05/2022,"Supplies, Services & Other Expenses",Operational Equipment Non-Consumables,Greater Manchester Combined Authority,634.00,31113248
Standby Productions Ltd,11/05/2022,"Supplies, Services & Other Expenses",Events,Greater Manchester Combined Authority,"2,400.00",31113680
TERBERG DTS UK,11/05/2022,Transport Related Expenditure,Repairs and Maintenance - Transport,Greater Manchester Combined Authority,"1,189.60",31115662
THOMAS HARDIE COMMERCIALS LTD,11/05/2022,Transport Related Expenditure,Repairs and Maintenance - Transport,Greater Manchester Combined Authority,"20,325.59",31113079
Transport for Greater Manchester  ,11/05/2022,Capital,Capital Professional Fees,Greater Manchester Combined Authority,"2,008.92",31115658
Twelvetrees Consulting Ltd,11/05/2022,"Supplies, Services & Other Expenses",Professional Fees,Greater Manchester Combined Authority,"9,570.00",31115650
Twelvetrees Consulting Ltd,11/05/2022,"Supplies, Services & Other Expenses",Professional Fees,Greater Manchester Combined Authority,"9,750.00",31115653
Bray Leino Events,12/05/2022,"Supplies, Services & Other Expenses",Events,Greater Manchester Combined Authority,"13,468.20",31115664
Community Led Initiatives CIC,12/05/2022,"Supplies, Services & Other Expenses",Commissioned Services,Greater Manchester Combined Authority,"42,857.00",31115446
Hitch Marketing Ltd,12/05/2022,"Supplies, Services & Other Expenses",Commissioned Services,Greater Manchester Combined Authority,"1,900.00",31115721
Humberside Fire and Rescue Service,12/05/2022,"Supplies, Services & Other Expenses",Fire Investigation Dog,Greater Manchester Combined Authority,500.00,31115402
Peli Products UK,12/05/2022,Capital,Capital Equipment,Greater Manchester Combined Authority,"8,431.24",31115709
SAFETY-KLEEN UK LTD,12/05/2022,Transport Related Expenditure,Repairs and Maintenance - Transport,Greater Manchester Combined Authority,514.02,31115553
The Princes Trust,12/05/2022,"Supplies, Services & Other Expenses",Grant Expenditure,Greater Manchester Combined Authority,"-252,568.00",20117840
Arcus Consulting LLP,13/05/2022,"Supplies, Services & Other Expenses",Consultancy Fees,Greater Manchester Combined Authority,"6,435.00",31115741
Art with Heart CIC,13/05/2022,"Supplies, Services & Other Expenses",Grant Expenditure,Greater Manchester Combined Authority,"41,428.00",31115655
BRAKE BROS FOOD SERVICE LTD,13/05/2022,"Supplies, Services & Other Expenses",Food,Greater Manchester Combined Authority,639.09,31115731
Calderys NGJ Limited,13/05/2022,Indirect Employee Allowances,Other Training Expenses,Greater Manchester Combined Authority,915.00,31115734
County Durham & Darlington Fire & Rescue Service,13/05/2022,Indirect Employee Allowances,Training Course Fees,Greater Manchester Combined Authority,"1,200.00",31116123
GUARDIAN TECHNICAL MAINTENANCE LTD,13/05/2022,Capital,Estates Capital Contracts,Greater Manchester Combined Authority,785.87,31115760
ICVA,13/05/2022,"Supplies, Services & Other Expenses",Subscriptions,Greater Manchester Combined Authority,"1,000.00",31115766
Imprana Ltd,13/05/2022,"Supplies, Services & Other Expenses",Consultancy Fees,Greater Manchester Combined Authority,"6,212.50",31115789
JWO Consulting Ltd,13/05/2022,"Supplies, Services & Other Expenses",Consultancy Fees,Greater Manchester Combined Authority,"2,200.00",31115770
JWO Consulting Ltd,13/05/2022,"Supplies, Services & Other Expenses",Professional Fees,Greater Manchester Combined Authority,"2,200.00",31115771
RADIOCOMS SYSTEMS LIMITED,13/05/2022,"Supplies, Services & Other Expenses",Other Communications Equipment,Greater Manchester Combined Authority,"1,083.00",31115745
SAFEQUIP LTD,13/05/2022,"Supplies, Services & Other Expenses",Operational Equipment Non-Consumables,Greater Manchester Combined Authority,781.00,31116119
SERCO LTD,13/05/2022,Indirect Employee Allowances,Training Course Fees,Greater Manchester Combined Authority,"3,300.00",31115750
Stellar Network Solutions Ltd,13/05/2022,"Supplies, Services & Other Expenses",Other Communications Equipment,Greater Manchester Combined Authority,"2,327.00",31115773
Stockport MBC,13/05/2022,Capital,Capital Grant Expenditure,Greater Manchester Combined Authority,"208,006.01",31115180
Tactical Hazmat Ltd,13/05/2022,Indirect Employee Allowances,Training Course Fees,Greater Manchester Combined Authority,840.00,31116121
Transport for Greater Manchester  ,13/05/2022,Capital,Capital Professional Fees,Greater Manchester Combined Authority,"9,176.07",31115781
Trident Crisis Solutions Ltd,13/05/2022,"Supplies, Services & Other Expenses",Professional Fees,Greater Manchester Combined Authority,"2,750.00",31115761
UNITED UTILITIES WATER PLC,13/05/2022,"Supplies, Services & Other Expenses",Hydrants Repairs,Greater Manchester Combined Authority,758.71,31115759
WIGAN MBC,13/05/2022,"Supplies, Services & Other Expenses",Grant Expenditure,Greater Manchester Combined Authority,"77,481.50",31115746
WIGAN MBC,13/05/2022,"Supplies, Services & Other Expenses",Grant Expenditure,Greater Manchester Combined Authority,"77,481.50",31115748
LAC AIR CONDITIONING LTD,15/05/2022,Premises Related Expenditure,Programmed Repairs & Maintenance,Greater Manchester Combined Authority,"12,292.40",31116120
AALCO,16/05/2022,Transport Related Expenditure,Repairs and Maintenance - Transport,Greater Manchester Combined Authority,570.00,31116162
ABARIS INTERNATIONAL LIMITED,16/05/2022,"Supplies, Services & Other Expenses",Operational Equipment Consumables,Greater Manchester Combined Authority,"12,782.18",31115692
Bid Group Ltd,16/05/2022,Premises Related Expenditure,Responsive Repairs & Maintenance,Greater Manchester Combined Authority,"1,040.00",31116161
BROSTERS ENVIRONMENTAL LIMITED,16/05/2022,"Supplies, Services & Other Expenses",Waste Disposal Services,Greater Manchester Combined Authority,"28,856.52",31113667
Calderys NGJ Limited,16/05/2022,Capital,Estates Capital Contracts,Greater Manchester Combined Authority,"11,310.26",31115722
Calderys NGJ Limited,16/05/2022,Capital,Estates Capital Contracts,Greater Manchester Combined Authority,"14,619.37",31115723
Calderys NGJ Limited,16/05/2022,Capital,Estates Capital Contracts,Greater Manchester Combined Authority,"15,959.26",31115724
Dalbergia Group Limited,16/05/2022,"Supplies, Services & Other Expenses",Professional Fees,Greater Manchester Combined Authority,"2,700.00",31113711
DLA Piper UK LLP,16/05/2022,"Supplies, Services & Other Expenses",Consultancy Fees,Greater Manchester Combined Authority,"11,637.70",31111323
DLA Piper UK LLP,16/05/2022,"Supplies, Services & Other Expenses",Consultancy Fees,Greater Manchester Combined Authority,"18,670.83",31111517
Fire Hose Tech Ltd,16/05/2022,"Supplies, Services & Other Expenses",Operational Equipment Non-Consumables,Greater Manchester Combined Authority,"1,018.83",31116159
GE Robinson & Co Ltd,16/05/2022,Indirect Employee Allowances,Other Training Expenses,Greater Manchester Combined Authority,690.74,31114146
George Hill Ltd,16/05/2022,Premises Related Expenditure,Responsive Repairs & Maintenance,Greater Manchester Combined Authority,"2,200.41",31116158
Ingeus UK Ltd,16/05/2022,"Supplies, Services & Other Expenses",Commissioned Services,Greater Manchester Combined Authority,"699,673.53",31116135
J Fletcher (Engineers) Ltd,16/05/2022,Premises Related Expenditure,Fixtures & Fittings,Greater Manchester Combined Authority,664.33,31114973
Jones Lang LaSalle Limited,16/05/2022,"Supplies, Services & Other Expenses",Professional Fees,Greater Manchester Combined Authority,"4,500.00",31116153
Link4Life,16/05/2022,"Supplies, Services & Other Expenses",Grant Expenditure,Greater Manchester Combined Authority,"153,000.00",31115477
LNRS Data Services Ltd (XpertHR),16/05/2022,"Supplies, Services & Other Expenses",Subscriptions,Greater Manchester Combined Authority,"5,901.00",31116155
Manchester Camerata,16/05/2022,"Supplies, Services & Other Expenses",Grant Expenditure,Greater Manchester Combined Authority,"27,400.00",31115710
Manchester Jewish Museum,16/05/2022,"Supplies, Services & Other Expenses",Grant Expenditure,Greater Manchester Combined Authority,"17,500.00",31115483
MancSpirit,16/05/2022,"Supplies, Services & Other Expenses",Grant Expenditure,Greater Manchester Combined Authority,"44,756.18",31115627
PLP Construction Ltd,16/05/2022,Capital,Estates Capital Contracts,Greater Manchester Combined Authority,"18,901.78",31115740
